Workbook

Sheet Explications
B2: Je suis le gestionnaire d'un concours photo, composé de 7 défis. Les défis s'étalent de Novembre à Mai pour une durée d'un mois.
B4: Chaque auteur ne peut participar qu'avec une seule photo dans un même défi. Les photos sont jugées par 3 juges. Après chaque jugement je récupère un fichier de notation.
B6: Les fichiers de notations sont insérées dans ce classeur manuellement dans des onglets nommés de Défi-1 à Défi-7.
B9: Chaque auteur est identifié par le un numéro, de 12 chiffres, qui se trouve dans la colonne "fichier". Il a la forme suivante 131353000101. il se décomose de la manière suivante : - Les deux premiers chiffres 13 corresponds au N° de l'UR. - Les quatre suivantes 1353 correspondent au N° du club. - les quatres suivante 0001 correspondent au N° d'adhérent. - Les deux derniers 01 correspondent au N° d'ordre.
B16: Deux classement sont effectués après chaque défi. - Un classement auteur qui s'obtient par totalisation des notes obtenues par un auteur dans chacun des défis auquel il a participé. Ce classement se fait sur la totalité du N° de fichier.La participation à tous les défis n'est pas obligatoire. - Un classement club obtenu par addition des trois meilleures photos d'un même club dans un défi. Ce classement doit se faire sur les quatre chiffres vert. On ne classe que les club ayant au moins trois auteurs. Avec 1 ou 2 auteur le club n'est pas classé.
B24: Ce que je souhaiterais faire, c'est qu'après chaque défi et après avoir inséré le fichier de notation, dans l'onglet correspondant à un défi, soit effectué automatiquement le classement auteur et le classement club.
B28: J'arrive à le faire manuellement, mais je suis incapable d'écrire les macros permettant d'effectuer automatiquement ces deux classements. Je suis à votre disposition pour toutes autres précisions. Merci d'avance pour votre aide.

Sheet Classement auteurs
B2: Fichier | C2: Défi 1 | D2: Défi 2 | E2: Défi 3 | F2: Défi 4 | G2: Défi 5 | H2: Défi 6 | I2: Défi 7 | J2: Total
B3: 130527009401 | C3: 50 | D3: 53 | E3: 46 | F3: 50 | G3: 51 | J3: =SUM(C3:I3) -> 250
B4: 131683007901 | C4: 54 | D4: 39 | E4: 38 | F4: 51 | G4: 58 | J4: =SUM(C4:I4) -> 240 | M4: Ce classement sera toujours maintenu dans l'ordre décroissant..
B5: 131110000901 | C5: 51 | D5: 45 | E5: 56 | F5: 43 | G5: 41 | J5: =SUM(C5:I5) -> 236
B6: 131683008001 | C6: 48 | D6: 47 | E6: 47 | F6: 39 | G6: 52 | J6: =SUM(C6:I6) -> 233 | M6: Etant le premier, le Défi-1 sert de base de départ pour les 6 autres. Pour cela on utilise les 4 premières colonnes et la colonne total.
B7: 131353000101 | C7: 45 | D7: 36 | E7: 46 | F7: 47 | G7: 57 | J7: =SUM(C7:I7) -> 231
B8: 131619004501 | C8: 51 | D8: 48 | E8: 48 | F8: 46 | G8: 37 | J8: =SUM(C8:I8) -> 230
B9: 131824001901 | C9: 52 | D9: 40 | E9: 45 | F9: 48 | G9: 44 | J9: =SUM(C9:I9) -> 229 | M9: Suite à une remarque de Gbinforme j'ai supprimer les colonne inutiles. En incluanant la formule : =SIERREUR(RECHERCHEV($B4;'Défi-5'!$C$2:$J$146;8;FAUX);"") j'ai réussit à récuperer , pour un auteur donné, les notes obtenues dans les autres défis. Par contre il manque maintenant les auteurs présents sur les autres défis et absents du 1er. Le but étant d'avoir dans ce classement tous les auteurs des 7 défis. C'est un début ...
B10: 131353000701 | C10: 48 | D10: 42 | E10: 39 | F10: 57 | G10: 41 | J10: =SUM(C10:I10) -> 227
B11: 130925007701 | C11: 46 | D11: 50 | E11: 48 | F11: 44 | G11: 37 | J11: =SUM(C11:I11) -> 225
B12: 130987024201 | C12: 46 | D12: 43 | E12: 48 | F12: 45 | G12: 39 | J12: =SUM(C12:I12) -> 221
B13: 131683006301 | C13: 57 | D13: 36 | E13: 34 | F13: 47 | G13: 45 | J13: =SUM(C13:I13) -> 219
B14: 131499006801 | C14: 35 | D14: 39 | E14: 48 | F14: 52 | G14: 42 | J14: =SUM(C14:I14) -> 216
B15: 131499006901 | C15: 42 | D15: 45 | E15: 43 | F15: 39 | G15: 46 | J15: =SUM(C15:I15) -> 215
B16: 131499010001 | C16: 42 | D16: 42 | E16: 43 | F16: 42 | G16: 42 | J16: =SUM(C16:I16) -> 211
B17: 130987015701 | C17: 48 | D17: 39 | E17: 34 | F17: 41 | G17: 46 | J17: =SUM(C17:I17) -> 208
B18: 132193000301 | C18: 48 | D18: 37 | E18: 40 | F18: 45 | G18: 38 | J18: =SUM(C18:I18) -> 208
B19: 130987019701 | C19: 51 | D19: 40 | E19: 40 | F19: 39 | G19: 37 | J19: =SUM(C19:I19) -> 207
B20: 131376018301 | C20: 31 | D20: 34 | E20: 57 | F20: 41 | G20: 44 | J20: =SUM(C20:I20) -> 207
B21: 130527017001 | C21: 55 | D21: 40 | E21: 31 | F21: 29 | G21: 51 | J21: =SUM(C21:I21) -> 206
B22: 130987024101 | C22: 40 | D22: 39 | E22: 36 | F22: 46 | G22: 44 | J22: =SUM(C22:I22) -> 205
B23: 131845001401 | C23: 41 | D23: 34 | E23: 48 | F23: 39 | G23: 43 | J23: =SUM(C23:I23) -> 205
B24: 131110001001 | C24: 41 | D24: 41 | E24: 40 | F24: 47 | G24: 35 | J24: =SUM(C24:I24) -> 204 | M24: =SIERREUR(RECHERCHEV($B4;'Défi-5'!$C$2:$J$146;8;FAUX);"")
B25: 131683005101 | C25: 36 | D25: 33 | E25: 41 | F25: 44 | G25: 49 | J25: =SUM(C25:I25) -> 203
B26: 131499005201 | C26: 44 | D26: 31 | E26: 49 | F26: 37 | G26: 39 | J26: =SUM(C26:I26) -> 200
B27: 131499010501 | C27: 35 | D27: 41 | E27: 47 | F27: 41 | G27: 36 | J27: =SUM(C27:I27) -> 200
B28: 131879000501 | C28: 38 | D28: 39 | E28: 40 | F28: 41 | G28: 39 | J28: =SUM(C28:I28) -> 197
B29: 131845004001 | C29: 40 | D29: 33 | E29: 42 | F29: 39 | G29: 41 | J29: =SUM(C29:I29) -> 195
B30: 130925009801 | C30: 44 | D30: 36 | E30: 41 | F30: 34 | G30: 40 | J30: =SUM(C30:I30) -> 195
B31: 131499010601 | C31: 46 | D31: 40 | E31: 37 | F31: 32 | G31: 39 | J31: =SUM(C31:I31) -> 194
B32: 131823004901 | C32: 44 | D32: 25 | E32: 43 | F32: 39 | G32: 41 | J32: =SUM(C32:I32) -> 192
B33: 130878014101 | C33: 36 | D33: 37 | E33: 44 | F33: 18 | G33: 56 | J33: =SUM(C33:I33) -> 191
B34: 132086001401 | C34: 33 | D34: 41 | E34: 37 | F34: 46 | G34: 34 | J34: =SUM(C34:I34) -> 191
B35: 130987019601 | C35: 39 | D35: 37 | E35: 36 | F35: 44 | G35: 34 | J35: =SUM(C35:I35) -> 190
B36: 131376014701 | C36: 43 | D36: 23 | E36: 39 | F36: 41 | G36: 44 | J36: =SUM(C36:I36) -> 190
B37: 131862002201 | C37: 41 | D37: 35 | E37: 44 | F37: 27 | G37: 43 | J37: =SUM(C37:I37) -> 190
B38: 132060001701 | C38: 37 | D38: 45 | E38: 33 | F38: 37 | G38: 37 | J38: =SUM(C38:I38) -> 189
B39: 131956004501 | C39: 38 | D39: 38 | E39: 35 | F39: 37 | G39: 39 | J39: =SUM(C39:I39) -> 187
B40: 131494000201 | C40: 39 | D40: 34 | E40: 42 | F40: 35 | G40: 37 | J40: =SUM(C40:I40) -> 187
B41: 132060001801 | C41: 38 | D41: 38 | E41: 40 | F41: 22 | G41: 47 | J41: =SUM(C41:I41) -> 185
B42: 131879000801 | C42: 50 | E42: 58 | F42: 40 | G42: 36 | J42: =SUM(C42:I42) -> 184
B43: 131956002401 | C43: 28 | D43: 36 | E43: 40 | F43: 35 | G43: 43 | J43: =SUM(C43:I43) -> 182
B44: 130000020401 | C44: 31 | D44: 37 | E44: 35 | F44: 35 | G44: 43 | J44: =SUM(C44:I44) -> 181
B45: 130925008401 | C45: 51 | D45: 39 | E45: 40 | G45: 51 | J45: =SUM(C45:I45) -> 181
B46: 131499008701 | C46: 44 | D46: 29 | E46: 39 | F46: 33 | G46: 34 | J46: =SUM(C46:I46) -> 179
B47: 131110001101 | C47: 36 | D47: 24 | E47: 38 | F47: 36 | G47: 45 | J47: =SUM(C47:I47) -> 179
B48: 130000019901 | C48: 32 | D48: 41 | E48: 44 | F48: 24 | G48: 37 | J48: =SUM(C48:I48) -> 178
B49: 130527002501 | C49: 41 | D49: 37 | E49: 38 | F49: 30 | G49: 32 | J49: =SUM(C49:I49) -> 178
B50: 131499008201 | C50: 45 | D50: 41 | F50: 41 | G50: 49 | J50: =SUM(C50:I50) -> 176
B51: 130987023901 | C51: 40 | D51: 30 | E51: 40 | F51: 35 | G51: 30 | J51: =SUM(C51:I51) -> 175
B52: 130987001601 | C52: 35 | D52: 36 | E52: 35 | F52: 32 | G52: 37 | J52: =SUM(C52:I52) -> 175
B53: 131499009801 | C53: 42 | E53: 35 | F53: 54 | G53: 42 | J53: =SUM(C53:I53) -> 173
B54: 130925009901 | C54: 30 | D54: 38 | E54: 34 | F54: 32 | G54: 37 | J54: =SUM(C54:I54) -> 171
B55: 131956000201 | D55: 47 | E55: 44 | F55: 41 | G55: 39 | J55: =SUM(C55:I55) -> 171
B56: 130527013301 | C56: 47 | D56: 39 | E56: 40 | F56: 44 | J56: =SUM(C56:I56) -> 170
B57: 132086002301 | C57: 36 | D57: 31 | E57: 35 | F57: 35 | G57: 32 | J57: =SUM(C57:I57) -> 169
B58: 131353000201 | C58: 33 | D58: 37 | E58: 25 | F58: 36 | G58: 37 | J58: =SUM(C58:I58) -> 168
B59: 131879002001 | D59: 47 | E59: 42 | F59: 41 | G59: 38 | J59: =SUM(C59:I59) -> 168
B60: 130987013801 | C60: 38 | E60: 45 | F60: 42 | G60: 42 | J60: =SUM(C60:I60) -> 167
B61: 131956005701 | C61: 36 | D61: 31 | E61: 34 | F61: 28 | G61: 38 | J61: =SUM(C61:I61) -> 167
B62: 130925007601 | D62: 44 | E62: 43 | F62: 39 | G62: 41 | J62: =SUM(C62:I62) -> 167
B63: 130987007401 | C63: 31 | D63: 32 | E63: 28 | F63: 38 | G63: 37 | J63: =SUM(C63:I63) -> 166
B64: 131499003901 | C64: 42 | E64: 40 | F64: 45 | G64: 39 | J64: =SUM(C64:I64) -> 166
B65: 132060001201 | C65: 46 | E65: 39 | F65: 40 | G65: 39 | J65: =SUM(C65:I65) -> 164
B66: 132084001701 | C66: 45 | D66: 36 | E66: 40 | G66: 41 | J66: =SUM(C66:I66) -> 162
B67: 131499010401 | C67: 37 | E67: 43 | F67: 41 | G67: 41 | J67: =SUM(C67:I67) -> 162
B68: 131956004601 | D68: 47 | E68: 50 | F68: 38 | G68: 27 | J68: =SUM(C68:I68) -> 162
B69: 130878014301 | C69: 38 | D69: 23 | E69: 52 | F69: 18 | G69: 29 | J69: =SUM(C69:I69) -> 160
B70: 130987028401 | C70: 32 | D70: 38 | E70: 27 | F70: 27 | G70: 36 | J70: =SUM(C70:I70) -> 160
B71: 131879001301 | C71: 42 | D71: 30 | E71: 46 | G71: 42 | J71: =SUM(C71:I71) -> 160
B72: 132060000701 | C72: 38 | D72: 29 | E72: 31 | F72: 25 | G72: 36 | J72: =SUM(C72:I72) -> 159
B73: 131845004101 | C73: 29 | D73: 34 | E73: 34 | F73: 26 | G73: 36 | J73: =SUM(C73:I73) -> 159
B74: 131845002101 | C74: 38 | D74: 34 | E74: 42 | G74: 44 | J74: =SUM(C74:I74) -> 158
B75: 131683006601 | C75: 40 | D75: 26 | E75: 42 | G75: 49 | J75: =SUM(C75:I75) -> 157
B76: 130987002301 | D76: 44 | E76: 40 | F76: 39 | G76: 34 | J76: =SUM(C76:I76) -> 157
B77: 130527015501 | C77: 46 | E77: 45 | F77: 31 | G77: 32 | J77: =SUM(C77:I77) -> 154
B78: 132084004001 | D78: 40 | E78: 32 | F78: 40 | G78: 42 | J78: =SUM(C78:I78) -> 154
B79: 131353004301 | C79: 18 | D79: 28 | E79: 35 | F79: 47 | G79: 24 | J79: =SUM(C79:I79) -> 152
B80: 131499003601 | C80: 34 | D80: 33 | E80: 35 | G80: 50 | J80: =SUM(C80:I80) -> 152
B81: 131956002601 | D81: 44 | E81: 44 | F81: 34 | G81: 30 | J81: =SUM(C81:I81) -> 152
B82: 131823006401 | D82: 38 | E82: 39 | F82: 37 | G82: 37 | J82: =SUM(C82:I82) -> 151
B83: 131353006101 | D83: 41 | E83: 36 | F83: 38 | G83: 36 | J83: =SUM(C83:I83) -> 151
B84: 131879000601 | C84: 47 | D84: 37 | E84: 34 | F84: 31 | J84: =SUM(C84:I84) -> 149
B85: 131879000101 | C85: 41 | D85: 41 | E85: 38 | G85: 28 | J85: =SUM(C85:I85) -> 148
B86: 131353003001 | C86: 45 | D86: 30 | E86: 37 | G86: 35 | J86: =SUM(C86:I86) -> 147
B87: 131683007601 | D87: 42 | E87: 31 | F87: 42 | G87: 32 | J87: =SUM(C87:I87) -> 147
B88: 130878013001 | C88: 41 | E88: 39 | F88: 40 | G88: 26 | J88: =SUM(C88:I88) -> 146
B89: 131845000101 | C89: 42 | E89: 41 | F89: 18 | G89: 41 | J89: =SUM(C89:I89) -> 142
B90: 130527012401 | C90: 41 | D90: 36 | E90: 18 | F90: 47 | J90: =SUM(C90:I90) -> 142
B91: 131353006201 | D91: 31 | E91: 39 | F91: 35 | G91: 37 | J91: =SUM(C91:I91) -> 142
B92: 130878007201 | C92: 36 | E92: 37 | F92: 32 | G92: 35 | J92: =SUM(C92:I92) -> 140
B93: 130925010201 | C93: 46 | D93: 30 | E93: 31 | F93: 33 | J93: =SUM(C93:I93) -> 140
B94: 131956002901 | C94: 43 | E94: 40 | F94: 28 | G94: 28 | J94: =SUM(C94:I94) -> 139
B95: 131227008601 | E95: 53 | F95: 44 | G95: 42 | J95: =SUM(C95:I95) -> 139
B96: 131353007101 | C96: 37 | D96: 30 | E96: 33 | G96: 37 | J96: =SUM(C96:I96) -> 137
B97: 132060000401 | C97: 18 | E97: 43 | F97: 36 | G97: 40 | J97: =SUM(C97:I97) -> 137
B98: 132086002601 | C98: 32 | D98: 26 | F98: 39 | G98: 40 | J98: =SUM(C98:I98) -> 137
B99: 131992000301 | C99: 40 | D99: 33 | E99: 32 | G99: 31 | J99: =SUM(C99:I99) -> 136
B100: 131992000401 | D100: 39 | E100: 32 | F100: 20 | G100: 45 | J100: =SUM(C100:I100) -> 136
B101: 130987024001 | C101: 46 | D101: 44 | E101: 44 | J101: =SUM(C101:I101) -> 134
B102: 131376012601 | C102: 31 | D102: 29 | E102: 40 | G102: 34 | J102: =SUM(C102:I102) -> 134
B103: 132084002301 | D103: 37 | E103: 54 | F103: 43 | J103: =SUM(C103:I103) -> 134
B104: 132103002301 | C104: 46 | D104: 43 | E104: 43 | J104: =SUM(C104:I104) -> 132
B105: 132060000901 | C105: 35 | D105: 28 | F105: 38 | G105: 30 | J105: =SUM(C105:I105) -> 131
B106: 130878013401 | D106: 30 | E106: 36 | F106: 35 | G106: 30 | J106: =SUM(C106:I106) -> 131
B107: 131823008301 | D107: 40 | E107: 48 | G107: 42 | J107: =SUM(C107:I107) -> 130
B108: 131956003401 | C108: 37 | D108: 24 | E108: 34 | G108: 33 | J108: =SUM(C108:I108) -> 128
B109: 132060000801 | C109: 30 | D109: 32 | E109: 33 | F109: 33 | J109: =SUM(C109:I109) -> 128
B110: 130462001101 | E110: 38 | F110: 45 | G110: 43 | J110: =SUM(C110:I110) -> 126
B111: 132203000701 | E111: 40 | F111: 45 | G111: 40 | J111: =SUM(C111:I111) -> 125
B112: 132084003601 | D112: 33 | F112: 55 | G112: 35 | J112: =SUM(C112:I112) -> 123
B113: 131956001401 | D113: 32 | E113: 38 | F113: 18 | G113: 35 | J113: =SUM(C113:I113) -> 123
B114: 132084003501 | D114: 43 | F114: 40 | G114: 38 | J114: =SUM(C114:I114) -> 121
B115: 131353007401 | D115: 38 | E115: 40 | G115: 41 | J115: =SUM(C115:I115) -> 119
B116: 131376017701 | C116: 51 | E116: 48 | F116: 18 | J116: =SUM(C116:I116) -> 117
B117: 131619004601 | C117: 35 | E117: 39 | G117: 43 | J117: =SUM(C117:I117) -> 117
B118: 131824003101 | C118: 42 | D118: 33 | E118: 41 | J118: =SUM(C118:I118) -> 116
B119: 131353007301 | D119: 40 | E119: 38 | G119: 38 | J119: =SUM(C119:I119) -> 116
B120: 131956005901 | C120: 43 | F120: 33 | G120: 37 | J120: =SUM(C120:I120) -> 113
B121: 131376011801 | C121: 48 | F121: 18 | G121: 46 | J121: =SUM(C121:I121) -> 112
B122: 132193000401 | C122: 41 | D122: 37 | G122: 33 | J122: =SUM(C122:I122) -> 111
B123: 131862000801 | C123: 51 | D123: 24 | E123: 36 | J123: =SUM(C123:I123) -> 111
B124: 131683000701 | C124: 32 | D124: 30 | E124: 48 | J124: =SUM(C124:I124) -> 110
B125: 130925008701 | D125: 34 | E125: 39 | F125: 37 | J125: =SUM(C125:I125) -> 110
B126: 131494002301 | D126: 35 | E126: 32 | G126: 42 | J126: =SUM(C126:I126) -> 109
B127: 130987025001 | D127: 39 | F127: 30 | G127: 40 | J127: =SUM(C127:I127) -> 109
B128: 130987026701 | E128: 32 | F128: 37 | G128: 40 | J128: =SUM(C128:I128) -> 109
B129: 131956006501 | E129: 34 | F129: 39 | G129: 36 | J129: =SUM(C129:I129) -> 109
B130: 130987014001 | C130: 48 | D130: 37 | E130: 23 | J130: =SUM(C130:I130) -> 108
B131: 132086002501 | C131: 38 | D131: 32 | E131: 38 | J131: =SUM(C131:I131) -> 108
B132: 132193001201 | D132: 34 | F132: 37 | G132: 37 | J132: =SUM(C132:I132) -> 108
B133: 132060002201 | C133: 41 | D133: 29 | E133: 36 | J133: =SUM(C133:I133) -> 106
B134: 130925008601 | C134: 33 | D134: 36 | E134: 34 | J134: =SUM(C134:I134) -> 103
B135: 131845002501 | C135: 30 | D135: 41 | E135: 32 | J135: =SUM(C135:I135) -> 103
B136: 130878015201 | C136: 43 | F136: 18 | G136: 42 | J136: =SUM(C136:I136) -> 103
B137: 131823007601 | C137: 33 | E137: 40 | G137: 30 | J137: =SUM(C137:I137) -> 103
B138: 132084000301 | D138: 39 | E138: 40 | F138: 24 | J138: =SUM(C138:I138) -> 103
B139: 131499010101 | C139: 37 | F139: 31 | G139: 34 | J139: =SUM(C139:I139) -> 102
B140: 132089000101 | C140: 36 | D140: 29 | G140: 36 | J140: =SUM(C140:I140) -> 101
B141: 131823005701 | C141: 36 | D141: 28 | E141: 37 | J141: =SUM(C141:I141) -> 101
B142: 131862001101 | C142: 29 | D142: 30 | E142: 41 | J142: =SUM(C142:I142) -> 100
B143: 132089000201 | C143: 24 | D143: 31 | E143: 43 | J143: =SUM(C143:I143) -> 98
B144: 132060002401 | C144: 35 | D144: 31 | E144: 32 | J144: =SUM(C144:I144) -> 98
B145: 131823004201 | E145: 34 | F145: 29 | G145: 34 | J145: =SUM(C145:I145) -> 97
B146: 132060000101 | C146: 29 | E146: 33 | G146: 34 | J146: =SUM(C146:I146) -> 96
B147: 131845003401 | C147: 28 | D147: 27 | G147: 40 | J147: =SUM(C147:I147) -> 95
B148: 131683002601 | D148: 37 | F148: 56 | J148: =SUM(C148:I148) -> 93
B149: 131499011001 | F149: 42 | G149: 51 | J149: =SUM(C149:I149) -> 93
B150: 132089000301 | C150: 31 | E150: 31 | F150: 30 | J150: =SUM(C150:I150) -> 92
B151: 132023000101 | D151: 18 | E151: 38 | G151: 36 | J151: =SUM(C151:I151) -> 92
B152: 131683006501 | D152: 28 | E152: 34 | F152: 30 | J152: =SUM(C152:I152) -> 92
B153: 131683006901 | E153: 51 | G153: 41 | J153: =SUM(C153:I153) -> 92
B154: 132023002201 | F154: 49 | G154: 43 | J154: =SUM(C154:I154) -> 92
B155: 131376017601 | C155: 32 | D155: 24 | F155: 35 | J155: =SUM(C155:I155) -> 91
B156: 132193000501 | D156: 25 | F156: 21 | G156: 41 | J156: =SUM(C156:I156) -> 87
B157: 130925010501 | E157: 46 | F157: 41 | J157: =SUM(C157:I157) -> 87
B158: 131619005001 | D158: 39 | G158: 45 | J158: =SUM(C158:I158) -> 84
B159: 130987012601 | D159: 41 | E159: 42 | J159: =SUM(C159:I159) -> 83
B160: 131499008601 | E160: 40 | G160: 41 | J160: =SUM(C160:I160) -> 81
B161: 130993012301 | F161: 40 | G161: 41 | J161: =SUM(C161:I161) -> 81
B162: 131683008101 | E162: 37 | G162: 43 | J162: =SUM(C162:I162) -> 80
B163: 132103000101 | D163: 23 | E163: 55 | J163: =SUM(C163:I163) -> 78
B164: 130527011601 | C164: 39 | E164: 37 | J164: =SUM(C164:I164) -> 76
B165: 131376018001 | C165: 38 | D165: 38 | J165: =SUM(C165:I165) -> 76
B166: 131862001001 | D166: 39 | E166: 36 | J166: =SUM(C166:I166) -> 75
B167: 130527009201 | D167: 35 | F167: 40 | J167: =SUM(C167:I167) -> 75
B168: 132147000101 | F168: 38 | G168: 36 | J168: =SUM(C168:I168) -> 74
B169: 130987028201 | C169: 42 | F169: 31 | J169: =SUM(C169:I169) -> 73
B170: 130993015401 | C170: 42 | G170: 31 | J170: =SUM(C170:I170) -> 73
B171: 131376015801 | C171: 36 | F171: 37 | J171: =SUM(C171:I171) -> 73
B172: 131845001101 | C172: 41 | G172: 32 | J172: =SUM(C172:I172) -> 73
B173: 131879000901 | E173: 44 | G173: 29 | J173: =SUM(C173:I173) -> 73
B174: 131499010801 | D174: 30 | F174: 41 | J174: =SUM(C174:I174) -> 71
B175: 131227008301 | F175: 37 | G175: 34 | J175: =SUM(C175:I175) -> 71
B176: 131845000801 | C176: 36 | G176: 34 | J176: =SUM(C176:I176) -> 70
B177: 131823008701 | D177: 41 | E177: 28 | J177: =SUM(C177:I177) -> 69
B178: 131956005101 | C178: 34 | D178: 34 | J178: =SUM(C178:I178) -> 68
B179: 130878013601 | D179: 34 | G179: 34 | J179: =SUM(C179:I179) -> 68
B180: 131494003201 | E180: 39 | F180: 29 | J180: =SUM(C180:I180) -> 68
B181: 131956000601 | E181: 41 | G181: 27 | J181: =SUM(C181:I181) -> 68
B182: 130987016601 | F182: 38 | G182: 30 | J182: =SUM(C182:I182) -> 68
B183: 131862005801 | D183: 34 | E183: 33 | J183: =SUM(C183:I183) -> 67
B184: 132217000101 | E184: 30 | F184: 37 | J184: =SUM(C184:I184) -> 67
B185: 131879001101 | F185: 29 | G185: 38 | J185: =SUM(C185:I185) -> 67
B186: 131499009301 | C186: 29 | E186: 35 | J186: =SUM(C186:I186) -> 64
B187: 131956006201 | D187: 25 | E187: 39 | J187: =SUM(C187:I187) -> 64
B188: 132060001501 | C188: 35 | F188: 27 | J188: =SUM(C188:I188) -> 62
B189: 130993015101 | C189: 18 | F189: 43 | J189: =SUM(C189:I189) -> 61
B190: 131845000201 | F190: 18 | G190: 40 | J190: =SUM(C190:I190) -> 58
B191: 131494002101 | D191: 29 | F191: 25 | J191: =SUM(C191:I191) -> 54
B192: 131683003301 | F192: 53 | J192: =SUM(C192:I192) -> 53
B193: 132203001001 | F193: 18 | G193: 35 | J193: =SUM(C193:I193) -> 53
B194: 131619004201 | C194: 18 | G194: 34 | J194: =SUM(C194:I194) -> 52
B195: 131956006001 | C195: 50 | J195: =SUM(C195:I195) -> 50
B196: 131499010301 | G196: 50 | J196: =SUM(C196:I196) -> 50
B197: 130878015801 | G197: 49 | J197: =SUM(C197:I197) -> 49
B198: 132203000901 | D198: 48 | J198: =SUM(C198:I198) -> 48
B199: 130993013301 | F199: 47 | J199: =SUM(C199:I199) -> 47
B200: 132193000601 | E200: 44 | J200: =SUM(C200:I200) -> 44
B201: 132103000201 | E201: 44 | J201: =SUM(C201:I201) -> 44
... 1801 more rows

Sheet Classement clubs
B2: N° de club | C2: Nom du Club | D2: Défi 1 | E2: Défi 2 | F2: Défi 3 | G2: Défi 4 | H2: Défi 5 | I2: Défi 6 | J2: Défi 7 | K2: Total
A3: 1 | B3: 1683 | C3: Marius Saint-Mitre-les-Remparts | D3: 159 | E3: 128 | F3: 146 | G3: 160 | H3: 159 | K3: =SUM(D3:J3) -> 752 | N3: Ce classement sera toujours maintenu dans l'ordre décroissant..
A4: 2 | B4: 1499 | C4: Images Expressions – Cagnes sur Mer | D4: 135 | E4: 128 | F4: 144 | G4: 151 | H4: 151 | K4: =SUM(D4:J4) -> 709
A5: 3 | B5: 527 | C5: Photo Club de Martigues | D5: 152 | E5: 132 | F5: 131 | G5: 141 | H5: 134 | K5: =SUM(D5:J5) -> 690 | N5: Ce classement a été fait manuellement à partir de l'onglet Défi-1 et de la façon suivante : - un premier tri, dans l'ordre croissant, sur le N° de fichier. - un second tri pour classer les photos d'un même club dans l'ordre décroissant. - Ensuite j'ai fait le total des 3 premières photos. - j'ai supprimé les lignes inutiles,pour ne garder qu'une ligne par club. - j'ai fait un tris décroissant sur le total. - j'ai extrait le N° de club, - à partir de ce N° j'ai récupéré le nom du club dans l'onglet "Liste des clubs".
A6: 4 | B6: 987 | C6: Cl. Phot’Azur Six-Fours-les-Plages | D6: 147 | E6: 131 | F6: 137 | G6: 135 | H6: 132 | K6: =SUM(D6:J6) -> 682
A7: 5 | B7: 1353 | C7: Photo Club de La Crau | D7: 138 | E7: 123 | F7: 125 | G7: 151 | H7: 139 | K7: =SUM(D7:J7) -> 676
A8: 6 | B8: 925 | C8: A.S.L.P.S. Photo Fos-sur-Mer | D8: 143 | E8: 133 | F8: 137 | G8: 124 | H8: 132 | K8: =SUM(D8:J8) -> 669
A9: 7 | B9: 1879 | C9: Association Sportive de Berre | D9: 139 | E9: 127 | F9: 148 | G9: 122 | H9: 119 | K9: =SUM(D9:J9) -> 655
A10: 8 | B10: 1956 | C10: Photo Contact Puyricard | D10: 136 | E10: 138 | F10: 138 | G10: 118 | H10: 124 | K10: =SUM(D10:J10) -> 654
A11: 9 | B11: 1376 | C11: PHOCAL | D11: 142 | E11: 101 | F11: 145 | G11: 119 | H11: 134 | K11: =SUM(D11:J11) -> 641
A12: 10 | B12: 1110 | C12: Ciné Photo Club de Peymeinade | D12: 128 | E12: 110 | F12: 134 | G12: 126 | H12: 121 | K12: =SUM(D12:J12) -> 619
A13: 11 | B13: 878 | C13: PC Antoine Santoru-Port de Bouc | D13: 122 | E13: 101 | F13: 135 | G13: 111 | H13: 147 | K13: =SUM(D13:J13) -> 616
A14: 12 | B14: 2060 | C14: Image Club Gardéen | D14: 130 | E14: 115 | F14: 122 | G14: 115 | H14: 126 | K14: =SUM(D14:J14) -> 608
A15: 13 | B15: 1845 | C15: Photo Club Carqueirannais | D15: 124 | E15: 109 | F15: 132 | G15: 104 | H15: 128 | K15: =SUM(D15:J15) -> 597 | N15: Cette opération est à faire après chaque défi.
A16: 14 | B16: 1823 | C16: Photo Club Mouansois | D16: 113 | E16: 119 | F16: 131 | G16: 105 | H16: 120 | K16: =SUM(D16:J16) -> 588
A17: 15 | B17: 2084 | C17: Azur Photo Passion | D17: 45 | E17: 122 | F17: 134 | G17: 138 | H17: 121 | K17: =SUM(D17:J17) -> 560
A18: 16 | B18: 2086 | C18: Objectif Image Nice | D18: 107 | E18: 104 | F18: 110 | G18: 120 | H18: 106 | K18: =SUM(D18:J18) -> 547
A19: 17 | B19: 2193 | C19: Antibes Photo Club | D19: 89 | E19: 108 | F19: 84 | G19: 103 | H19: 118 | K19: =SUM(D19:J19) -> 502
A20: 18 | B20: 1619 | C20: Optique Diaporama Marseille | D20: 104 | E20: 87 | F20: 87 | G20: 46 | H20: 131 | K20: =SUM(D20:J20) -> 455
A21: 19 | B21: 1494 | C21: Photo-Club du Brianconnais | D21: 39 | E21: 98 | F21: 113 | G21: 89 | H21: 103 | K21: =SUM(D21:J21) -> 442
A22: 20 | B22: 1862 | C22: Déclic et des Claps – Roquefort les Pins | D22: 121 | E22: 108 | F22: 121 | G22: 27 | H22: 43 | K22: =SUM(D22:J22) -> 420
A23: 21 | B23: 0 | D23: 103 | E23: 78 | F23: 100 | G23: 59 | H23: 80 | K23: =SUM(D23:J23) -> 420
A24: 22 | B24: 1824 | C24: Photo Club IBM Cote d’Azur | D24: 94 | E24: 73 | F24: 86 | G24: 48 | H24: 44 | K24: =SUM(D24:J24) -> 345
A25: 23 | B25: 993 | C25: P.C. La Garde – Marseille | D25: 60 | E25: 35 | G25: 132 | H25: 110 | K25: =SUM(D25:J25) -> 337
A26: 24 | B26: 2089 | C26: La Farledo Objectif Club | D26: 91 | E26: 99 | F26: 74 | G26: 30 | H26: 36 | K26: =SUM(D26:J26) -> 330
A27: 25 | B27: 2203 | C27: Club Photo de Saignon | E27: 48 | F27: 114 | G27: 63 | H27: 103 | K27: =SUM(D27:J27) -> 328
A28: 26 | B28: 1992 | C28: Photo Club Velauxien – Clin d’Œil | D28: 40 | E28: 72 | F28: 64 | G28: 20 | H28: 76 | K28: =SUM(D28:J28) -> 272
A29: 27 | B29: 2103 | C29: Club Photo St Laurent du Var | D29: 46 | E29: 66 | F29: 142 | K29: =SUM(D29:J29) -> 254
A30: 28 | B30: 2023 | C30: Club Art Déclic de l’ Argens | E30: 18 | F30: 38 | G30: 49 | H30: 117 | K30: =SUM(D30:J30) -> 222
A31: 29 | B31: 1227 | C31: Photo Ciné Club Courthezonnais | F31: 53 | G31: 81 | H31: 76 | K31: =SUM(D31:J31) -> 210
A32: 30 | B32: 462 | C32: Image 2000 | F32: 38 | G32: 45 | H32: 78 | K32: =SUM(D32:J32) -> 161
A33: 31 | B33: 2147 | C33: Club Photo Saint Savournin | G33: 65 | H33: 36 | K33: =SUM(D33:J33) -> 101
A34: 32 | B34: 2217 | C34: ADSB – Club Photo Bouc Bel Air | F34: 30 | G34: 37 | H34: 29 | K34: =SUM(D34:J34) -> 96
A35: 33 | B35: 1899 | C35: Club de l’Image | H35: 78 | K35: =SUM(D35:J35) -> 78
A36: 34 | B36: 921 | C36: Photo Club M.P.T. Vitrolles | G36: 34 | K36: =SUM(D36:J36) -> 34
A37: 35 | B37: 435 | C37: Beausoleil Ciné Photo Club | K37: =SUM(D37:J37) -> 0
A38: 36 | B38: 1426 | C38: Diaphragme et Lumière Var – Ollioules | K38: =SUM(D38:J38) -> 0
A39: 37 | B39: 1441 | C39: Club mage Monaco | K39: =SUM(D39:J39) -> 0
A40: 38 | B40: 1450 | C40: Arc Images- Rousset | K40: =SUM(D40:J40) -> 0
A41: 39 | B41: 1601 | C41: Club Pugetois de L’image | K41: =SUM(D41:J41) -> 0
A42: 40 | B42: 1777 | C42: Club Photo et Vidéo Plan de La Tour | K42: =SUM(D42:J42) -> 0
A43: 41 | B43: 1796 | C43: Ciné Caméra Club de Cannes | K43: =SUM(D43:J43) -> 0
A44: 42 | B44: 1867 | C44: PhotoMenton | K44: =SUM(D44:J44) -> 0
A45: 43 | B45: 1969 | C45: Mission Photo – Cannes la Bocca | K45: =SUM(D45:J45) -> 0
A46: 44 | B46: 1985 | C46: Rognonas Image Regard Espace | K46: =SUM(D46:J46) -> 0
A47: 45 | B47: 2003 | C47: Photo Club Moriérois | K47: =SUM(D47:J47) -> 0
A48: 46 | B48: 2028 | C48: Association Regards du Sud | K48: =SUM(D48:J48) -> 0
A49: 47 | B49: 2158 | C49: Café Photo Marseille | K49: =SUM(D49:J49) -> 0
A50: 48 | B50: 2180 | C50: Photo Club Carry Côte Bleue | K50: =SUM(D50:J50) -> 0
A51: 49 | B51: 2211 | C51: Club Photo UAICF de Gap | K51: =SUM(D51:J51) -> 0
A52: 50 | B52: 2222 | C52: Association Culturelle Photo Club de Neffes | K52: =SUM(D52:J52) -> 0
A53: 80

Sheet Défi-1
A1: colis | B1: photologic | C1: fichier | D1: titre | E1: note1 | F1: note2 | G1: note3 | H1: note4 | I1: note5 | J1: total | K1: place | L1: passage | M1: statut | N1: medaille | O1: retenue
A2: 13 | B2: 1 | C2: 131845003401 | D2: Avant la régate | E2: 9 | F2: 7 | G2: 12 | H2: 0 | I2: 0 | J2: =SUM(E2:I2) -> 28 | K2: 0 | L2: 31 | M2: 0 | O2: 0
A3: 13 | B3: 4 | C3: 130987015701 | D3: Rêve de Mérous | E3: 14 | F3: 17 | G3: 17 | H3: 0 | I3: 0 | J3: =SUM(E3:I3) -> 48 | K3: 0 | L3: 109 | M3: 0 | O3: 0
A4: 13 | B4: 5 | C4: 131845000801 | D4: Le soleil se lève | E4: 13 | F4: 12 | G4: 11 | H4: 0 | I4: 0 | J4: 36 | K4: 0 | L4: 136 | M4: 0 | O4: 0 | R4: ATTENTION :
A5: 13 | B5: 6 | C5: 131845000101 | D5: Skate Park | E5: 12 | F5: 12 | G5: 18 | H5: 0 | I5: 0 | J5: 42 | K5: 0 | L5: 132 | M5: 0 | O5: 0 | R5: Le total des notes est fait sur chaque ongle après insertion.
A6: 13 | B6: 7 | C6: 130987028201 | D6: Water selfie | E6: 13 | F6: 14 | G6: 15 | H6: 0 | I6: 0 | J6: 42 | K6: 0 | L6: 117 | M6: 0 | O6: 0
A7: 13 | B7: 9 | C7: 130987007401 | D7: Adrien | E7: 10 | F7: 11 | G7: 10 | H7: 0 | I7: 0 | J7: 31 | K7: 0 | L7: 79 | M7: 0 | O7: 0 | R7: L'architecture du fichier notation est toujours la même.
A8: 13 | B8: 10 | C8: 131845000301 | D8: Variation d'ocres | E8: 9 | F8: 13 | G8: 14 | H8: 0 | I8: 0 | J8: 36 | K8: 0 | L8: 53 | M8: 0 | O8: 0
A9: 13 | B9: 12 | C9: 131683008001 | D9: Transparences | E9: 19 | F9: 13 | G9: 16 | H9: 0 | I9: 0 | J9: 48 | K9: 0 | L9: 59 | M9: 0 | O9: 0
A10: 13 | B10: 14 | C10: 131499008701 | D10: Geisha | E10: 15 | F10: 14 | G10: 15 | H10: 0 | I10: 0 | J10: 44 | K10: 0 | L10: 43 | M10: 0 | O10: 0
A11: 13 | B11: 15 | C11: 130878013001 | D11: Perle de rose | E11: 11 | F11: 15 | G11: 15 | H11: 0 | I11: 0 | J11: 41 | K11: 0 | L11: 83 | M11: 0 | O11: 0
A12: 13 | B12: 18 | C12: 130987024101 | D12: L'Andine | E12: 12 | F12: 12 | G12: 16 | H12: 0 | I12: 0 | J12: 40 | K12: 0 | L12: 114 | M12: 0 | O12: 0
A13: 13 | B13: 19 | C13: 131992000301 | D13: Le tatoueur de Madurai. | E13: 12 | F13: 12 | G13: 16 | H13: 0 | I13: 0 | J13: 40 | K13: 0 | L13: 25 | M13: 0 | O13: 0
A14: 13 | B14: 20 | C14: 130993015101 | D14: Criquet vert | E14: 6 | F14: 6 | G14: 6 | H14: 0 | I14: 0 | J14: 18 | K14: 0 | L14: 125 | M14: 0 | O14: 0
A15: 13 | B15: 21 | C15: 131879000601 | D15: Hong Kong la nuit | E15: 15 | F15: 17 | G15: 15 | H15: 0 | I15: 0 | J15: 47 | K15: 0 | L15: 4 | M15: 0 | O15: 0
A16: 13 | B16: 22 | C16: 131879000101 | D16: Tangueros | E16: 12 | F16: 16 | G16: 13 | H16: 0 | I16: 0 | J16: 41 | K16: 0 | L16: 67 | M16: 0 | O16: 0
A17: 13 | B17: 24 | C17: 130987024001 | D17: Dorures d'autonne | E17: 16 | F17: 15 | G17: 15 | H17: 0 | I17: 0 | J17: 46 | K17: 0 | L17: 42 | M17: 0 | O17: 0
A18: 13 | B18: 25 | C18: 130987013801 | D18: Maréchal-ferrant | E18: 12 | F18: 12 | G18: 14 | H18: 0 | I18: 0 | J18: 38 | K18: 0 | L18: 58 | M18: 0 | O18: 0
A19: 13 | B19: 27 | C19: 131879000501 | D19: Barques | E19: 12 | F19: 12 | G19: 14 | H19: 0 | I19: 0 | J19: 38 | K19: 0 | L19: 127 | M19: 0 | O19: 0
A20: 13 | B20: 28 | C20: 131376012601 | D20: Utopie | E20: 11 | F20: 12 | G20: 8 | H20: 0 | I20: 0 | J20: 31 | K20: 0 | L20: 60 | M20: 0 | O20: 0
A21: 13 | B21: 29 | C21: 130987024201 | D21: Planet Caraïbes | E21: 14 | F21: 13 | G21: 19 | H21: 0 | I21: 0 | J21: 46 | K21: 0 | L21: 7 | M21: 0 | O21: 0
A22: 13 | B22: 30 | C22: 131824003101 | D22: Ice attack | E22: 12 | F22: 13 | G22: 17 | H22: 0 | I22: 0 | J22: 42 | K22: 0 | L22: 89 | M22: 0 | O22: 0
A23: 13 | B23: 31 | C23: 130987019601 | D23: Fraîcheur | E23: 12 | F23: 14 | G23: 13 | H23: 0 | I23: 0 | J23: 39 | K23: 0 | L23: 1 | M23: 0 | O23: 0
A24: 13 | B24: 32 | C24: 130987019701 | D24: Sommet | E24: 15 | F24: 16 | G24: 20 | H24: 0 | I24: 0 | J24: 51 | K24: 0 | L24: 54 | M24: 0 | O24: 0
A25: 13 | B25: 33 | C25: 130878007201 | D25: Abri multicolore | E25: 13 | F25: 8 | G25: 15 | H25: 0 | I25: 0 | J25: 36 | K25: 0 | L25: 57 | M25: 0 | O25: 0
A26: 13 | B26: 34 | C26: 132193000301 | D26: Ambiance New York | E26: 12 | F26: 18 | G26: 18 | H26: 0 | I26: 0 | J26: 48 | K26: 0 | L26: 69 | M26: 0 | O26: 0
A27: 13 | B27: 35 | C27: 131683006301 | D27: Avant l'orage | E27: 18 | F27: 19 | G27: 20 | H27: 0 | I27: 0 | J27: 57 | K27: 0 | L27: 93 | M27: 0 | O27: 0
A28: 13 | B28: 36 | C28: 132060000101 | D28: Signature artistique | E28: 6 | F28: 16 | G28: 7 | H28: 0 | I28: 0 | J28: 29 | K28: 0 | L28: 26 | M28: 0 | O28: 0
A29: 13 | B29: 37 | C29: 130987014001 | D29: Le coeur dans les nuages | E29: 14 | F29: 15 | G29: 19 | H29: 0 | I29: 0 | J29: 48 | K29: 0 | L29: 61 | M29: 0 | O29: 0
A30: 13 | B30: 38 | C30: 130878014301 | D30: La souffreuse | E30: 12 | F30: 12 | G30: 14 | H30: 0 | I30: 0 | J30: 38 | K30: 0 | L30: 131 | M30: 0 | O30: 0
A31: 13 | B31: 39 | C31: 132086002301 | D31: Parade en rose | E31: 11 | F31: 13 | G31: 12 | H31: 0 | I31: 0 | J31: 36 | K31: 0 | L31: 29 | M31: 0 | O31: 0
A32: 13 | B32: 40 | C32: 132060000701 | D32: Paris La Défense | E32: 13 | F32: 11 | G32: 14 | H32: 0 | I32: 0 | J32: 38 | K32: 0 | L32: 73 | M32: 0 | O32: 0
A33: 13 | B33: 41 | C33: 131376018301 | D33: Rêve d'Orient | E33: 12 | F33: 9 | G33: 10 | H33: 0 | I33: 0 | J33: 31 | K33: 0 | L33: 111 | M33: 0 | O33: 0
A34: 13 | B34: 42 | C34: 130987028801 | D34: Feu Art | E34: 11 | F34: 10 | G34: 15 | H34: 0 | I34: 0 | J34: 36 | K34: 0 | L34: 113 | M34: 0 | O34: 0
A35: 13 | B35: 43 | C35: 131683000701 | D35: SAYONARA | E35: 10 | F35: 11 | G35: 11 | H35: 0 | I35: 0 | J35: 32 | K35: 0 | L35: 2 | M35: 0 | O35: 0
A36: 13 | B36: 44 | C36: 131376014701 | D36: Enfant sous la pluie | E36: 14 | F36: 13 | G36: 16 | H36: 0 | I36: 0 | J36: 43 | K36: 0 | L36: 75 | M36: 0 | O36: 0
A37: 13 | B37: 45 | C37: 131824001901 | D37: Juste une éclaircie | E37: 20 | F37: 14 | G37: 18 | H37: 0 | I37: 0 | J37: 52 | K37: 0 | L37: 126 | M37: 0 | O37: 0
A38: 13 | B38: 46 | C38: 131956005101 | D38: Litter Litter | E38: 9 | F38: 8 | G38: 17 | H38: 0 | I38: 0 | J38: 34 | K38: 0 | L38: 15 | M38: 0 | O38: 0
A39: 13 | B39: 47 | C39: 131353000201 | D39: Fleur | E39: 9 | F39: 11 | G39: 13 | H39: 0 | I39: 0 | J39: 33 | K39: 0 | L39: 41 | M39: 0 | O39: 0
A40: 13 | B40: 48 | C40: 130000019901 | D40: La vie en rose | E40: 10 | F40: 10 | G40: 12 | H40: 0 | I40: 0 | J40: 32 | K40: 0 | L40: 99 | M40: 6 | O40: 0
A41: 13 | B41: 50 | C41: 132084001701 | D41: Champs d'ail | E41: 11 | F41: 18 | G41: 16 | H41: 0 | I41: 0 | J41: 45 | K41: 0 | L41: 129 | M41: 0 | O41: 0
A42: 13 | B42: 51 | C42: 132060002201 | D42: Collégiennes à Londres | E42: 14 | F42: 11 | G42: 16 | H42: 0 | I42: 0 | J42: 41 | K42: 0 | L42: 88 | M42: 0 | O42: 0
A43: 13 | B43: 53 | C43: 130878014101 | D43: Tag | E43: 12 | F43: 14 | G43: 10 | H43: 0 | I43: 0 | J43: 36 | K43: 0 | L43: 92 | M43: 0 | O43: 0
A44: 13 | B44: 55 | C44: 131499010101 | D44: Tout l'océan est à eux | E44: 8 | F44: 10 | G44: 19 | H44: 0 | I44: 0 | J44: 37 | K44: 0 | L44: 108 | M44: 0 | O44: 0
A45: 13 | B45: 56 | C45: 131499005201 | D45: Rèverie | E45: 13 | F45: 16 | G45: 15 | H45: 0 | I45: 0 | J45: 44 | K45: 0 | L45: 39 | M45: 0 | O45: 0
A46: 13 | B46: 57 | C46: 130925010201 | D46: Mae | E46: 12 | F46: 15 | G46: 19 | H46: 0 | I46: 0 | J46: 46 | K46: 0 | L46: 91 | M46: 0 | O46: 0
A47: 13 | B47: 58 | C47: 130987028401 | D47: Marée verte | E47: 6 | F47: 12 | G47: 14 | H47: 0 | I47: 0 | J47: 32 | K47: 0 | L47: 22 | M47: 0 | O47: 0
A48: 13 | B48: 59 | C48: 132193000401 | D48: Multicolore | E48: 12 | F48: 14 | G48: 15 | H48: 0 | I48: 0 | J48: 41 | K48: 0 | L48: 82 | M48: 0 | O48: 0
A49: 13 | B49: 60 | C49: 130527011601 | D49: Repos | E49: 11 | F49: 14 | G49: 14 | H49: 0 | I49: 0 | J49: 39 | K49: 0 | L49: 55 | M49: 0 | O49: 0
A50: 13 | B50: 61 | C50: 131845004101 | D50: Clair et foncé | E50: 7 | F50: 13 | G50: 9 | H50: 0 | I50: 0 | J50: 29 | K50: 0 | L50: 38 | M50: 0 | O50: 0
A51: 13 | B51: 62 | C51: 130993015401 | D51: J'étais la plus belle | E51: 13 | F51: 15 | G51: 14 | H51: 0 | I51: 0 | J51: 42 | K51: 0 | L51: 33 | M51: 0 | O51: 0
A52: 13 | B52: 63 | C52: 131353003001 | D52: Pas facile | E52: 17 | F52: 11 | G52: 17 | H52: 0 | I52: 0 | J52: 45 | K52: 0 | L52: 105 | M52: 0 | O52: 0
A53: 13 | B53: 64 | C53: 131353007101 | D53: Street art | E53: 11 | F53: 13 | G53: 13 | H53: 0 | I53: 0 | J53: 37 | K53: 0 | L53: 116 | M53: 0 | O53: 0
A54: 13 | B54: 65 | C54: 132089000101 | D54: Les Cinq Terres | E54: 11 | F54: 13 | G54: 12 | H54: 0 | I54: 0 | J54: 36 | K54: 0 | L54: 94 | M54: 0 | O54: 0
A55: 13 | B55: 66 | C55: 131376017701 | D55: Dragster | E55: 17 | F55: 16 | G55: 18 | H55: 0 | I55: 0 | J55: 51 | K55: 0 | L55: 20 | M55: 0 | O55: 0
A56: 13 | B56: 67 | C56: 131879000801 | D56: La fille au chapeau | E56: 17 | F56: 16 | G56: 17 | H56: 0 | I56: 0 | J56: 50 | K56: 0 | L56: 115 | M56: 0 | O56: 0
A57: 13 | B57: 68 | C57: 131499010401 | D57: En course | E57: 11 | F57: 12 | G57: 14 | H57: 0 | I57: 0 | J57: 37 | K57: 0 | L57: 56 | M57: 0 | O57: 0
A58: 13 | B58: 69 | C58: 131823004901 | D58: Flamenco à Gorbio | E58: 16 | F58: 14 | G58: 14 | H58: 0 | I58: 0 | J58: 44 | K58: 0 | L58: 64 | M58: 0 | O58: 0
A59: 13 | B59: 70 | C59: 131956004501 | D59: Paganello | E59: 13 | F59: 14 | G59: 11 | H59: 0 | I59: 0 | J59: 38 | K59: 0 | L59: 3 | M59: 0 | O59: 0
A60: 13 | B60: 71 | C60: 131956003401 | D60: Feerie | E60: 11 | F60: 15 | G60: 11 | H60: 0 | I60: 0 | J60: 37 | K60: 0 | L60: 68 | M60: 0 | O60: 0
A61: 13 | B61: 72 | C61: 131683007901 | D61: Regard perçant | E61: 18 | F61: 16 | G61: 20 | H61: 0 | I61: 0 | J61: 54 | K61: 0 | L61: 70 | M61: 0 | O61: 0
A62: 13 | B62: 73 | C62: 131110000901 | D62: Dune | E62: 16 | F62: 17 | G62: 18 | H62: 0 | I62: 0 | J62: 51 | K62: 0 | L62: 130 | M62: 0 | O62: 0
A63: 13 | B63: 74 | C63: 132086001401 | D63: TEMPS DE PAUSE | E63: 10 | F63: 12 | G63: 11 | H63: 0 | I63: 0 | J63: 33 | K63: 0 | L63: 121 | M63: 0 | O63: 0
A64: 13 | B64: 75 | C64: 131499003901 | D64: Ablution | E64: 15 | F64: 14 | G64: 13 | H64: 0 | I64: 0 | J64: 42 | K64: 0 | L64: 107 | M64: 0 | O64: 0
A65: 13 | B65: 76 | C65: 132060001701 | D65: Luminaires | E65: 11 | F65: 14 | G65: 12 | H65: 0 | I65: 0 | J65: 37 | K65: 0 | L65: 101 | M65: 0 | O65: 0
A66: 13 | B66: 77 | C66: 132103002301 | D66: Couleurs du Japon | E66: 12 | F66: 16 | G66: 18 | H66: 0 | I66: 0 | J66: 46 | K66: 0 | L66: 17 | M66: 0 | O66: 0
A67: 13 | B67: 78 | C67: 132089000201 | D67: CD en MACRO | E67: 7 | F67: 8 | G67: 9 | H67: 0 | I67: 0 | J67: =SUM(E67:I67) -> 24 | K67: 0 | L67: 23 | M67: 0 | O67: 0
A68: 13 | B68: 79 | C68: 131862002201 | D68: Automne | E68: 15 | F68: 13 | G68: 13 | H68: 0 | I68: 0 | J68: 41 | K68: 0 | L68: 135 | M68: 0 | O68: 0
A69: 13 | B69: 81 | C69: 131956000401 | D69: Gourmandise | E69: 12 | F69: 9 | G69: 12 | H69: 0 | I69: 0 | J69: 33 | K69: 0 | L69: 112 | M69: 0 | O69: 0
A70: 13 | B70: 82 | C70: 130527012401 | D70: Mistral | E70: 12 | F70: 12 | G70: 17 | H70: 0 | I70: 0 | J70: 41 | K70: 0 | L70: 12 | M70: 0 | O70: 0
A71: 13 | B71: 83 | C71: 131683005101 | D71: La Crau un autre désert | E71: 9 | F71: 12 | G71: 15 | H71: 0 | I71: 0 | J71: 36 | K71: 0 | L71: 84 | M71: 0 | O71: 0
A72: 13 | B72: 84 | C72: 131956006001 | D72: Light under the milky way | E72: 16 | F72: 17 | G72: 17 | H72: 0 | I72: 0 | J72: 50 | K72: 0 | L72: 104 | M72: 0 | O72: 0
A73: 13 | B73: 85 | C73: 132060002001 | D73: Bleu, blanc, rouge | E73: 12 | F73: 15 | G73: 16 | H73: 0 | I73: 0 | J73: 43 | K73: 0 | L73: 137 | M73: 0 | O73: 0
A74: 13 | B74: 86 | C74: 130000020401 | D74: Je t'ai à l'oeil | E74: 8 | F74: 11 | G74: 12 | H74: 0 | I74: 0 | J74: 31 | K74: 0 | L74: 13 | M74: 6 | O74: 0
A75: 13 | B75: 88 | C75: 131619004201 | D75: DEMOISELLE | E75: 6 | F75: 6 | G75: 6 | H75: 0 | I75: 0 | J75: 18 | K75: 0 | L75: 86 | M75: 0 | O75: 0
A76: 13 | B76: 89 | C76: 130527013301 | D76: Rue de Cuba | E76: 13 | F76: 14 | G76: 20 | H76: 0 | I76: 0 | J76: 47 | K76: 0 | L76: 97 | M76: 0 | O76: 0
A77: 13 | B77: 90 | C77: 130527006401 | D77: Bleu, blanc, noir | E77: 6 | F77: 16 | G77: 14 | H77: 0 | I77: 0 | J77: 36 | K77: 0 | L77: 71 | M77: 0 | O77: 0
A78: 13 | B78: 91 | C78: 131879001301 | D78: Le chat | E78: 12 | F78: 15 | G78: 15 | H78: 0 | I78: 0 | J78: 42 | K78: 0 | L78: 118 | M78: 0 | O78: 0
A79: 13 | B79: 92 | C79: 132060002401 | D79: Orchidées incandescents | E79: 7 | F79: 14 | G79: 14 | H79: 0 | I79: 0 | J79: 35 | K79: 0 | L79: 51 | M79: 0 | O79: 0
A80: 13 | B80: 93 | C80: 130527002501 | D80: Parapluies | E80: 14 | F80: 15 | G80: 12 | H80: 0 | I80: 0 | J80: 41 | K80: 0 | L80: 63 | M80: 0 | O80: 0
A81: 13 | B81: 94 | C81: 132060000901 | D81: Face au mur | E81: 13 | F81: 9 | G81: 13 | H81: 0 | I81: 0 | J81: 35 | K81: 0 | L81: 30 | M81: 0 | O81: 0
A82: 13 | B82: 95 | C82: 132060001801 | D82: No limit | E82: 10 | F82: 13 | G82: 15 | H82: 0 | I82: 0 | J82: 38 | K82: 0 | L82: 74 | M82: 0 | O82: 0
A83: 13 | B83: 96 | C83: 131499010501 | D83: Au musée | E83: 9 | F83: 13 | G83: 13 | H83: 0 | I83: 0 | J83: 35 | K83: 0 | L83: 95 | M83: 0 | O83: 0
A84: 13 | B84: 97 | C84: 131499010601 | D84: Petits navires ... | E84: 14 | F84: 15 | G84: 17 | H84: 0 | I84: 0 | J84: 46 | K84: 0 | L84: 47 | M84: 0 | O84: 0
A85: 13 | B85: 98 | C85: 131862001101 | D85: Le guitariste | E85: 10 | F85: 9 | G85: 10 | H85: 0 | I85: 0 | J85: 29 | K85: 0 | L85: 72 | M85: 0 | O85: 0
A86: 13 | B86: 99 | C86: 130987023901 | D86: Street Painting | E86: 10 | F86: 15 | G86: 15 | H86: 0 | I86: 0 | J86: 40 | K86: 0 | L86: 27 | M86: 0 | O86: 0
A87: 13 | B87: 100 | C87: 131499010001 | D87: Une jolie voix de Cassel | E87: 11 | F87: 15 | G87: 16 | H87: 0 | I87: 0 | J87: 42 | K87: 0 | L87: 100 | M87: 0 | O87: 0
A88: 13 | B88: 101 | C88: 130925008401 | D88: Chorégraphie | E88: 16 | F88: 16 | G88: 19 | H88: 0 | I88: 0 | J88: 51 | K88: 0 | L88: 76 | M88: 0 | O88: 0
A89: 13 | B89: 102 | C89: 131499009801 | D89: Mystère | E89: 10 | F89: 15 | G89: 17 | H89: 0 | I89: 0 | J89: 42 | K89: 0 | L89: 10 | M89: 0 | O89: 0
A90: 13 | B90: 104 | C90: 130527015501 | D90: Roses | E90: 14 | F90: 19 | G90: 13 | H90: 0 | I90: 0 | J90: 46 | K90: 0 | L90: 32 | M90: 0 | O90: 0
A91: 13 | B91: 105 | C91: 132060001501 | D91: Profitons vite | E91: 9 | F91: 12 | G91: 14 | H91: 0 | I91: 0 | J91: 35 | K91: 0 | L91: 96 | M91: 0 | O91: 0
A92: 13 | B92: 106 | C92: 130925008601 | D92: Rouge | E92: 13 | F92: 7 | G92: 13 | H92: 0 | I92: 0 | J92: 33 | K92: 0 | L92: 66 | M92: 0 | O92: 0
A93: 13 | B93: 107 | C93: 131353004301 | D93: Vert et rouge | E93: 6 | F93: 6 | G93: 6 | H93: 0 | I93: 0 | J93: 18 | K93: 0 | L93: 90 | M93: 0 | O93: 0
A94: 13 | B94: 108 | C94: 131376011801 | D94: BAMBINS HIMBAS | E94: 14 | F94: 16 | G94: 18 | H94: 0 | I94: 0 | J94: 48 | K94: 0 | L94: 85 | M94: 7 | O94: 0
A95: 13 | B95: 109 | C95: 131619004601 | D95: Balle au nez | E95: 9 | F95: 12 | G95: 14 | H95: 0 | I95: 0 | J95: 35 | K95: 0 | L95: 44 | M95: 0 | O95: 0
A96: 13 | B96: 110 | C96: 130000020801 | D96: Un soir sur la Saône | E96: 13 | F96: 13 | G96: 14 | H96: 0 | I96: 0 | J96: 40 | K96: 0 | L96: 34 | M96: 6 | O96: 0
A97: 13 | B97: 111 | C97: 131110001101 | D97: Lotus au petit matin | E97: 11 | F97: 12 | G97: 13 | H97: 0 | I97: 0 | J97: 36 | K97: 0 | L97: 134 | M97: 0 | O97: 0
A98: 13 | B98: 113 | C98: 131494000201 | D98: Vélo d'enfer | E98: 13 | F98: 10 | G98: 16 | H98: 0 | I98: 0 | J98: 39 | K98: 0 | L98: 78 | M98: 0 | O98: 0
A99: 13 | B99: 114 | C99: 131499009301 | D99: Lights | E99: 8 | F99: 14 | G99: 7 | H99: 0 | I99: 0 | J99: 29 | K99: 0 | L99: 80 | M99: 0 | O99: 0
A100: 13 | B100: 115 | C100: 131823007801 | D100: Eucalyptus | E100: 8 | F100: 10 | G100: 12 | H100: 0 | I100: 0 | J100: 30 | K100: 0 | L100: 11 | M100: 0 | O100: 0
A101: 13 | B101: 116 | C101: 131845002501 | D101: Avenue de Tayac | E101: 7 | F101: 13 | G101: 10 | H101: 0 | I101: 0 | J101: 30 | K101: 0 | L101: 98 | M101: 0 | O101: 0
A102: 13 | B102: 117 | C102: 131499006801 | D102: Reflets sur St Honorat | E102: 13 | F102: 8 | G102: 14 | H102: 0 | I102: 0 | J102: 35 | K102: 0 | L102: 45 | M102: 0 | O102: 0
A103: 13 | B103: 118 | C103: 131845001401 | D103: Seul au monde | E103: 11 | F103: 13 | G103: 17 | H103: 0 | I103: 0 | J103: 41 | K103: 0 | L103: 19 | M103: 0 | O103: 0
A104: 13 | B104: 119 | C104: 130878015201 | D104: Magie des lumières | E104: 13 | F104: 14 | G104: 16 | H104: 0 | I104: 0 | J104: 43 | K104: 0 | L104: 122 | M104: 0 | O104: 0
A105: 13 | B105: 120 | C105: 131823005701 | D105: Cannes régates royales | E105: 10 | F105: 11 | G105: 15 | H105: 0 | I105: 0 | J105: 36 | K105: 0 | L105: 124 | M105: 0 | O105: 0
A106: 13 | B106: 121 | C106: 132060003301 | D106: Floraison | E106: 7 | F106: 11 | G106: 10 | H106: 0 | I106: 0 | J106: 28 | K106: 0 | L106: 128 | M106: 7 | O106: 0
A107: 13 | B107: 122 | C107: 131845004001 | D107: Le cheval de cirque | E107: 7 | F107: 16 | G107: 17 | H107: 0 | I107: 0 | J107: 40 | K107: 0 | L107: 103 | M107: 0 | O107: 0
A108: 13 | B108: 123 | C108: 130925007701 | D108: Arbres pétrifiés | E108: 15 | F108: 13 | G108: 18 | H108: 0 | I108: 0 | J108: 46 | K108: 0 | L108: 37 | M108: 0 | O108: 0
A109: 13 | B109: 124 | C109: 131376017601 | D109: Au fond de mon verre | E109: 11 | F109: 9 | G109: 12 | H109: 0 | I109: 0 | J109: 32 | K109: 0 | L109: 120 | M109: 0 | O109: 0
A110: 13 | B110: 126 | C110: 131683006601 | D110: La fillette et sa glace | E110: 13 | F110: 11 | G110: 16 | H110: 0 | I110: 0 | J110: 40 | K110: 0 | L110: 21 | M110: 0 | O110: 0
A111: 13 | B111: 127 | C111: 131862000801 | D111: Bleu de nice | E111: 15 | F111: 17 | G111: 19 | H111: 0 | I111: 0 | J111: 51 | K111: 0 | L111: 8 | M111: 0 | O111: 0
A112: 13 | B112: 128 | C112: 132089000301 | D112: Festirun | E112: 10 | F112: 10 | G112: 11 | H112: 0 | I112: 0 | J112: 31 | K112: 0 | L112: 40 | M112: 0 | O112: 0
A113: 13 | B113: 129 | C113: 131499003601 | D113: Casquettes | E113: 9 | F113: 10 | G113: 15 | H113: 0 | I113: 0 | J113: 34 | K113: 0 | L113: 102 | M113: 0 | O113: 0
A114: 13 | B114: 130 | C114: 130925009801 | D114: Vite ! | E114: 14 | F114: 14 | G114: 16 | H114: 0 | I114: 0 | J114: 44 | K114: 0 | L114: 18 | M114: 0 | O114: 0
A115: 13 | B115: 131 | C115: 131499008201 | D115: Champ jaune et vert | E115: 12 | F115: 17 | G115: 16 | H115: 0 | I115: 0 | J115: 45 | K115: 0 | L115: 35 | M115: 0 | O115: 0
A116: 13 | B116: 132 | C116: 131376018001 | D116: DemonstrationTimesSquare | E116: 11 | F116: 13 | G116: 14 | H116: 0 | I116: 0 | J116: 38 | K116: 0 | L116: 9 | M116: 0 | O116: 0
A117: 13 | B117: 134 | C117: 131110001001 | D117: Transhumance | E117: 13 | F117: 14 | G117: 14 | H117: 0 | I117: 0 | J117: 41 | K117: 0 | L117: 77 | M117: 0 | O117: 0
A118: 13 | B118: 136 | C118: 131376015801 | D118: Quiétude | E118: 13 | F118: 12 | G118: 11 | H118: 0 | I118: 0 | J118: 36 | K118: 0 | L118: 49 | M118: 0 | O118: 0
A119: 13 | B119: 137 | C119: 131619004501 | D119: Foncouverte | E119: 19 | F119: 14 | G119: 18 | H119: 0 | I119: 0 | J119: 51 | K119: 0 | L119: 133 | M119: 0 | O119: 0
A120: 13 | B120: 138 | C120: 131956005901 | D120: Couleurs de Montréal | E120: 10 | F120: 15 | G120: 18 | H120: 0 | I120: 0 | J120: 43 | K120: 0 | L120: 52 | M120: 0 | O120: 0
A121: 13 | B121: 139 | C121: 132060000401 | D121: Butineuse au travail | E121: 6 | F121: 6 | G121: 6 | H121: 0 | I121: 0 | J121: 18 | K121: 0 | L121: 65 | M121: 0 | O121: 0
A122: 13 | B122: 140 | C122: 131499006901 | D122: Florence | E122: 10 | F122: 16 | G122: 16 | H122: 0 | I122: 0 | J122: 42 | K122: 0 | L122: 81 | M122: 0 | O122: 0
A123: 13 | B123: 141 | C123: 132086002601 | D123: Fluidité arborescente | E123: 8 | F123: 15 | G123: 9 | H123: 0 | I123: 0 | J123: 32 | K123: 0 | L123: 48 | M123: 0 | O123: 0
A124: 13 | B124: 142 | C124: 132060000801 | D124: Entre ciel et terre | E124: 7 | F124: 10 | G124: 13 | H124: 0 | I124: 0 | J124: 30 | K124: 0 | L124: 14 | M124: 0 | O124: 0
A125: 13 | B125: 143 | C125: 131823007601 | D125: Orange Grassoise | E125: 8 | F125: 11 | G125: 14 | H125: 0 | I125: 0 | J125: 33 | K125: 0 | L125: 46 | M125: 0 | O125: 0
A126: 13 | B126: 144 | C126: 130527017001 | D126: Les mots envolés. | E126: 20 | F126: 15 | G126: 20 | H126: 0 | I126: 0 | J126: 55 | K126: 0 | L126: 6 | M126: 0 | O126: 0
A127: 13 | B127: 146 | C127: 132086002501 | D127: Retour du marché | E127: 8 | F127: 13 | G127: 17 | H127: 0 | I127: 0 | J127: 38 | K127: 0 | L127: 123 | M127: 0 | O127: 0
A128: 13 | B128: 148 | C128: 131845002101 | D128: Abandon | E128: 9 | F128: 13 | G128: 16 | H128: 0 | I128: 0 | J128: 38 | K128: 0 | L128: 87 | M128: 0 | O128: 0
A129: 13 | B129: 149 | C129: 131845001101 | D129: ...vers la culture | E129: 14 | F129: 13 | G129: 14 | H129: 0 | I129: 0 | J129: 41 | K129: 0 | L129: 28 | M129: 0 | O129: 0
A130: 13 | B130: 150 | C130: 130527009401 | D130: Chez l'artiste ... | E130: 16 | F130: 18 | G130: 16 | H130: 0 | I130: 0 | J130: 50 | K130: 0 | L130: 50 | M130: 0 | O130: 0
A131: 13 | B131: 151 | C131: 131956002401 | D131: Chut Silence | E131: 8 | F131: 11 | G131: 9 | H131: 0 | I131: 0 | J131: =SUM(E131:I131) -> 28 | K131: 0 | L131: 16 | M131: 0 | O131: 0
A132: 13 | B132: 152 | C132: 131956002901 | D132: Rouge salant | E132: 14 | F132: 14 | G132: 15 | H132: 0 | I132: 0 | J132: 43 | K132: 0 | L132: 5 | M132: 0 | O132: 0
A133: 13 | B133: 153 | C133: 130925009901 | D133: Belles coiffes | E133: 10 | F133: 9 | G133: 11 | H133: 0 | I133: 0 | J133: 30 | K133: 0 | L133: 119 | M133: 0 | O133: 0
A134: 13 | B134: 154 | C134: 132060001201 | D134: Atomes | E134: 15 | F134: 16 | G134: 15 | H134: 0 | I134: 0 | J134: 46 | K134: 0 | L134: 36 | M134: 0 | O134: 0
A135: 13 | B135: 155 | C135: 130987001601 | D135: Envol | E135: 11 | F135: 11 | G135: 13 | H135: 0 | I135: 0 | J135: 35 | K135: 0 | L135: 106 | M135: 0 | O135: 0
A136: 13 | B136: 156 | C136: 131956005701 | D136: Solitudes | E136: 11 | F136: 12 | G136: 13 | H136: 0 | I136: 0 | J136: 36 | K136: 0 | L136: 62 | M136: 0 | O136: 0
A137: 13 | B137: 158 | C137: 131353000701 | D137: Cellulose du Rhône | E137: 14 | F137: 20 | G137: 14 | H137: 0 | I137: 0 | J137: 48 | K137: 0 | L137: 24 | M137: 0 | O137: 0
A138: 13 | B138: 159 | C138: 131353000101 | D138: Ambiance automnale | E138: 14 | F138: 14 | G138: 17 | H138: 0 | I138: 0 | J138: 45 | K138: 0 | L138: 110 | M138: 0 | O138: 0

Sheet Défi-2
A1: colis | B1: photologic | C1: fichier | D1: titre | E1: note1 | F1: note2 | G1: note3 | H1: note4 | I1: note5 | J1: total | K1: place | L1: passage | M1: statut | N1: medaille | O1: retenue
A2: 13 | B2: 1 | C2: 131499010201 | D2: Edsel 1958 Cuba | E2: 12 | F2: 10 | G2: 8 | H2: 0 | I2: 0 | J2: =SUM(E2:I2) -> 30 | K2: 0 | L2: 132 | M2: 0 | O2: 0
A3: 13 | B3: 2 | C3: 131862001101 | D3: Le V | E3: 11 | F3: 10 | G3: 9 | H3: 0 | I3: 0 | J3: =SUM(E3:I3) -> 30 | K3: 0 | L3: 57 | M3: 0 | O3: 0
A4: 13 | B4: 4 | C4: 131683000701 | D4: L'ARBRE DE VIE | E4: 12 | F4: 10 | G4: 8 | H4: 0 | I4: 0 | J4: 30 | K4: 0 | L4: 35 | M4: 0 | O4: 0
A5: 13 | B5: 5 | C5: 132193000301 | D5: Peuple Uros lac Titicaca | E5: 12 | F5: 12 | G5: 13 | H5: 0 | I5: 0 | J5: 37 | K5: 0 | L5: 101 | M5: 7 | O5: 0
A6: 13 | B6: 6 | C6: 130987024201 | D6: La nuit des Sans | E6: 15 | F6: 12 | G6: 16 | H6: 0 | I6: 0 | J6: 43 | K6: 0 | L6: 141 | M6: 0 | O6: 0
A7: 13 | B7: 7 | C7: 130987024101 | D7: Ado Himba | E7: 12 | F7: 12 | G7: 15 | H7: 0 | I7: 0 | J7: 39 | K7: 0 | L7: 87 | M7: 0 | O7: 0
A8: 13 | B8: 8 | C8: 132203000901 | D8: Femme Ousbèque | E8: 14 | F8: 16 | G8: 18 | H8: 0 | I8: 0 | J8: 48 | K8: 0 | L8: 5 | M8: 0 | O8: 0
A9: 13 | B9: 9 | C9: 131879000101 | D9: Fille Akha | E9: 14 | F9: 10 | G9: 17 | H9: 0 | I9: 0 | J9: 41 | K9: 0 | L9: 95 | M9: 0 | O9: 0
A10: 13 | B10: 10 | C10: 131376018301 | D10: Holi | E10: 11 | F10: 11 | G10: 12 | H10: 0 | I10: 0 | J10: 34 | K10: 0 | L10: 38 | M10: 0 | O10: 0
A11: 13 | B11: 11 | C11: 131992000301 | D11: Famille Tamoul. | E11: 11 | F11: 10 | G11: 12 | H11: 0 | I11: 0 | J11: 33 | K11: 0 | L11: 91 | M11: 0 | O11: 0
A12: 13 | B12: 12 | C12: 131683007601 | D12: Don sacré | E12: 13 | F12: 14 | G12: 15 | H12: 0 | I12: 0 | J12: 42 | K12: 0 | L12: 13 | M12: 0 | O12: 0
A13: 13 | B13: 13 | C13: 130527013301 | D13: New york 1 | E13: 13 | F13: 11 | G13: 15 | H13: 0 | I13: 0 | J13: 39 | K13: 0 | L13: 18 | M13: 0 | O13: 0
A14: 13 | B14: 14 | C14: 131823004901 | D14: Pas de doute | E14: 11 | F14: 6 | G14: 8 | H14: 0 | I14: 0 | J14: 25 | K14: 0 | L14: 74 | M14: 0 | O14: 0
A15: 13 | B15: 15 | C15: 131494002101 | D15: Retour à la bergerie | E15: 11 | F15: 9 | G15: 9 | H15: 0 | I15: 0 | J15: 29 | K15: 0 | L15: 1 | M15: 0 | O15: 0
A16: 13 | B16: 17 | C16: 130925010201 | D16: Tempête sur l'Angleterre | E16: 11 | F16: 11 | G16: 8 | H16: 0 | I16: 0 | J16: 30 | K16: 0 | L16: 82 | M16: 0 | O16: 0
A17: 13 | B17: 18 | C17: 130987024001 | D17: Tre Cime | E17: 13 | F17: 12 | G17: 19 | H17: 0 | I17: 0 | J17: 44 | K17: 0 | L17: 129 | M17: 0 | O17: 0
A18: 13 | B18: 19 | C18: 131110001001 | D18: étudiant birman | E18: 12 | F18: 11 | G18: 18 | H18: 0 | I18: 0 | J18: 41 | K18: 0 | L18: 86 | M18: 0 | O18: 0
A19: 13 | B19: 20 | C19: 131376012601 | D19: Festival des cultures | E19: 12 | F19: 9 | G19: 8 | H19: 0 | I19: 0 | J19: 29 | K19: 0 | L19: 17 | M19: 0 | O19: 0
A20: 13 | B20: 21 | C20: 131683008001 | D20: Les tanneurs de Fes | E20: 12 | F20: 16 | G20: 19 | H20: 0 | I20: 0 | J20: 47 | K20: 0 | L20: 135 | M20: 0 | O20: 0
A21: 13 | B21: 22 | C21: 130987028401 | D21: Pêche traditionnelle | E21: 13 | F21: 13 | G21: 12 | H21: 0 | I21: 0 | J21: 38 | K21: 0 | L21: 133 | M21: 0 | O21: 0
A22: 13 | B22: 23 | C22: 131353000201 | D22: Arc en ciel | E22: 13 | F22: 13 | G22: 11 | H22: 0 | I22: 0 | J22: 37 | K22: 0 | L22: 84 | M22: 0 | O22: 0
A23: 13 | B23: 24 | C23: 131879001301 | D23: Inde | E23: 11 | F23: 12 | G23: 7 | H23: 0 | I23: 0 | J23: 30 | K23: 0 | L23: 36 | M23: 0 | O23: 0
A24: 13 | B24: 25 | C24: 131499008701 | D24: Si vaste et si fragile... | E24: 10 | F24: 7 | G24: 12 | H24: 0 | I24: 0 | J24: 29 | K24: 0 | L24: 112 | M24: 0 | O24: 0
A25: 13 | B25: 27 | C25: 132084004001 | D25: La vache et le soldat | E25: 12 | F25: 10 | G25: 18 | H25: 0 | I25: 0 | J25: 40 | K25: 0 | L25: 106 | M25: 0 | O25: 0
A26: 13 | B26: 28 | C26: 131823008801 | D26: Mais pourquoi ? | E26: 11 | F26: 8 | G26: 9 | H26: 0 | I26: 0 | J26: 28 | K26: 0 | L26: 61 | M26: 0 | O26: 0
A27: 13 | B27: 29 | C27: 130987019701 | D27: Venezia | E27: 13 | F27: 11 | G27: 16 | H27: 0 | I27: 0 | J27: 40 | K27: 0 | L27: 69 | M27: 0 | O27: 0
A28: 13 | B28: 30 | C28: 130987019601 | D28: Padaung Karen | E28: 12 | F28: 10 | G28: 15 | H28: 0 | I28: 0 | J28: 37 | K28: 0 | L28: 40 | M28: 0 | O28: 0
A29: 13 | B29: 31 | C29: 131845004101 | D29: Regard réprobateur | E29: 11 | F29: 8 | G29: 15 | H29: 0 | I29: 0 | J29: 34 | K29: 0 | L29: 24 | M29: 0 | O29: 0
A30: 13 | B30: 32 | C30: 131992000401 | D30: Regard envoutant | E30: 13 | F30: 10 | G30: 16 | H30: 0 | I30: 0 | J30: 39 | K30: 0 | L30: 21 | M30: 0 | O30: 0
A31: 13 | B31: 33 | C31: 131879002001 | D31: La faiseuse de briques | E31: 14 | F31: 13 | G31: 20 | H31: 0 | I31: 0 | J31: 47 | K31: 0 | L31: 26 | M31: 0 | O31: 0
A32: 13 | B32: 35 | C32: 131353004301 | D32: Mucem 2016 | E32: 11 | F32: 7 | G32: 10 | H32: 0 | I32: 0 | J32: 28 | K32: 0 | L32: 32 | M32: 0 | O32: 0
A33: 13 | B33: 36 | C33: 130987007401 | D33: Florence | E33: 11 | F33: 13 | G33: 8 | H33: 0 | I33: 0 | J33: 32 | K33: 0 | L33: 105 | M33: 0 | O33: 0
A34: 13 | B34: 37 | C34: 131956005101 | D34: L'Égypte à Madrid | E34: 12 | F34: 11 | G34: 11 | H34: 0 | I34: 0 | J34: 34 | K34: 0 | L34: 16 | M34: 0 | O34: 0
A35: 13 | B35: 38 | C35: 130987014001 | D35: Sourire de Bahia | E35: 12 | F35: 10 | G35: 15 | H35: 0 | I35: 0 | J35: 37 | K35: 0 | L35: 47 | M35: 0 | O35: 0
A36: 13 | B36: 39 | C36: 132084001701 | D36: Venise | E36: 12 | F36: 11 | G36: 13 | H36: 0 | I36: 0 | J36: 36 | K36: 0 | L36: 73 | M36: 0 | O36: 0
A37: 13 | B37: 40 | C37: 132086001401 | D37: Il neige sur Venise | E37: 13 | F37: 13 | G37: 15 | H37: 0 | I37: 0 | J37: 41 | K37: 0 | L37: 102 | M37: 0 | O37: 0
A38: 13 | B38: 41 | C38: 131823008301 | D38: Afrique | E38: 12 | F38: 10 | G38: 18 | H38: 0 | I38: 0 | J38: 40 | K38: 0 | L38: 92 | M38: 0 | O38: 0
A39: 13 | B39: 42 | C39: 131824003101 | D39: Croisement de regard | E39: 11 | F39: 13 | G39: 9 | H39: 0 | I39: 0 | J39: 33 | K39: 0 | L39: 131 | M39: 0 | O39: 0
A40: 13 | B40: 43 | C40: 131499010001 | D40: Dans la cour de l'école | E40: 13 | F40: 15 | G40: 14 | H40: 0 | I40: 0 | J40: 42 | K40: 0 | L40: 44 | M40: 0 | O40: 0
A41: 13 | B41: 44 | C41: 132023000101 | D41: Mésange à la lune | E41: 6 | F41: 6 | G41: 6 | H41: 0 | I41: 0 | J41: 18 | K41: 0 | L41: 55 | M41: 0 | O41: 0
A42: 13 | B42: 45 | C42: 131499005201 | D42: Pizzaiolo | E42: 11 | F42: 7 | G42: 13 | H42: 0 | I42: 0 | J42: 31 | K42: 0 | L42: 46 | M42: 0 | O42: 0
A43: 13 | B43: 46 | C43: 131376017601 | D43: Les touristes | E43: 9 | F43: 6 | G43: 9 | H43: 0 | I43: 0 | J43: 24 | K43: 0 | L43: 64 | M43: 0 | O43: 0
A44: 13 | B44: 47 | C44: 131683006301 | D44: Regards indiens | E44: 12 | F44: 15 | G44: 9 | H44: 0 | I44: 0 | J44: 36 | K44: 0 | L44: 127 | M44: 0 | O44: 0
A45: 13 | B45: 48 | C45: 131824001901 | D45: Auprès de mon arbre.... | E45: 13 | F45: 9 | G45: 18 | H45: 0 | I45: 0 | J45: 40 | K45: 0 | L45: 62 | M45: 0 | O45: 0
A46: 13 | B46: 49 | C46: 130925009801 | D46: Shanghai | E46: 12 | F46: 10 | G46: 14 | H46: 0 | I46: 0 | J46: 36 | K46: 0 | L46: 11 | M46: 0 | O46: 0
A47: 13 | B47: 50 | C47: 130000020401 | D47: Khiva - La Roue | E47: 13 | F47: 11 | G47: 13 | H47: 0 | I47: 0 | J47: 37 | K47: 0 | L47: 123 | M47: 6 | O47: 0
A48: 13 | B48: 51 | C48: 132193000501 | D48: Guerrier irlandais | E48: 11 | F48: 7 | G48: 7 | H48: 0 | I48: 0 | J48: 25 | K48: 0 | L48: 41 | M48: 7 | O48: 0
A49: 13 | B49: 52 | C49: 131956003401 | D49: Regard de la foret | E49: 11 | F49: 6 | G49: 7 | H49: 0 | I49: 0 | J49: 24 | K49: 0 | L49: 56 | M49: 0 | O49: 0
A50: 13 | B50: 53 | C50: 132086002501 | D50: Le Chianti moderne | E50: 14 | F50: 7 | G50: 11 | H50: 0 | I50: 0 | J50: 32 | K50: 0 | L50: 29 | M50: 0 | O50: 0
A51: 13 | B51: 54 | C51: 131683005101 | D51: Clarisse | E51: 15 | F51: 6 | G51: 12 | H51: 0 | I51: 0 | J51: 33 | K51: 0 | L51: 126 | M51: 0 | O51: 0
A52: 13 | B52: 55 | C52: 130987012601 | D52: Taxi à Tokyo. | E52: 12 | F52: 12 | G52: 17 | H52: 0 | I52: 0 | J52: 41 | K52: 0 | L52: 136 | M52: 0 | O52: 0
A53: 13 | B53: 56 | C53: 130993016501 | D53: Reflet_Asie | E53: 13 | F53: 12 | G53: 10 | H53: 0 | I53: 0 | J53: 35 | K53: 0 | L53: 31 | M53: 0 | O53: 0
A54: 13 | B54: 57 | C54: 131862001001 | D54: Petite Vietnamienne | E54: 12 | F54: 12 | G54: 15 | H54: 0 | I54: 0 | J54: 39 | K54: 0 | L54: 139 | M54: 0 | O54: 0
A55: 13 | B55: 58 | C55: 132084003501 | D55: Coiffes Himbas | E55: 14 | F55: 12 | G55: 17 | H55: 0 | I55: 0 | J55: 43 | K55: 0 | L55: 34 | M55: 0 | O55: 0
A56: 13 | B56: 59 | C56: 132084003601 | D56: Kaokoland airport | E56: 11 | F56: 12 | G56: 10 | H56: 0 | I56: 0 | J56: 33 | K56: 0 | L56: 98 | M56: 0 | O56: 0
A57: 13 | B57: 60 | C57: 131353007301 | D57: LAGUNA COLORADA BOLIVIE | E57: 14 | F57: 11 | G57: 15 | H57: 0 | I57: 0 | J57: 40 | K57: 0 | L57: 37 | M57: 0 | O57: 0
A58: 13 | B58: 61 | C58: 130878014301 | D58: L’œil de la terre | E58: 10 | F58: 6 | G58: 7 | H58: 0 | I58: 0 | J58: 23 | K58: 0 | L58: 7 | M58: 0 | O58: 0
A59: 13 | B59: 62 | C59: 131353003001 | D59: Regard de l'inconnue | E59: 12 | F59: 6 | G59: 12 | H59: 0 | I59: 0 | J59: 30 | K59: 0 | L59: 48 | M59: 0 | O59: 0
A60: 13 | B60: 63 | C60: 130878014101 | D60: Orientation | E60: 11 | F60: 7 | G60: 19 | H60: 0 | I60: 0 | J60: 37 | K60: 0 | L60: 76 | M60: 0 | O60: 0
A61: 13 | B61: 64 | C61: 131619005001 | D61: Regard sur le haut atlas | E61: 11 | F61: 15 | G61: 13 | H61: 0 | I61: 0 | J61: 39 | K61: 0 | L61: 77 | M61: 0 | O61: 0
A62: 13 | B62: 65 | C62: 131879000501 | D62: Tromso | E62: 14 | F62: 14 | G62: 11 | H62: 0 | I62: 0 | J62: 39 | K62: 0 | L62: 142 | M62: 0 | O62: 0
A63: 13 | B63: 66 | C63: 131956002601 | D63: Berlin | E63: 14 | F63: 14 | G63: 16 | H63: 0 | I63: 0 | J63: 44 | K63: 0 | L63: 68 | M63: 0 | O63: 0
A64: 13 | B64: 67 | C64: 131823008701 | D64: école en Sulawesi | E64: 12 | F64: 13 | G64: 16 | H64: 0 | I64: 0 | J64: 41 | K64: 0 | L64: 97 | M64: 0 | O64: 0
A65: 13 | B65: 68 | C65: 130925008601 | D65: Amerique | E65: 13 | F65: 7 | G65: 16 | H65: 0 | I65: 0 | J65: 36 | K65: 0 | L65: 85 | M65: 0 | O65: 0
A66: 13 | B66: 69 | C66: 130878013601 | D66: L'enfant et le torri | E66: 12 | F66: 9 | G66: 13 | H66: 0 | I66: 0 | J66: 34 | K66: 0 | L66: 72 | M66: 0 | O66: 0
A67: 13 | B67: 70 | C67: 131845004001 | D67: VIETAMIENNE | E67: 11 | F67: 9 | G67: 13 | H67: 0 | I67: 0 | J67: =SUM(E67:I67) -> 33 | K67: 0 | L67: 66 | M67: 0 | O67: 0
A68: 13 | B68: 71 | C68: 130925007601 | D68: Famille Himba | E68: 14 | F68: 13 | G68: 17 | H68: 0 | I68: 0 | J68: 44 | K68: 0 | L68: 45 | M68: 0 | O68: 0
A69: 13 | B69: 72 | C69: 130925007701 | D69: Regards d'enfants | E69: 14 | F69: 17 | G69: 19 | H69: 0 | I69: 0 | J69: 50 | K69: 0 | L69: 119 | M69: 0 | O69: 0
A70: 13 | B70: 73 | C70: 132060001701 | D70: Enfant gitan de la mer | E70: 14 | F70: 14 | G70: 17 | H70: 0 | I70: 0 | J70: 45 | K70: 0 | L70: 42 | M70: 0 | O70: 0
A71: 13 | B71: 74 | C71: 131862000801 | D71: Le Chat du Rabin | E71: 11 | F71: 6 | G71: 7 | H71: 0 | I71: 0 | J71: 24 | K71: 0 | L71: 78 | M71: 0 | O71: 0
A72: 13 | B72: 75 | C72: 132084000301 | D72: Croisère à Kotor | E72: 14 | F72: 11 | G72: 14 | H72: 0 | I72: 0 | J72: 39 | K72: 0 | L72: 120 | M72: 0 | O72: 0
A73: 13 | B73: 76 | C73: 130000019901 | D73: Recueillement | E73: 13 | F73: 13 | G73: 15 | H73: 0 | I73: 0 | J73: 41 | K73: 0 | L73: 115 | M73: 6 | O73: 0
A74: 13 | B74: 77 | C74: 132193000401 | D74: Un pont entre 2 mondes | E74: 12 | F74: 12 | G74: 13 | H74: 0 | I74: 0 | J74: 37 | K74: 0 | L74: 93 | M74: 7 | O74: 0
A75: 13 | B75: 78 | C75: 131956004601 | D75: Regards sur notre galaxie | E75: 13 | F75: 19 | G75: 15 | H75: 0 | I75: 0 | J75: 47 | K75: 0 | L75: 20 | M75: 0 | O75: 0
A76: 13 | B76: 79 | C76: 130987015701 | D76: Les Falaises de Moher | E76: 14 | F76: 9 | G76: 16 | H76: 0 | I76: 0 | J76: 39 | K76: 0 | L76: 111 | M76: 0 | O76: 0
A77: 13 | B77: 80 | C77: 131956001401 | D77: Regard Colombien | E77: 11 | F77: 10 | G77: 11 | H77: 0 | I77: 0 | J77: 32 | K77: 0 | L77: 134 | M77: 0 | O77: 0
A78: 13 | B78: 81 | C78: 131862002201 | D78: Matsumoto. Japon | E78: 12 | F78: 11 | G78: 12 | H78: 0 | I78: 0 | J78: 35 | K78: 0 | L78: 50 | M78: 0 | O78: 0
A79: 13 | B79: 82 | C79: 132089000201 | D79: Au Radjastan | E79: 10 | F79: 11 | G79: 10 | H79: 0 | I79: 0 | J79: 31 | K79: 0 | L79: 6 | M79: 0 | O79: 0
A80: 13 | B80: 83 | C80: 131862005801 | D80: Suivez mon regard | E80: 11 | F80: 11 | G80: 12 | H80: 0 | I80: 0 | J80: 34 | K80: 0 | L80: 52 | M80: 0 | O80: 0
A81: 13 | B81: 84 | C81: 131956004501 | D81: Aquarius | E81: 12 | F81: 14 | G81: 12 | H81: 0 | I81: 0 | J81: 38 | K81: 0 | L81: 54 | M81: 0 | O81: 0
A82: 13 | B82: 85 | C82: 131110001101 | D82: Le petit guitariste | E82: 11 | F82: 6 | G82: 7 | H82: 0 | I82: 0 | J82: 24 | K82: 0 | L82: 108 | M82: 0 | O82: 0
A83: 13 | B83: 86 | C83: 132060000701 | D83: Flamenco andalou | E83: 12 | F83: 10 | G83: 7 | H83: 0 | I83: 0 | J83: 29 | K83: 0 | L83: 30 | M83: 0 | O83: 0
A84: 13 | B84: 87 | C84: 131494002301 | D84: Gondoles | E84: 11 | F84: 10 | G84: 14 | H84: 0 | I84: 0 | J84: 35 | K84: 0 | L84: 113 | M84: 0 | O84: 0
A85: 13 | B85: 88 | C85: 131494000201 | D85: Enfants Masaï | E85: 14 | F85: 11 | G85: 9 | H85: 0 | I85: 0 | J85: 34 | K85: 0 | L85: 121 | M85: 0 | O85: 0
A86: 13 | B86: 89 | C86: 131845003401 | D86: Flotte internationale | E86: 11 | F86: 6 | G86: 10 | H86: 0 | I86: 0 | J86: 27 | K86: 0 | L86: 96 | M86: 0 | O86: 0
A87: 13 | B87: 91 | C87: 132089000501 | D87: Ma Thaïlande | E87: 12 | F87: 14 | G87: 13 | H87: 0 | I87: 0 | J87: 39 | K87: 0 | L87: 125 | M87: 0 | O87: 0
A88: 13 | B88: 92 | C88: 131845002101 | D88: Baigneuse coréenne | E88: 11 | F88: 10 | G88: 13 | H88: 0 | I88: 0 | J88: 34 | K88: 0 | L88: 117 | M88: 0 | O88: 0
A89: 13 | B89: 93 | C89: 131956005501 | D89: European flags | E89: 10 | F89: 14 | G89: 9 | H89: 0 | I89: 0 | J89: 33 | K89: 0 | L89: 81 | M89: 0 | O89: 0
A90: 13 | B90: 94 | C90: 131376014701 | D90: Le cri | E90: 9 | F90: 7 | G90: 7 | H90: 0 | I90: 0 | J90: 23 | K90: 0 | L90: 118 | M90: 0 | O90: 0
A91: 13 | B91: 95 | C91: 131845002501 | D91: Séville. Place d'Espagne. | E91: 14 | F91: 14 | G91: 13 | H91: 0 | I91: 0 | J91: 41 | K91: 0 | L91: 99 | M91: 0 | O91: 0
A92: 13 | B92: 96 | C92: 131110000901 | D92: Marcher sur l'eau | E92: 13 | F92: 12 | G92: 20 | H92: 0 | I92: 0 | J92: 45 | K92: 0 | L92: 103 | M92: 0 | O92: 0
A93: 13 | B93: 97 | C93: 131683006601 | D93: Un kilt assumé | E93: 11 | F93: 8 | G93: 7 | H93: 0 | I93: 0 | J93: 26 | K93: 0 | L93: 39 | M93: 0 | O93: 0
A94: 13 | B94: 98 | C94: 131499010801 | D94: Hommage de New York | E94: 12 | F94: 9 | G94: 9 | H94: 0 | I94: 0 | J94: 30 | K94: 0 | L94: 51 | M94: 0 | O94: 0
A95: 13 | B95: 99 | C95: 131353007401 | D95: Regards de Bolivie | E95: 14 | F95: 12 | G95: 12 | H95: 0 | I95: 0 | J95: 38 | K95: 0 | L95: 4 | M95: 0 | O95: 0
A96: 13 | B96: 100 | C96: 132193001201 | D96: La potion magique | E96: 12 | F96: 12 | G96: 10 | H96: 0 | I96: 0 | J96: 34 | K96: 0 | L96: 130 | M96: 7 | O96: 0
A97: 13 | B97: 101 | C97: 130878013401 | D97: 01 Globe terreste | E97: 11 | F97: 11 | G97: 8 | H97: 0 | I97: 0 | J97: 30 | K97: 0 | L97: 63 | M97: 0 | O97: 0
A98: 13 | B98: 102 | C98: 130987023901 | D98: Love in the air | E98: 11 | F98: 8 | G98: 11 | H98: 0 | I98: 0 | J98: 30 | K98: 0 | L98: 8 | M98: 0 | O98: 0
A99: 13 | B99: 103 | C99: 131956006201 | D99: Larmes de sang | E99: 12 | F99: 6 | G99: 7 | H99: 0 | I99: 0 | J99: 25 | K99: 0 | L99: 109 | M99: 0 | O99: 0
A100: 13 | B100: 104 | C100: 130527002501 | D100: Internation | E100: 12 | F100: 11 | G100: 14 | H100: 0 | I100: 0 | J100: 37 | K100: 0 | L100: 144 | M100: 0 | O100: 0
A101: 13 | B101: 105 | C101: 130527012601 | D101: Transport | E101: 12 | F101: 10 | G101: 15 | H101: 0 | I101: 0 | J101: 37 | K101: 0 | L101: 143 | M101: 0 | O101: 0
A102: 13 | B102: 106 | C102: 132060000801 | D102: Vision cubaine | E102: 11 | F102: 10 | G102: 11 | H102: 0 | I102: 0 | J102: 32 | K102: 0 | L102: 122 | M102: 0 | O102: 0
A103: 13 | B103: 107 | C103: 132103000101 | D103: Quel vol déja | E103: 8 | F103: 7 | G103: 8 | H103: 0 | I103: 0 | J103: 23 | K103: 0 | L103: 124 | M103: 0 | O103: 0
A104: 13 | B104: 108 | C104: 132086002301 | D104: Le poids des traditions | E104: 10 | F104: 11 | G104: 10 | H104: 0 | I104: 0 | J104: 31 | K104: 0 | L104: 14 | M104: 0 | O104: 0
A105: 13 | B105: 109 | C105: 131956000201 | D105: Femme lepcha sikkim inde | E105: 11 | F105: 18 | G105: 18 | H105: 0 | I105: 0 | J105: 47 | K105: 0 | L105: 60 | M105: 0 | O105: 0
A106: 13 | B106: 110 | C106: 131879000601 | D106: Magique Islande | E106: 12 | F106: 10 | G106: 15 | H106: 0 | I106: 0 | J106: 37 | K106: 0 | L106: 107 | M106: 0 | O106: 0
A107: 13 | B107: 111 | C107: 131683007901 | D107: Lueur D'espoir | E107: 12 | F107: 7 | G107: 20 | H107: 0 | I107: 0 | J107: 39 | K107: 0 | L107: 128 | M107: 0 | O107: 0
A108: 13 | B108: 112 | C108: 131862001401 | D108: Vahine | E108: 11 | F108: 9 | G108: 7 | H108: 0 | I108: 0 | J108: 27 | K108: 0 | L108: 49 | M108: 0 | O108: 0
A109: 13 | B109: 113 | C109: 132086002601 | D109: Regards partagés | E109: 12 | F109: 6 | G109: 8 | H109: 0 | I109: 0 | J109: 26 | K109: 0 | L109: 27 | M109: 0 | O109: 0
A110: 13 | B110: 114 | C110: 132060002201 | D110: Festival du rire Montréal | E110: 11 | F110: 10 | G110: 8 | H110: 0 | I110: 0 | J110: 29 | K110: 0 | L110: 58 | M110: 0 | O110: 0
A111: 13 | B111: 115 | C111: 131353007101 | D111: Regads de l'étranger | E111: 11 | F111: 9 | G111: 10 | H111: 0 | I111: 0 | J111: 30 | K111: 0 | L111: 67 | M111: 0 | O111: 0
A112: 13 | B112: 116 | C112: 131823005701 | D112: Lever-soleil-Suède | E112: 9 | F112: 12 | G112: 7 | H112: 0 | I112: 0 | J112: 28 | K112: 0 | L112: 83 | M112: 0 | O112: 0
A113: 13 | B113: 117 | C113: 131956005701 | D113: Bancroft way Berkeley | E113: 10 | F113: 12 | G113: 9 | H113: 0 | I113: 0 | J113: 31 | K113: 0 | L113: 116 | M113: 0 | O113: 0
A114: 13 | B114: 118 | C114: 132060001801 | D114: Jiwa et la femme au betel | E114: 12 | F114: 12 | G114: 14 | H114: 0 | I114: 0 | J114: 38 | K114: 0 | L114: 94 | M114: 0 | O114: 0
A115: 13 | B115: 119 | C115: 130527009201 | D115: Aki Matsuri | E115: 12 | F115: 12 | G115: 11 | H115: 0 | I115: 0 | J115: 35 | K115: 0 | L115: 2 | M115: 0 | O115: 0
A116: 13 | B116: 120 | C116: 130987001601 | D116: Marché Gabonais | E116: 10 | F116: 10 | G116: 16 | H116: 0 | I116: 0 | J116: 36 | K116: 0 | L116: 114 | M116: 0 | O116: 0
A117: 13 | B117: 121 | C117: 132060002401 | D117: Voyage familial | E117: 12 | F117: 12 | G117: 7 | H117: 0 | I117: 0 | J117: 31 | K117: 0 | L117: 75 | M117: 0 | O117: 0
A118: 13 | B118: 122 | C118: 130527009401 | D118: Bella ciao | E118: 13 | F118: 20 | G118: 20 | H118: 0 | I118: 0 | J118: 53 | K118: 0 | L118: 43 | M118: 0 | O118: 0
A119: 13 | B119: 123 | C119: 131499006801 | D119: Retour des troupeaux | E119: 13 | F119: 14 | G119: 12 | H119: 0 | I119: 0 | J119: 39 | K119: 0 | L119: 33 | M119: 0 | O119: 0
A120: 13 | B120: 124 | C120: 130527017001 | D120: Un monde curieux. | E120: 15 | F120: 13 | G120: 12 | H120: 0 | I120: 0 | J120: 40 | K120: 0 | L120: 12 | M120: 0 | O120: 0
A121: 13 | B121: 125 | C121: 131376018001 | D121: Immigration | E121: 11 | F121: 15 | G121: 12 | H121: 0 | I121: 0 | J121: 38 | K121: 0 | L121: 104 | M121: 0 | O121: 0
A122: 13 | B122: 127 | C122: 131499008201 | D122: Train à Madagascar | E122: 15 | F122: 11 | G122: 15 | H122: 0 | I122: 0 | J122: 41 | K122: 0 | L122: 138 | M122: 0 | O122: 0
A123: 13 | B123: 128 | C123: 131845001401 | D123: Voyage | E123: 12 | F123: 6 | G123: 16 | H123: 0 | I123: 0 | J123: 34 | K123: 0 | L123: 70 | M123: 0 | O123: 0
A124: 13 | B124: 129 | C124: 131499003601 | D124: Gargote japonaise | E124: 11 | F124: 14 | G124: 8 | H124: 0 | I124: 0 | J124: 33 | K124: 0 | L124: 19 | M124: 0 | O124: 0
A125: 13 | B125: 130 | C125: 130987002301 | D125: Entrez sans frapper | E125: 13 | F125: 13 | G125: 18 | H125: 0 | I125: 0 | J125: 44 | K125: 0 | L125: 88 | M125: 0 | O125: 0
A126: 13 | B126: 131 | C126: 132089000101 | D126: Milan 2015 | E126: 11 | F126: 10 | G126: 8 | H126: 0 | I126: 0 | J126: 29 | K126: 0 | L126: 100 | M126: 0 | O126: 0
A127: 13 | B127: 132 | C127: 131499006901 | D127: Les tanneurs de Fès | E127: 14 | F127: 12 | G127: 19 | H127: 0 | I127: 0 | J127: 45 | K127: 0 | L127: 9 | M127: 0 | O127: 0
A128: 13 | B128: 133 | C128: 130925009901 | D128: Tatouage | E128: 12 | F128: 9 | G128: 17 | H128: 0 | I128: 0 | J128: 38 | K128: 0 | L128: 89 | M128: 0 | O128: 0
A129: 13 | B129: 134 | C129: 131619004501 | D129: Colisé | E129: 14 | F129: 15 | G129: 19 | H129: 0 | I129: 0 | J129: 48 | K129: 0 | L129: 10 | M129: 0 | O129: 0
A130: 13 | B130: 135 | C130: 132084002301 | D130: Moaïs | E130: 13 | F130: 9 | G130: 15 | H130: 0 | I130: 0 | J130: 37 | K130: 0 | L130: 137 | M130: 0 | O130: 0
A131: 13 | B131: 136 | C131: 130925008401 | D131: Temps passé | E131: 15 | F131: 7 | G131: 17 | H131: 0 | I131: 0 | J131: =SUM(E131:I131) -> 39 | K131: 0 | L131: 140 | M131: 0 | O131: 0
A132: 13 | B132: 137 | C132: 130987025001 | D132: Repos du pêcheur | E132: 13 | F132: 14 | G132: 12 | H132: 0 | I132: 0 | J132: 39 | K132: 0 | L132: 80 | M132: 0 | O132: 0
A133: 13 | B133: 138 | C133: 131499010601 | D133: Journal birman | E133: 12 | F133: 11 | G133: 17 | H133: 0 | I133: 0 | J133: 40 | K133: 0 | L133: 71 | M133: 0 | O133: 0
A134: 13 | B134: 139 | C134: 131499010501 | D134: Retour de marché | E134: 12 | F134: 13 | G134: 16 | H134: 0 | I134: 0 | J134: 41 | K134: 0 | L134: 59 | M134: 0 | O134: 0
A135: 13 | B135: 140 | C135: 130527012401 | D135: Allée de baobabs | E135: 13 | F135: 10 | G135: 13 | H135: 0 | I135: 0 | J135: 36 | K135: 0 | L135: 22 | M135: 0 | O135: 0
A136: 13 | B136: 141 | C136: 131353006201 | D136: La tour olympique | E136: 11 | F136: 11 | G136: 9 | H136: 0 | I136: 0 | J136: 31 | K136: 0 | L136: 3 | M136: 0 | O136: 0
A137: 13 | B137: 142 | C137: 131683006501 | D137: A la croix del condor | E137: 11 | F137: 9 | G137: 8 | H137: 0 | I137: 0 | J137: 28 | K137: 0 | L137: 110 | M137: 0 | O137: 0
A138: 13 | B138: 143 | C138: 131683002601 | D138: Lumière sublime d'Afrique | E138: 14 | F138: 11 | G138: 12 | H138: 0 | I138: 0 | J138: 37 | K138: 0 | L138: 65 | M138: 0 | O138: 0
A139: 13 | B139: 144 | C139: 131823006401 | D139: Flash sur l'artiste | E139: 12 | F139: 7 | G139: 19 | H139: 0 | I139: 0 | J139: 38 | K139: 0 | L139: 53 | M139: 0 | O139: 0
A140: 13 | B140: 145 | C140: 131353006101 | D140: Santorin | E140: 13 | F140: 11 | G140: 17 | H140: 0 | I140: 0 | J140: 41 | K140: 0 | L140: 15 | M140: 0 | O140: 0
A141: 13 | B141: 146 | C141: 132060000901 | D141: Lever de soleil africain | E141: 12 | F141: 9 | G141: 7 | H141: 0 | I141: 0 | J141: 28 | K141: 0 | L141: 28 | M141: 7 | O141: 0
A142: 13 | B142: 147 | C142: 130925008701 | D142: Derviche tourneur | E142: 13 | F142: 10 | G142: 11 | H142: 0 | I142: 0 | J142: 34 | K142: 0 | L142: 145 | M142: 0 | O142: 0
A143: 13 | B143: 148 | C143: 132103002301 | D143: Les yeux de l'Inde | E143: 13 | F143: 13 | G143: 17 | H143: 0 | I143: 0 | J143: 43 | K143: 0 | L143: 79 | M143: 0 | O143: 0
A144: 13 | B144: 149 | C144: 131956002401 | D144: Réunion au sommet - lima | E144: 12 | F144: 12 | G144: 12 | H144: 0 | I144: 0 | J144: 36 | K144: 0 | L144: 23 | M144: 0 | O144: 0
A145: 13 | B145: 150 | C145: 131353000101 | D145: Travail des rizières | E145: 13 | F145: 11 | G145: 12 | H145: 0 | I145: 0 | J145: 36 | K145: 0 | L145: 25 | M145: 0 | O145: 0
A146: 13 | B146: 151 | C146: 131353000701 | D146: Vietnamese little girls | E146: 12 | F146: 12 | G146: 18 | H146: 0 | I146: 0 | J146: 42 | K146: 0 | L146: 90 | M146: 0 | O146: 0

Sheet Défi-3
A1: colis | B1: photologic | C1: fichier | D1: titre | E1: note1 | F1: note2 | G1: note3 | H1: note4 | I1: note5 | J1: total | K1: place | L1: passage | M1: statut | N1: medaille | O1: retenue
A2: 13 | B2: 1 | C2: 130987024201 | D2: Cracheur de Feu | E2: 17 | F2: 18 | G2: 13 | H2: 0 | I2: 0 | J2: =SUM(E2:I2) -> 48 | K2: 0 | L2: 50 | M2: 0 | O2: 0
A3: 13 | B3: 2 | C3: 130987024101 | D3: A l'affut | E3: 15 | F3: 11 | G3: 10 | H3: 0 | I3: 0 | J3: =SUM(E3:I3) -> 36 | K3: 0 | L3: 65 | M3: 0 | O3: 0
A4: 13 | B4: 4 | C4: 130987012601 | D4: Répétition. | E4: 14 | F4: 15 | G4: 13 | H4: 0 | I4: 0 | J4: 42 | K4: 0 | L4: 149 | M4: 0 | O4: 0
A5: 13 | B5: 5 | C5: 131376018301 | D5: La poursuite | E5: 19 | F5: 18 | G5: 20 | H5: 0 | I5: 0 | J5: 57 | K5: 0 | L5: 132 | M5: 0 | O5: 0
A6: 13 | B6: 6 | C6: 132193000601 | D6: Proue inversée | E6: 17 | F6: 14 | G6: 13 | H6: 0 | I6: 0 | J6: 44 | K6: 0 | L6: 26 | M6: 0 | O6: 0
A7: 13 | B7: 7 | C7: 131683008001 | D7: Espiègle | E7: 16 | F7: 19 | G7: 12 | H7: 0 | I7: 0 | J7: 47 | K7: 0 | L7: 153 | M7: 0 | O7: 0
A8: 13 | B8: 8 | C8: 131823008301 | D8: Portrait de rue | E8: 16 | F8: 18 | G8: 14 | H8: 0 | I8: 0 | J8: 48 | K8: 0 | L8: 12 | M8: 0 | O8: 0
A9: 13 | B9: 9 | C9: 132103000101 | D9: Prendre de le temps | E9: 19 | F9: 19 | G9: 17 | H9: 0 | I9: 0 | J9: 55 | K9: 0 | L9: 152 | M9: 0 | O9: 0
A10: 13 | B10: 10 | C10: 131494003201 | D10: Jeans | E10: 15 | F10: 13 | G10: 11 | H10: 0 | I10: 0 | J10: 39 | K10: 0 | L10: 64 | M10: 0 | O10: 0
A11: 13 | B11: 11 | C11: 130000021001 | D11: Un voyage à LONDRES | E11: 7 | F11: 6 | G11: 8 | H11: 0 | I11: 0 | J11: 21 | K11: 0 | L11: 137 | M11: 6 | O11: 0
A12: 13 | B12: 12 | C12: 130987029901 | D12: Rodin.jpg | E12: 9 | F12: 11 | G12: 11 | H12: 0 | I12: 0 | J12: 31 | K12: 0 | L12: 113 | M12: 0 | O12: 0
A13: 13 | B13: 13 | C13: 131683007601 | D13: Maillot jaune | E13: 11 | F13: 10 | G13: 10 | H13: 0 | I13: 0 | J13: 31 | K13: 0 | L13: 20 | M13: 0 | O13: 0
A14: 13 | B14: 14 | C14: 131823004901 | D14: Ça chauffe | E14: 14 | F14: 16 | G14: 13 | H14: 0 | I14: 0 | J14: 43 | K14: 0 | L14: 48 | M14: 0 | O14: 0
A15: 13 | B15: 15 | C15: 131683005001 | D15: Rêverie | E15: 14 | F15: 13 | G15: 12 | H15: 0 | I15: 0 | J15: 39 | K15: 0 | L15: 31 | M15: 0 | O15: 0
A16: 13 | B16: 16 | C16: 131499008701 | D16: Suivre notre chemin... | E16: 13 | F16: 14 | G16: 12 | H16: 0 | I16: 0 | J16: 39 | K16: 0 | L16: 158 | M16: 0 | O16: 0
A17: 13 | B17: 17 | C17: 132193000301 | D17: Salsa | E17: 20 | F17: 7 | G17: 13 | H17: 0 | I17: 0 | J17: 40 | K17: 0 | L17: 4 | M17: 0 | O17: 0
A18: 13 | B18: 18 | C18: 131823008701 | D18: Jusqu'au ciel | E18: 8 | F18: 10 | G18: 10 | H18: 0 | I18: 0 | J18: 28 | K18: 0 | L18: 115 | M18: 0 | O18: 0
A19: 13 | B19: 20 | C19: 130987028401 | D19: Sensibilité de Granit | E19: 11 | F19: 7 | G19: 9 | H19: 0 | I19: 0 | J19: 27 | K19: 0 | L19: 93 | M19: 0 | O19: 0
A20: 13 | B20: 21 | C20: 131824001901 | D20: Terre Secrete Mâconnaise | E20: 17 | F20: 14 | G20: 14 | H20: 0 | I20: 0 | J20: 45 | K20: 0 | L20: 66 | M20: 0 | O20: 0
A21: 13 | B21: 22 | C21: 130878013001 | D21: La plage | E21: 15 | F21: 12 | G21: 12 | H21: 0 | I21: 0 | J21: 39 | K21: 0 | L21: 80 | M21: 0 | O21: 0
A22: 13 | B22: 23 | C22: 132084002301 | D22: Les petits hommes | E22: 19 | F22: 18 | G22: 17 | H22: 0 | I22: 0 | J22: 54 | K22: 0 | L22: 8 | M22: 0 | O22: 0
A23: 13 | B23: 24 | C23: 131683006301 | D23: Graphisme rural | E23: 11 | F23: 13 | G23: 10 | H23: 0 | I23: 0 | J23: 34 | K23: 0 | L23: 118 | M23: 0 | O23: 0
A24: 13 | B24: 25 | C24: 131862002201 | D24: Les fiancés | E24: 18 | F24: 12 | G24: 14 | H24: 0 | I24: 0 | J24: 44 | K24: 0 | L24: 144 | M24: 0 | O24: 0
A25: 13 | B25: 26 | C25: 130462001101 | D25: Oeuvre 1-mucem | E25: 13 | F25: 11 | G25: 14 | H25: 0 | I25: 0 | J25: 38 | K25: 0 | L25: 161 | M25: 0 | O25: 0
A26: 13 | B26: 27 | C26: 130987024001 | D26: Ambiance nordique | E26: 15 | F26: 15 | G26: 14 | H26: 0 | I26: 0 | J26: 44 | K26: 0 | L26: 121 | M26: 0 | O26: 0
A27: 13 | B27: 28 | C27: 131683000701 | D27: MARIE | E27: 18 | F27: 13 | G27: 17 | H27: 0 | I27: 0 | J27: 48 | K27: 0 | L27: 40 | M27: 0 | O27: 0
A28: 13 | B28: 29 | C28: 131879000801 | D28: Harmonie | E28: 19 | F28: 19 | G28: 20 | H28: 0 | I28: 0 | J28: 58 | K28: 0 | L28: 99 | M28: 0 | O28: 0
A29: 13 | B29: 30 | C29: 131499009301 | D29: Les parasols | E29: 11 | F29: 11 | G29: 13 | H29: 0 | I29: 0 | J29: 35 | K29: 0 | L29: 96 | M29: 0 | O29: 0
A30: 13 | B30: 31 | C30: 131879000101 | D30: Shinkansen-japon | E30: 13 | F30: 15 | G30: 10 | H30: 0 | I30: 0 | J30: 38 | K30: 0 | L30: 74 | M30: 0 | O30: 0
A31: 13 | B31: 32 | C31: 131824003101 | D31: Encre du Japon | E31: 15 | F31: 12 | G31: 14 | H31: 0 | I31: 0 | J31: 41 | K31: 0 | L31: 104 | M31: 0 | O31: 0
A32: 13 | B32: 33 | C32: 131353006101 | D32: Mains d'Argile | E32: 15 | F32: 11 | G32: 10 | H32: 0 | I32: 0 | J32: 36 | K32: 0 | L32: 63 | M32: 0 | O32: 0
A33: 13 | B33: 34 | C33: 131499009801 | D33: Bella musica | E33: 13 | F33: 10 | G33: 12 | H33: 0 | I33: 0 | J33: 35 | K33: 0 | L33: 82 | M33: 0 | O33: 0
A34: 13 | B34: 35 | C34: 132023000101 | D34: L'homme au damier | E34: 16 | F34: 8 | G34: 14 | H34: 0 | I34: 0 | J34: 38 | K34: 0 | L34: 92 | M34: 0 | O34: 0
A35: 13 | B35: 36 | C35: 130987015701 | D35: Douceur | E35: 12 | F35: 9 | G35: 13 | H35: 0 | I35: 0 | J35: 34 | K35: 0 | L35: 147 | M35: 0 | O35: 0
A36: 13 | B36: 38 | C36: 131499008601 | D36: Il potassait... | E36: 14 | F36: 11 | G36: 15 | H36: 0 | I36: 0 | J36: 40 | K36: 0 | L36: 159 | M36: 0 | O36: 0
A37: 13 | B37: 39 | C37: 131992000401 | D37: Fantôme de Noel | E37: 12 | F37: 9 | G37: 11 | H37: 0 | I37: 0 | J37: 32 | K37: 0 | L37: 138 | M37: 0 | O37: 0
A38: 13 | B38: 40 | C38: 130925010201 | D38: Arles | E38: 10 | F38: 11 | G38: 10 | H38: 0 | I38: 0 | J38: 31 | K38: 0 | L38: 15 | M38: 0 | O38: 0
A39: 13 | B39: 41 | C39: 131227008601 | D39: Après la pluie | E39: 20 | F39: 17 | G39: 16 | H39: 0 | I39: 0 | J39: 53 | K39: 0 | L39: 2 | M39: 0 | O39: 0
A40: 13 | B40: 42 | C40: 130878014101 | D40: Voilier echoué | E40: 15 | F40: 13 | G40: 16 | H40: 0 | I40: 0 | J40: 44 | K40: 0 | L40: 35 | M40: 0 | O40: 0
A41: 13 | B41: 44 | C41: 130000020401 | D41: The Camps | E41: 12 | F41: 11 | G41: 12 | H41: 0 | I41: 0 | J41: 35 | K41: 0 | L41: 131 | M41: 6 | O41: 0
A42: 13 | B42: 46 | C42: 131499005201 | D42: James | E42: 18 | F42: 14 | G42: 17 | H42: 0 | I42: 0 | J42: 49 | K42: 0 | L42: 28 | M42: 0 | O42: 0
A43: 13 | B43: 47 | C43: 131376014701 | D43: Trompette | E43: 13 | F43: 13 | G43: 13 | H43: 0 | I43: 0 | J43: 39 | K43: 0 | L43: 95 | M43: 0 | O43: 0
A44: 13 | B44: 48 | C44: 131956001401 | D44: Escalier Iranien | E44: 14 | F44: 9 | G44: 15 | H44: 0 | I44: 0 | J44: 38 | K44: 0 | L44: 105 | M44: 0 | O44: 0
A45: 13 | B45: 49 | C45: 131879000501 | D45: Rencontre | E45: 12 | F45: 13 | G45: 15 | H45: 0 | I45: 0 | J45: 40 | K45: 0 | L45: 85 | M45: 0 | O45: 0
A46: 13 | B46: 50 | C46: 130987013801 | D46: Massilia 2017 | E46: 16 | F46: 14 | G46: 15 | H46: 0 | I46: 0 | J46: 45 | K46: 0 | L46: 11 | M46: 0 | O46: 0
A47: 13 | B47: 51 | C47: 132060000801 | D47: Ramasseurs de coquillages | E47: 15 | F47: 7 | G47: 11 | H47: 0 | I47: 0 | J47: 33 | K47: 0 | L47: 17 | M47: 0 | O47: 0
A48: 13 | B48: 52 | C48: 132084000301 | D48: Fuir la cité maudite | E48: 14 | F48: 14 | G48: 12 | H48: 0 | I48: 0 | J48: 40 | K48: 0 | L48: 108 | M48: 0 | O48: 0
A49: 13 | B49: 53 | C49: 131376012601 | D49: Ecume des mers | E49: 13 | F49: 13 | G49: 14 | H49: 0 | I49: 0 | J49: 40 | K49: 0 | L49: 3 | M49: 0 | O49: 0
A50: 13 | B50: 54 | C50: 130987019601 | D50: La photographe | E50: 11 | F50: 12 | G50: 13 | H50: 0 | I50: 0 | J50: 36 | K50: 0 | L50: 19 | M50: 0 | O50: 0
A51: 13 | B51: 55 | C51: 130987019701 | D51: Big Ben | E51: 12 | F51: 16 | G51: 12 | H51: 0 | I51: 0 | J51: 40 | K51: 0 | L51: 33 | M51: 0 | O51: 0
A52: 13 | B52: 56 | C52: 130925008601 | D52: Silhouette | E52: 15 | F52: 8 | G52: 11 | H52: 0 | I52: 0 | J52: 34 | K52: 0 | L52: 155 | M52: 0 | O52: 0
A53: 13 | B53: 57 | C53: 130878007201 | D53: Marlène | E53: 13 | F53: 11 | G53: 13 | H53: 0 | I53: 0 | J53: 37 | K53: 0 | L53: 112 | M53: 0 | O53: 0
A54: 13 | B54: 58 | C54: 131845004001 | D54: John peter | E54: 17 | F54: 11 | G54: 14 | H54: 0 | I54: 0 | J54: 42 | K54: 0 | L54: 72 | M54: 0 | O54: 0
A55: 13 | B55: 59 | C55: 132084001701 | D55: Au bout... la mer | E55: 14 | F55: 12 | G55: 14 | H55: 0 | I55: 0 | J55: 40 | K55: 0 | L55: 27 | M55: 0 | O55: 0
A56: 13 | B56: 60 | C56: 132060001701 | D56: Artiste dans l'atelier | E56: 14 | F56: 8 | G56: 11 | H56: 0 | I56: 0 | J56: 33 | K56: 0 | L56: 55 | M56: 0 | O56: 0
A57: 13 | B57: 61 | C57: 131862001001 | D57: Brume et Givre | E57: 13 | F57: 10 | G57: 13 | H57: 0 | I57: 0 | J57: 36 | K57: 0 | L57: 49 | M57: 0 | O57: 0
A58: 13 | B58: 62 | C58: 132103002301 | D58: Nobody... nowhere | E58: 13 | F58: 16 | G58: 14 | H58: 0 | I58: 0 | J58: 43 | K58: 0 | L58: 89 | M58: 0 | O58: 0
A59: 13 | B59: 63 | C59: 132217000101 | D59: Dans le vent | E59: 9 | F59: 8 | G59: 13 | H59: 0 | I59: 0 | J59: 30 | K59: 0 | L59: 22 | M59: 0 | O59: 0
A60: 13 | B60: 64 | C60: 131353006201 | D60: Cairn à Quiberon | E60: 12 | F60: 14 | G60: 13 | H60: 0 | I60: 0 | J60: 39 | K60: 0 | L60: 46 | M60: 0 | O60: 0
A61: 13 | B61: 65 | C61: 132084004001 | D61: Village Diola | E61: 13 | F61: 8 | G61: 11 | H61: 0 | I61: 0 | J61: 32 | K61: 0 | L61: 71 | M61: 0 | O61: 0
A62: 13 | B62: 66 | C62: 132103000201 | D62: La femme du village | E62: 14 | F62: 18 | G62: 12 | H62: 0 | I62: 0 | J62: 44 | K62: 0 | L62: 51 | M62: 0 | O62: 0
A63: 13 | B63: 68 | C63: 130527013301 | D63: New york | E63: 12 | F63: 14 | G63: 14 | H63: 0 | I63: 0 | J63: 40 | K63: 0 | L63: 62 | M63: 0 | O63: 0
A64: 13 | B64: 69 | C64: 130527011601 | D64: THE BIG APPLE | E64: 12 | F64: 11 | G64: 14 | H64: 0 | I64: 0 | J64: 37 | K64: 0 | L64: 7 | M64: 0 | O64: 0
A65: 13 | B65: 70 | C65: 131494002301 | D65: Vagues à l'âme | E65: 11 | F65: 9 | G65: 12 | H65: 0 | I65: 0 | J65: 32 | K65: 0 | L65: 116 | M65: 0 | O65: 0
A66: 13 | B66: 71 | C66: 130987001601 | D66: Il chante!!! | E66: 14 | F66: 7 | G66: 14 | H66: 0 | I66: 0 | J66: 35 | K66: 0 | L66: 111 | M66: 0 | O66: 0
A67: 13 | B67: 72 | C67: 131823005701 | D67: L'ange | E67: 13 | F67: 12 | G67: 12 | H67: 0 | I67: 0 | J67: =SUM(E67:I67) -> 37 | K67: 0 | L67: 45 | M67: 0 | O67: 0
A68: 13 | B68: 73 | C68: 130987014001 | D68: Prière | E68: 8 | F68: 7 | G68: 8 | H68: 0 | I68: 0 | J68: 23 | K68: 0 | L68: 76 | M68: 0 | O68: 0
A69: 13 | B69: 74 | C69: 131845002501 | D69: Spartan à St Tropez | E69: 11 | F69: 11 | G69: 10 | H69: 0 | I69: 0 | J69: 32 | K69: 0 | L69: 87 | M69: 0 | O69: 0
A70: 13 | B70: 75 | C70: 130878013401 | D70: Prison | E70: 14 | F70: 9 | G70: 13 | H70: 0 | I70: 0 | J70: 36 | K70: 0 | L70: 162 | M70: 0 | O70: 0
A71: 13 | B71: 76 | C71: 130878014301 | D71: L'homme | E71: 19 | F71: 16 | G71: 17 | H71: 0 | I71: 0 | J71: 52 | K71: 0 | L71: 107 | M71: 0 | O71: 0
A72: 13 | B72: 77 | C72: 131879001301 | D72: Rue | E72: 17 | F72: 16 | G72: 13 | H72: 0 | I72: 0 | J72: 46 | K72: 0 | L72: 14 | M72: 0 | O72: 0
A73: 13 | B73: 78 | C73: 130527015501 | D73: Amaryllis | E73: 14 | F73: 19 | G73: 12 | H73: 0 | I73: 0 | J73: 45 | K73: 0 | L73: 140 | M73: 0 | O73: 0
A74: 13 | B74: 79 | C74: 131823006401 | D74: Solitude | E74: 16 | F74: 10 | G74: 13 | H74: 0 | I74: 0 | J74: 39 | K74: 0 | L74: 23 | M74: 0 | O74: 0
A75: 13 | B75: 81 | C75: 131683006601 | D75: Escaliers | E75: 13 | F75: 15 | G75: 14 | H75: 0 | I75: 0 | J75: 42 | K75: 0 | L75: 110 | M75: 0 | O75: 0
A76: 13 | B76: 82 | C76: 132060001801 | D76: Est-ce la bonne direction ? | E76: 17 | F76: 11 | G76: 12 | H76: 0 | I76: 0 | J76: 40 | K76: 0 | L76: 44 | M76: 0 | O76: 0
A77: 13 | B77: 83 | C77: 130527019601 | D77: Flatiron building | E77: 9 | F77: 10 | G77: 10 | H77: 0 | I77: 0 | J77: 29 | K77: 0 | L77: 91 | M77: 0 | O77: 0
A78: 13 | B78: 84 | C78: 130527012401 | D78: En vallée d'Aspe | E78: 6 | F78: 6 | G78: 6 | H78: 0 | I78: 0 | J78: 18 | K78: 0 | L78: 136 | M78: 0 | O78: 0
A79: 13 | B79: 85 | C79: 130925008701 | D79: Cimetière | E79: 18 | F79: 9 | G79: 12 | H79: 0 | I79: 0 | J79: 39 | K79: 0 | L79: 43 | M79: 0 | O79: 0
A80: 13 | B80: 86 | C80: 131823007601 | D80: Cha NB | E80: 14 | F80: 13 | G80: 13 | H80: 0 | I80: 0 | J80: 40 | K80: 0 | L80: 67 | M80: 0 | O80: 0
A81: 13 | B81: 87 | C81: 130987026701 | D81: Tamaris Le Matin_ St Mandrier _26.08.17 | E81: 12 | F81: 12 | G81: 8 | H81: 0 | I81: 0 | J81: 32 | K81: 0 | L81: 84 | M81: 0 | O81: 0
A82: 13 | B82: 88 | C82: 132086001401 | D82: Rêverie | E82: 15 | F82: 10 | G82: 12 | H82: 0 | I82: 0 | J82: 37 | K82: 0 | L82: 37 | M82: 0 | O82: 0
A83: 13 | B83: 89 | C83: 130527002501 | D83: Méfiance | E83: 17 | F83: 11 | G83: 10 | H83: 0 | I83: 0 | J83: 38 | K83: 0 | L83: 25 | M83: 0 | O83: 0
A84: 13 | B84: 90 | C84: 132203000501 | D84: L'embarras du choix | E84: 10 | F84: 9 | G84: 11 | H84: 0 | I84: 0 | J84: 30 | K84: 0 | L84: 117 | M84: 0 | O84: 0
A85: 13 | B85: 91 | C85: 131992000301 | D85: Petit matin dans la mare | E85: 10 | F85: 12 | G85: 10 | H85: 0 | I85: 0 | J85: 32 | K85: 0 | L85: 160 | M85: 0 | O85: 0
A86: 13 | B86: 92 | C86: 132086002301 | D86: Elle part | E86: 17 | F86: 7 | G86: 11 | H86: 0 | I86: 0 | J86: 35 | K86: 0 | L86: 54 | M86: 0 | O86: 0
A87: 13 | B87: 93 | C87: 131499010401 | D87: Salins | E87: 18 | F87: 11 | G87: 14 | H87: 0 | I87: 0 | J87: 43 | K87: 0 | L87: 109 | M87: 0 | O87: 0
A88: 13 | B88: 94 | C88: 131683005101 | D88: Regard sur la rue | E88: 13 | F88: 15 | G88: 13 | H88: 0 | I88: 0 | J88: 41 | K88: 0 | L88: 39 | M88: 0 | O88: 0
A89: 13 | B89: 95 | C89: 130987023901 | D89: Infiniment petit dans l'infiniment grand | E89: 12 | F89: 14 | G89: 14 | H89: 0 | I89: 0 | J89: 40 | K89: 0 | L89: 129 | M89: 0 | O89: 0
A90: 13 | B90: 96 | C90: 130000019901 | D90: Arles | E90: 17 | F90: 12 | G90: 15 | H90: 0 | I90: 0 | J90: 44 | K90: 0 | L90: 34 | M90: 6 | O90: 0
A91: 13 | B91: 97 | C91: 132060002401 | D91: La force Polynésienne | E91: 13 | F91: 8 | G91: 11 | H91: 0 | I91: 0 | J91: 32 | K91: 0 | L91: 47 | M91: 0 | O91: 0
A92: 13 | B92: 98 | C92: 130925008401 | D92: Exploration | E92: 16 | F92: 13 | G92: 11 | H92: 0 | I92: 0 | J92: 40 | K92: 0 | L92: 42 | M92: 0 | O92: 0
A93: 13 | B93: 99 | C93: 131862001101 | D93: Fabrice Bistoni à Opio | E93: 13 | F93: 13 | G93: 15 | H93: 0 | I93: 0 | J93: 41 | K93: 0 | L93: 24 | M93: 0 | O93: 0
A94: 13 | B94: 100 | C94: 131879002001 | D94: Brume hivernale | E94: 17 | F94: 12 | G94: 13 | H94: 0 | I94: 0 | J94: 42 | K94: 0 | L94: 16 | M94: 0 | O94: 0
A95: 13 | B95: 101 | C95: 131110001101 | D95: Jeu d'ombres | E95: 12 | F95: 10 | G95: 16 | H95: 0 | I95: 0 | J95: 38 | K95: 0 | L95: 101 | M95: 0 | O95: 0
A96: 13 | B96: 102 | C96: 131683008101 | D96: L'alchimiste | E96: 13 | F96: 12 | G96: 12 | H96: 0 | I96: 0 | J96: 37 | K96: 0 | L96: 146 | M96: 0 | O96: 0
A97: 13 | B97: 103 | C97: 131499010001 | D97: Continue ! | E97: 16 | F97: 13 | G97: 14 | H97: 0 | I97: 0 | J97: 43 | K97: 0 | L97: 139 | M97: 0 | O97: 0
A98: 13 | B98: 104 | C98: 131683007901 | D98: Caresse de lumière | E98: 13 | F98: 12 | G98: 13 | H98: 0 | I98: 0 | J98: 38 | K98: 0 | L98: 88 | M98: 0 | O98: 0
A99: 13 | B99: 105 | C99: 130925009801 | D99: Le signe | E99: 15 | F99: 9 | G99: 17 | H99: 0 | I99: 0 | J99: 41 | K99: 0 | L99: 32 | M99: 0 | O99: 0
A100: 13 | B100: 107 | C100: 131879000901 | D100: Clip | E100: 14 | F100: 16 | G100: 14 | H100: 0 | I100: 0 | J100: 44 | K100: 0 | L100: 143 | M100: 0 | O100: 0
A101: 13 | B101: 108 | C101: 131110000901 | D101: Pecheur Intha | E101: 18 | F101: 20 | G101: 18 | H101: 0 | I101: 0 | J101: 56 | K101: 0 | L101: 83 | M101: 0 | O101: 0
A102: 13 | B102: 109 | C102: 130925009901 | D102: Tchatche | E102: 15 | F102: 7 | G102: 12 | H102: 0 | I102: 0 | J102: 34 | K102: 0 | L102: 97 | M102: 0 | O102: 0
A103: 13 | B103: 110 | C103: 131110001001 | D103: Le chemin | E103: 13 | F103: 15 | G103: 12 | H103: 0 | I103: 0 | J103: 40 | K103: 0 | L103: 122 | M103: 0 | O103: 0
A104: 13 | B104: 111 | C104: 131956002401 | D104: Haut alpin bienveillant | E104: 14 | F104: 15 | G104: 11 | H104: 0 | I104: 0 | J104: 40 | K104: 0 | L104: 150 | M104: 0 | O104: 0
A105: 13 | B105: 112 | C105: 131845000101 | D105: Tempête du 11 décembre 2017 | E105: 14 | F105: 14 | G105: 13 | H105: 0 | I105: 0 | J105: 41 | K105: 0 | L105: 120 | M105: 0 | O105: 0
A106: 13 | B106: 113 | C106: 131494000201 | D106: Lucy | E106: 14 | F106: 13 | G106: 15 | H106: 0 | I106: 0 | J106: 42 | K106: 0 | L106: 18 | M106: 0 | O106: 0
A107: 13 | B107: 114 | C107: 131956004501 | D107: Sète | E107: 16 | F107: 9 | G107: 10 | H107: 0 | I107: 0 | J107: 35 | K107: 0 | L107: 77 | M107: 0 | O107: 0
A108: 13 | B108: 115 | C108: 130987007401 | D108: Venise | E108: 10 | F108: 7 | G108: 11 | H108: 0 | I108: 0 | J108: 28 | K108: 0 | L108: 145 | M108: 0 | O108: 0
A109: 13 | B109: 116 | C109: 132084005001 | D109: Quand vient la fin de l'été | E109: 15 | F109: 11 | G109: 13 | H109: 0 | I109: 0 | J109: 39 | K109: 0 | L109: 128 | M109: 0 | O109: 0
A110: 13 | B110: 117 | C110: 131956006501 | D110: LA SOUPE DE BOGOTA | E110: 13 | F110: 10 | G110: 11 | H110: 0 | I110: 0 | J110: 34 | K110: 0 | L110: 124 | M110: 0 | O110: 0
A111: 13 | B111: 118 | C111: 130925010501 | D111: Nathalie | E111: 18 | F111: 10 | G111: 18 | H111: 0 | I111: 0 | J111: 46 | K111: 0 | L111: 103 | M111: 0 | O111: 0
A112: 13 | B112: 119 | C112: 132089000301 | D112: Vieux Cabanon | E112: 12 | F112: 10 | G112: 9 | H112: 0 | I112: 0 | J112: 31 | K112: 0 | L112: 36 | M112: 0 | O112: 0
A113: 13 | B113: 120 | C113: 132089000201 | D113: Demoiselle d'Honneur | E113: 14 | F113: 16 | G113: 13 | H113: 0 | I113: 0 | J113: 43 | K113: 0 | L113: 81 | M113: 0 | O113: 0
A114: 13 | B114: 121 | C114: 132203000701 | D114: Sortir de l'ombre | E114: 18 | F114: 10 | G114: 12 | H114: 0 | I114: 0 | J114: 40 | K114: 0 | L114: 141 | M114: 0 | O114: 0
A115: 13 | B115: 122 | C115: 132103000501 | D115: Arrosage Municipal | E115: 13 | F115: 10 | G115: 14 | H115: 0 | I115: 0 | J115: 37 | K115: 0 | L115: 1 | M115: 0 | O115: 0
A116: 13 | B116: 123 | C116: 131353004301 | D116: Rencontre | E116: 12 | F116: 13 | G116: 10 | H116: 0 | I116: 0 | J116: 35 | K116: 0 | L116: 100 | M116: 0 | O116: 0
A117: 13 | B117: 124 | C117: 132060000701 | D117: Vertige | E117: 11 | F117: 9 | G117: 11 | H117: 0 | I117: 0 | J117: 31 | K117: 0 | L117: 90 | M117: 0 | O117: 0
A118: 13 | B118: 125 | C118: 131353003001 | D118: Sur le chemin de Saint-Jacques | E118: 12 | F118: 13 | G118: 12 | H118: 0 | I118: 0 | J118: 37 | K118: 0 | L118: 5 | M118: 0 | O118: 0
A119: 13 | B119: 126 | C119: 131353007101 | D119: Du blanc ou du rouge? | E119: 13 | F119: 7 | G119: 13 | H119: 0 | I119: 0 | J119: 33 | K119: 0 | L119: 102 | M119: 0 | O119: 0
A120: 13 | B120: 127 | C120: 131376017701 | D120: Echec et Mat? | E120: 19 | F120: 15 | G120: 14 | H120: 0 | I120: 0 | J120: 48 | K120: 0 | L120: 114 | M120: 0 | O120: 0
A121: 13 | B121: 128 | C121: 131845004101 | D121: Petite fille au parapluie | E121: 11 | F121: 10 | G121: 13 | H121: 0 | I121: 0 | J121: 34 | K121: 0 | L121: 134 | M121: 0 | O121: 0
A122: 13 | B122: 129 | C122: 131862000801 | D122: Cosmos 1999 | E122: 12 | F122: 11 | G122: 13 | H122: 0 | I122: 0 | J122: 36 | K122: 0 | L122: 79 | M122: 0 | O122: 0
A123: 13 | B123: 130 | C123: 131862005801 | D123: Dentelle métallique | E123: 13 | F123: 9 | G123: 11 | H123: 0 | I123: 0 | J123: 33 | K123: 0 | L123: 148 | M123: 0 | O123: 0
A124: 13 | B124: 131 | C124: 131823004201 | D124: Nature orfèvre | E124: 16 | F124: 10 | G124: 8 | H124: 0 | I124: 0 | J124: 34 | K124: 0 | L124: 69 | M124: 0 | O124: 0
A125: 13 | B125: 132 | C125: 132203001101 | D125: Bouton de tournesol | E125: 15 | F125: 16 | G125: 13 | H125: 0 | I125: 0 | J125: 44 | K125: 0 | L125: 127 | M125: 0 | O125: 0
A126: 13 | B126: 133 | C126: 132060002201 | D126: Feu d'artifice | E126: 13 | F126: 11 | G126: 12 | H126: 0 | I126: 0 | J126: 36 | K126: 0 | L126: 135 | M126: 0 | O126: 0
A127: 13 | B127: 134 | C127: 131499006801 | D127: Complicité | E127: 18 | F127: 16 | G127: 14 | H127: 0 | I127: 0 | J127: 48 | K127: 0 | L127: 156 | M127: 0 | O127: 0
A128: 13 | B128: 135 | C128: 132060000101 | D128: Bien à l'Ombre | E128: 11 | F128: 11 | G128: 11 | H128: 0 | I128: 0 | J128: 33 | K128: 0 | L128: 70 | M128: 0 | O128: 0
A129: 13 | B129: 136 | C129: 131956000201 | D129: Solitude urbaine | E129: 16 | F129: 14 | G129: 14 | H129: 0 | I129: 0 | J129: 44 | K129: 0 | L129: 9 | M129: 0 | O129: 0
A130: 13 | B130: 137 | C130: 131619004501 | D130: Suivez la digue | E130: 15 | F130: 18 | G130: 15 | H130: 0 | I130: 0 | J130: 48 | K130: 0 | L130: 78 | M130: 0 | O130: 0
A131: 13 | B131: 138 | C131: 131683006901 | D131: Trois hommes et un goret | E131: 19 | F131: 16 | G131: 16 | H131: 0 | I131: 0 | J131: =SUM(E131:I131) -> 51 | K131: 0 | L131: 126 | M131: 0 | O131: 0
A132: 13 | B132: 139 | C132: 132060000401 | D132: L'estacade | E132: 15 | F132: 15 | G132: 13 | H132: 0 | I132: 0 | J132: 43 | K132: 0 | L132: 125 | M132: 0 | O132: 0
A133: 13 | B133: 140 | C133: 132060001401 | D133: Scène de vie | E133: 13 | F133: 8 | G133: 14 | H133: 0 | I133: 0 | J133: 35 | K133: 0 | L133: 86 | M133: 0 | O133: 0
A134: 13 | B134: 141 | C134: 131499003901 | D134: Plage d'hiver | E134: 15 | F134: 11 | G134: 14 | H134: 0 | I134: 0 | J134: 40 | K134: 0 | L134: 59 | M134: 0 | O134: 0
A135: 13 | B135: 142 | C135: 131845001401 | D135: Sous le cône | E135: 13 | F135: 17 | G135: 18 | H135: 0 | I135: 0 | J135: 48 | K135: 0 | L135: 123 | M135: 0 | O135: 0
A136: 13 | B136: 143 | C136: 131956004601 | D136: Le Mont chauve, Géant de Provence | E136: 18 | F136: 17 | G136: 15 | H136: 0 | I136: 0 | J136: 50 | K136: 0 | L136: 10 | M136: 0 | O136: 0
A137: 13 | B137: 144 | C137: 131499010601 | D137: Sur les marches | E137: 13 | F137: 12 | G137: 12 | H137: 0 | I137: 0 | J137: 37 | K137: 0 | L137: 106 | M137: 0 | O137: 0
A138: 13 | B138: 145 | C138: 131956003401 | D138: Influence | E138: 13 | F138: 10 | G138: 11 | H138: 0 | I138: 0 | J138: 34 | K138: 0 | L138: 75 | M138: 0 | O138: 0
A139: 13 | B139: 146 | C139: 131499010501 | D139: Spirituals | E139: 14 | F139: 16 | G139: 17 | H139: 0 | I139: 0 | J139: 47 | K139: 0 | L139: 38 | M139: 0 | O139: 0
A140: 13 | B140: 147 | C140: 132060001201 | D140: Vis-à-Vis | E140: 12 | F140: 14 | G140: 13 | H140: 0 | I140: 0 | J140: 39 | K140: 0 | L140: 119 | M140: 0 | O140: 0
A141: 13 | B141: 148 | C141: 130925007601 | D141: Femme hmong | E141: 15 | F141: 14 | G141: 14 | H141: 0 | I141: 0 | J141: 43 | K141: 0 | L141: 30 | M141: 0 | O141: 0
A142: 13 | B142: 149 | C142: 130925007701 | D142: Le Vélo | E142: 18 | F142: 16 | G142: 14 | H142: 0 | I142: 0 | J142: 48 | K142: 0 | L142: 57 | M142: 0 | O142: 0
A143: 13 | B143: 150 | C143: 131956002901 | D143: Victoire de la beauté | E143: 15 | F143: 10 | G143: 15 | H143: 0 | I143: 0 | J143: 40 | K143: 0 | L143: 157 | M143: 0 | O143: 0
A144: 13 | B144: 151 | C144: 131499006901 | D144: Là haut | E144: 16 | F144: 16 | G144: 11 | H144: 0 | I144: 0 | J144: 43 | K144: 0 | L144: 142 | M144: 0 | O144: 0
A145: 13 | B145: 152 | C145: 131353007401 | D145: Marché d'Arequipa Pérou | E145: 12 | F145: 15 | G145: 13 | H145: 0 | I145: 0 | J145: 40 | K145: 0 | L145: 56 | M145: 0 | O145: 0
A146: 13 | B146: 153 | C146: 130527017001 | D146: L'envol... | E146: 15 | F146: 7 | G146: 9 | H146: 0 | I146: 0 | J146: 31 | K146: 0 | L146: 94 | M146: 0 | O146: 0
A147: 13 | B147: 154 | C147: 131353007301 | D147: Marché d'Ampato Equateur | E147: 14 | F147: 12 | G147: 12 | H147: 0 | I147: 0 | J147: 38 | K147: 0 | L147: 151 | M147: 0 | O147: 0
A148: 13 | B148: 155 | C148: 130527009401 | D148: Matinale... | E148: 16 | F148: 14 | G148: 16 | H148: 0 | I148: 0 | J148: 46 | K148: 0 | L148: 73 | M148: 0 | O148: 0
A149: 13 | B149: 156 | C149: 131956005701 | D149: L'attente | E149: 11 | F149: 13 | G149: 10 | H149: 0 | I149: 0 | J149: 34 | K149: 0 | L149: 21 | M149: 0 | O149: 0
A150: 13 | B150: 157 | C150: 131956000601 | D150: Tour CMA-CGM | E150: 12 | F150: 16 | G150: 13 | H150: 0 | I150: 0 | J150: 41 | K150: 0 | L150: 41 | M150: 0 | O150: 0
A151: 13 | B151: 158 | C151: 131845002101 | D151: Vertige | E151: 13 | F151: 13 | G151: 16 | H151: 0 | I151: 0 | J151: 42 | K151: 0 | L151: 13 | M151: 0 | O151: 0
A152: 13 | B152: 159 | C152: 131879000601 | D152: Albi | E152: 13 | F152: 10 | G152: 11 | H152: 0 | I152: 0 | J152: 34 | K152: 0 | L152: 68 | M152: 0 | O152: 0
A153: 13 | B153: 160 | C153: 131956006201 | D153: Le maître de la horde | E153: 14 | F153: 14 | G153: 11 | H153: 0 | I153: 0 | J153: 39 | K153: 0 | L153: 29 | M153: 0 | O153: 0
A154: 13 | B154: 161 | C154: 131683006501 | D154: Au travers | E154: 17 | F154: 7 | G154: 10 | H154: 0 | I154: 0 | J154: 34 | K154: 0 | L154: 60 | M154: 0 | O154: 0
A155: 13 | B155: 162 | C155: 132086002501 | D155: Petit Gitan | E155: 12 | F155: 13 | G155: 13 | H155: 0 | I155: 0 | J155: 38 | K155: 0 | L155: 154 | M155: 0 | O155: 0
A156: 13 | B156: 163 | C156: 131956005401 | D156: La dame en noir | E156: 12 | F156: 10 | G156: 12 | H156: 0 | I156: 0 | J156: 34 | K156: 0 | L156: 58 | M156: 0 | O156: 0
A157: 13 | B157: 164 | C157: 130987002301 | D157: Clic | E157: 15 | F157: 14 | G157: 11 | H157: 0 | I157: 0 | J157: 40 | K157: 0 | L157: 6 | M157: 0 | O157: 0
A158: 13 | B158: 165 | C158: 131499003601 | D158: Préfouns | E158: 14 | F158: 10 | G158: 11 | H158: 0 | I158: 0 | J158: 35 | K158: 0 | L158: 133 | M158: 0 | O158: 0
A159: 13 | B159: 166 | C159: 131956002601 | D159: Soupir | E159: 13 | F159: 17 | G159: 14 | H159: 0 | I159: 0 | J159: 44 | K159: 0 | L159: 98 | M159: 0 | O159: 0
A160: 13 | B160: 167 | C160: 131619004601 | D160: Axe majeur | E160: 14 | F160: 11 | G160: 14 | H160: 0 | I160: 0 | J160: 39 | K160: 0 | L160: 52 | M160: 0 | O160: 0
A161: 13 | B161: 168 | C161: 131353000101 | D161: Avec maman | E161: 15 | F161: 18 | G161: 13 | H161: 0 | I161: 0 | J161: 46 | K161: 0 | L161: 61 | M161: 0 | O161: 0
A162: 13 | B162: 169 | C162: 131353000701 | D162: Solitaire | E162: 12 | F162: 13 | G162: 14 | H162: 0 | I162: 0 | J162: 39 | K162: 0 | L162: 53 | M162: 0 | O162: 0
A163: 13 | B163: 170 | C163: 131353000201 | D163: Pigeons | E163: 9 | F163: 8 | G163: 8 | H163: 0 | I163: 0 | J163: 25 | K163: 0 | L163: 130 | M163: 0 | O163: 0

Sheet Défi-4
A1: colis | B1: photologic | C1: fichier | D1: titre | E1: note1 | F1: note2 | G1: note3 | H1: note4 | I1: note5 | J1: total | K1: place | L1: passage | M1: statut | N1: medaille | O1: retenue
A2: 13 | B2: 1 | C2: 130878015201 | D2: Je m'amuse | E2: 6 | F2: 6 | G2: 6 | H2: 0 | I2: 0 | J2: =SUM(E2:I2) -> 18 | K2: 0 | L2: 37 | M2: 0 | O2: 0
A3: 13 | B3: 2 | C3: 130000020401 | D3: La Goutte | E3: 10 | F3: 13 | G3: 12 | H3: 0 | I3: 0 | J3: =SUM(E3:I3) -> 35 | K3: 0 | L3: 103 | M3: 6 | O3: 0
A4: 13 | B4: 3 | C4: 131499008701 | D4: Symbiose | E4: 12 | F4: 11 | G4: 10 | H4: 0 | I4: 0 | J4: 33 | K4: 0 | L4: 18 | M4: 0 | O4: 0
A5: 13 | B5: 4 | C5: 131879000501 | D5: Calin | E5: 14 | F5: 13 | G5: 14 | H5: 0 | I5: 0 | J5: 41 | K5: 0 | L5: 89 | M5: 0 | O5: 0
A6: 13 | B6: 5 | C6: 131110001001 | D6: Quietude | E6: 15 | F6: 14 | G6: 18 | H6: 0 | I6: 0 | J6: 47 | K6: 0 | L6: 71 | M6: 0 | O6: 0
A7: 13 | B7: 6 | C7: 130878013301 | D7: Desert | E7: 11 | F7: 11 | G7: 14 | H7: 0 | I7: 0 | J7: 36 | K7: 0 | L7: 142 | M7: 0 | O7: 0
A8: 13 | B8: 7 | C8: 132193000301 | D8: Survol de la mer de glace | E8: 14 | F8: 15 | G8: 16 | H8: 0 | I8: 0 | J8: 45 | K8: 0 | L8: 140 | M8: 0 | O8: 0
A9: 13 | B9: 8 | C9: 130987028201 | D9: La sieste du rhino blanc | E9: 11 | F9: 11 | G9: 9 | H9: 0 | I9: 0 | J9: 31 | K9: 0 | L9: 26 | M9: 0 | O9: 0
A10: 13 | B10: 9 | C10: 130987024101 | D10: Chevèchette perlée | E10: 16 | F10: 16 | G10: 14 | H10: 0 | I10: 0 | J10: 46 | K10: 0 | L10: 28 | M10: 0 | O10: 0
A11: 13 | B11: 10 | C11: 130987030301 | D11: Coquelicot du Lot | E11: 10 | F11: 10 | G11: 6 | H11: 0 | I11: 0 | J11: 26 | K11: 0 | L11: 141 | M11: 0 | O11: 0
A12: 13 | B12: 11 | C12: 131683008001 | D12: Sentinelle du désert | E12: 13 | F12: 13 | G12: 13 | H12: 0 | I12: 0 | J12: 39 | K12: 0 | L12: 58 | M12: 0 | O12: 0
A13: 13 | B13: 12 | C13: 130987013801 | D13: Lever de soleil après la pluie | E13: 14 | F13: 15 | G13: 13 | H13: 0 | I13: 0 | J13: 42 | K13: 0 | L13: 73 | M13: 0 | O13: 0
A14: 13 | B14: 14 | C14: 130993015101 | D14: En suspension | E14: 14 | F14: 16 | G14: 13 | H14: 0 | I14: 0 | J14: 43 | K14: 0 | L14: 9 | M14: 0 | O14: 0
A15: 13 | B15: 16 | C15: 132147001701 | D15: L'herbe et le vent... | E15: 12 | F15: 8 | G15: 7 | H15: 0 | I15: 0 | J15: 27 | K15: 0 | L15: 101 | M15: 0 | O15: 0
A16: 13 | B16: 17 | C16: 131376017601 | D16: Ombre chinoise | E16: 13 | F16: 10 | G16: 12 | H16: 0 | I16: 0 | J16: 35 | K16: 0 | L16: 107 | M16: 0 | O16: 0
A17: 13 | B17: 18 | C17: 131494000201 | D17: Envol | E17: 10 | F17: 11 | G17: 14 | H17: 0 | I17: 0 | J17: 35 | K17: 0 | L17: 6 | M17: 0 | O17: 0
A18: 13 | B18: 19 | C18: 131683006301 | D18: Mésange et chardons | E18: 15 | F18: 16 | G18: 16 | H18: 0 | I18: 0 | J18: 47 | K18: 0 | L18: 125 | M18: 0 | O18: 0
A19: 13 | B19: 20 | C19: 130993013301 | D19: Le repas du Rollier | E19: 14 | F19: 17 | G19: 16 | H19: 0 | I19: 0 | J19: 47 | K19: 0 | L19: 34 | M19: 0 | O19: 0
A20: 13 | B20: 21 | C20: 130987015701 | D20: Thomise | E20: 14 | F20: 14 | G20: 13 | H20: 0 | I20: 0 | J20: 41 | K20: 0 | L20: 3 | M20: 0 | O20: 0
A21: 13 | B21: 22 | C21: 130527009201 | D21: On partage ? | E21: 12 | F21: 13 | G21: 15 | H21: 0 | I21: 0 | J21: 40 | K21: 0 | L21: 123 | M21: 0 | O21: 0
A22: 13 | B22: 23 | C22: 130987016601 | D22: Lac guichard | E22: 13 | F22: 12 | G22: 13 | H22: 0 | I22: 0 | J22: 38 | K22: 0 | L22: 106 | M22: 0 | O22: 0
A23: 13 | B23: 24 | C23: 131683005101 | D23: HERON | E23: 15 | F23: 15 | G23: 14 | H23: 0 | I23: 0 | J23: 44 | K23: 0 | L23: 42 | M23: 0 | O23: 0
A24: 13 | B24: 25 | C24: 130987024201 | D24: Jeux interdits | E24: 14 | F24: 17 | G24: 14 | H24: 0 | I24: 0 | J24: 45 | K24: 0 | L24: 65 | M24: 0 | O24: 0
A25: 13 | B25: 26 | C25: 131956004501 | D25: Campanules | E25: 12 | F25: 12 | G25: 13 | H25: 0 | I25: 0 | J25: 37 | K25: 0 | L25: 52 | M25: 0 | O25: 0
A26: 13 | B26: 27 | C26: 130527012401 | D26: Milan | E26: 15 | F26: 17 | G26: 15 | H26: 0 | I26: 0 | J26: 47 | K26: 0 | L26: 128 | M26: 0 | O26: 0
A27: 13 | B27: 28 | C27: 132193001201 | D27: Mes tourterelles | E27: 13 | F27: 9 | G27: 15 | H27: 0 | I27: 0 | J27: 37 | K27: 0 | L27: 82 | M27: 0 | O27: 0
A28: 13 | B28: 30 | C28: 131376017701 | D28: Solaire | E28: 6 | F28: 6 | G28: 6 | H28: 0 | I28: 0 | J28: 18 | K28: 0 | L28: 94 | M28: 0 | O28: 0
A29: 13 | B29: 31 | C29: 132084003501 | D29: Leopard dans le delta de l'okavango | E29: 14 | F29: 14 | G29: 12 | H29: 0 | I29: 0 | J29: 40 | K29: 0 | L29: 51 | M29: 0 | O29: 0
A30: 13 | B30: 32 | C30: 131845000201 | D30: Au vol | E30: 6 | F30: 6 | G30: 6 | H30: 0 | I30: 0 | J30: 18 | K30: 0 | L30: 53 | M30: 0 | O30: 0
A31: 13 | B31: 33 | C31: 131845000101 | D31: Surveillance de la marée | E31: 6 | F31: 6 | G31: 6 | H31: 0 | I31: 0 | J31: 18 | K31: 0 | L31: 116 | M31: 0 | O31: 0
A32: 13 | B32: 34 | C32: 132084002301 | D32: Mamooth lake | E32: 16 | F32: 13 | G32: 14 | H32: 0 | I32: 0 | J32: 43 | K32: 0 | L32: 25 | M32: 0 | O32: 0
A33: 13 | B33: 35 | C33: 131353000201 | D33: Butinage | E33: 12 | F33: 13 | G33: 11 | H33: 0 | I33: 0 | J33: 36 | K33: 0 | L33: 1 | M33: 0 | O33: 0
A34: 13 | B34: 36 | C34: 132084003601 | D34: Mini la grenouille | E34: 17 | F34: 18 | G34: 20 | H34: 0 | I34: 0 | J34: 55 | K34: 0 | L34: 137 | M34: 0 | O34: 0
A35: 13 | B35: 37 | C35: 131683007901 | D35: Kiai | E35: 16 | F35: 20 | G35: 15 | H35: 0 | I35: 0 | J35: 51 | K35: 0 | L35: 7 | M35: 0 | O35: 0
A36: 13 | B36: 38 | C36: 131110000901 | D36: Rosée | E36: 16 | F36: 12 | G36: 15 | H36: 0 | I36: 0 | J36: 43 | K36: 0 | L36: 22 | M36: 0 | O36: 0
A37: 13 | B37: 39 | C37: 131110001101 | D37: Fleur sauvage | E37: 13 | F37: 14 | G37: 9 | H37: 0 | I37: 0 | J37: 36 | K37: 0 | L37: 113 | M37: 0 | O37: 0
A38: 13 | B38: 40 | C38: 130000019901 | D38: Phacélie | E38: 6 | F38: 10 | G38: 8 | H38: 0 | I38: 0 | J38: 24 | K38: 0 | L38: 72 | M38: 6 | O38: 0
A39: 13 | B39: 41 | C39: 130462001101 | D39: Apres la pluie | E39: 18 | F39: 12 | G39: 15 | H39: 0 | I39: 0 | J39: 45 | K39: 0 | L39: 105 | M39: 0 | O39: 0
A40: 13 | B40: 42 | C40: 131494002101 | D40: Atterrissage | E40: 9 | F40: 9 | G40: 7 | H40: 0 | I40: 0 | J40: 25 | K40: 0 | L40: 90 | M40: 0 | O40: 0
A41: 13 | B41: 43 | C41: 131353004301 | D41: Jeune Cigale | E41: 16 | F41: 16 | G41: 15 | H41: 0 | I41: 0 | J41: 47 | K41: 0 | L41: 46 | M41: 0 | O41: 0
A42: 13 | B42: 44 | C42: 130878013401 | D42: Sur le nid | E42: 12 | F42: 11 | G42: 12 | H42: 0 | I42: 0 | J42: 35 | K42: 0 | L42: 86 | M42: 0 | O42: 0
A43: 13 | B43: 45 | C43: 130878007201 | D43: Au sommet | E43: 12 | F43: 8 | G43: 12 | H43: 0 | I43: 0 | J43: 32 | K43: 0 | L43: 16 | M43: 0 | O43: 0
A44: 13 | B44: 46 | C44: 131992000401 | D44: Nouvelle nature | E44: 8 | F44: 6 | G44: 6 | H44: 0 | I44: 0 | J44: 20 | K44: 0 | L44: 84 | M44: 0 | O44: 0
A45: 13 | B45: 47 | C45: 131494003201 | D45: Alors, çà mord ? | E45: 11 | F45: 8 | G45: 10 | H45: 0 | I45: 0 | J45: 29 | K45: 0 | L45: 131 | M45: 0 | O45: 0
A46: 13 | B46: 48 | C46: 130987028401 | D46: Estany de la Comassa | E46: 8 | F46: 11 | G46: 8 | H46: 0 | I46: 0 | J46: 27 | K46: 0 | L46: 96 | M46: 0 | O46: 0
A47: 13 | B47: 49 | C47: 132086002301 | D47: Sombre-couchant | E47: 12 | F47: 12 | G47: 11 | H47: 0 | I47: 0 | J47: 35 | K47: 0 | L47: 41 | M47: 0 | O47: 0
A48: 13 | B48: 50 | C48: 130878014301 | D48: Carotte | E48: 6 | F48: 6 | G48: 6 | H48: 0 | I48: 0 | J48: 18 | K48: 0 | L48: 47 | M48: 0 | O48: 0
A49: 13 | B49: 51 | C49: 130993012301 | D49: Vautour fauve | E49: 13 | F49: 15 | G49: 12 | H49: 0 | I49: 0 | J49: 40 | K49: 0 | L49: 111 | M49: 0 | O49: 0
A50: 13 | B50: 52 | C50: 130925010201 | D50: Balanin en balade | E50: 9 | F50: 12 | G50: 12 | H50: 0 | I50: 0 | J50: 33 | K50: 0 | L50: 11 | M50: 0 | O50: 0
A51: 13 | B51: 53 | C51: 131376011801 | D51: Alcyon | E51: 6 | F51: 6 | G51: 6 | H51: 0 | I51: 0 | J51: 18 | K51: 0 | L51: 130 | M51: 0 | O51: 0
A52: 13 | B52: 54 | C52: 131353006101 | D52: Bon appétit | E52: 14 | F52: 12 | G52: 12 | H52: 0 | I52: 0 | J52: 38 | K52: 0 | L52: 81 | M52: 0 | O52: 0
A53: 13 | B53: 55 | C53: 130527015501 | D53: Fleur | E53: 11 | F53: 11 | G53: 9 | H53: 0 | I53: 0 | J53: 31 | K53: 0 | L53: 49 | M53: 0 | O53: 0
A54: 13 | B54: 56 | C54: 131956002601 | D54: Campanule | E54: 10 | F54: 10 | G54: 14 | H54: 0 | I54: 0 | J54: 34 | K54: 0 | L54: 62 | M54: 0 | O54: 0
A55: 13 | B55: 57 | C55: 131845004001 | D55: Vue du castellet | E55: 13 | F55: 9 | G55: 17 | H55: 0 | I55: 0 | J55: 39 | K55: 0 | L55: 121 | M55: 0 | O55: 0
A56: 13 | B56: 58 | C56: 131879000801 | D56: Le reflet | E56: 13 | F56: 12 | G56: 15 | H56: 0 | I56: 0 | J56: 40 | K56: 0 | L56: 99 | M56: 0 | O56: 0
A57: 13 | B57: 59 | C57: 131376018301 | D57: Butineuse | E57: 13 | F57: 12 | G57: 16 | H57: 0 | I57: 0 | J57: 41 | K57: 0 | L57: 126 | M57: 0 | O57: 0
A58: 13 | B58: 60 | C58: 131499009801 | D58: La becquée | E58: 18 | F58: 18 | G58: 18 | H58: 0 | I58: 0 | J58: 54 | K58: 0 | L58: 13 | M58: 0 | O58: 0
A59: 13 | B59: 61 | C59: 131499008201 | D59: Portrait buffle oiseau | E59: 13 | F59: 12 | G59: 16 | H59: 0 | I59: 0 | J59: 41 | K59: 0 | L59: 5 | M59: 0 | O59: 0
A60: 13 | B60: 62 | C60: 131824001901 | D60: Love | E60: 19 | F60: 14 | G60: 15 | H60: 0 | I60: 0 | J60: 48 | K60: 0 | L60: 54 | M60: 0 | O60: 0
A61: 13 | B61: 63 | C61: 132084000301 | D61: Face à face | E61: 7 | F61: 7 | G61: 10 | H61: 0 | I61: 0 | J61: 24 | K61: 0 | L61: 85 | M61: 0 | O61: 0
A62: 13 | B62: 64 | C62: 132089000301 | D62: Giens par grand vent | E62: 9 | F62: 11 | G62: 10 | H62: 0 | I62: 0 | J62: 30 | K62: 0 | L62: 127 | M62: 0 | O62: 0
A63: 13 | B63: 65 | C63: 130878013001 | D63: Perle de pluie | E63: 16 | F63: 9 | G63: 15 | H63: 0 | I63: 0 | J63: 40 | K63: 0 | L63: 43 | M63: 0 | O63: 0
A64: 13 | B64: 66 | C64: 130987007401 | D64: La Claree | E64: 14 | F64: 11 | G64: 13 | H64: 0 | I64: 0 | J64: 38 | K64: 0 | L64: 134 | M64: 0 | O64: 0
A65: 13 | B65: 67 | C65: 130925008701 | D65: Puma | E65: 10 | F65: 14 | G65: 13 | H65: 0 | I65: 0 | J65: 37 | K65: 0 | L65: 8 | M65: 0 | O65: 0
A66: 13 | B66: 68 | C66: 131956002901 | D66: Sable d'or | E66: 10 | F66: 9 | G66: 9 | H66: 0 | I66: 0 | J66: 28 | K66: 0 | L66: 74 | M66: 0 | O66: 0
A67: 13 | B67: 69 | C67: 131499011001 | D67: L'ours blanc et noir | E67: 14 | F67: 14 | G67: 14 | H67: 0 | I67: 0 | J67: =SUM(E67:I67) -> 42 | K67: 0 | L67: 133 | M67: 0 | O67: 0
A68: 13 | B68: 70 | C68: 132193000501 | D68: Cotton tree | E68: 6 | F68: 7 | G68: 8 | H68: 0 | I68: 0 | J68: 21 | K68: 0 | L68: 27 | M68: 0 | O68: 0
A69: 13 | B69: 71 | C69: 131376015801 | D69: Butinage | E69: 14 | F69: 13 | G69: 10 | H69: 0 | I69: 0 | J69: 37 | K69: 0 | L69: 15 | M69: 0 | O69: 0
A70: 13 | B70: 72 | C70: 131683003301 | D70: Reflets sur la laguna Leija 4340m | E70: 17 | F70: 17 | G70: 19 | H70: 0 | I70: 0 | J70: 53 | K70: 0 | L70: 10 | M70: 0 | O70: 0
A71: 13 | B71: 73 | C71: 132203000701 | D71: Tout dans la séduction | E71: 16 | F71: 14 | G71: 15 | H71: 0 | I71: 0 | J71: 45 | K71: 0 | L71: 57 | M71: 0 | O71: 0
A72: 13 | B72: 74 | C72: 131879002001 | D72: Aras | E72: 16 | F72: 11 | G72: 14 | H72: 0 | I72: 0 | J72: 41 | K72: 0 | L72: 55 | M72: 0 | O72: 0
A73: 13 | B73: 75 | C73: 130925007601 | D73: Eléphants du désert | E73: 12 | F73: 14 | G73: 13 | H73: 0 | I73: 0 | J73: 39 | K73: 0 | L73: 60 | M73: 0 | O73: 0
A74: 13 | B74: 76 | C74: 130925007701 | D74: L'arbre vert | E74: 15 | F74: 14 | G74: 15 | H74: 0 | I74: 0 | J74: 44 | K74: 0 | L74: 39 | M74: 0 | O74: 0
A75: 13 | B75: 77 | C75: 132086001401 | D75: Butinage | E75: 14 | F75: 17 | G75: 15 | H75: 0 | I75: 0 | J75: 46 | K75: 0 | L75: 77 | M75: 0 | O75: 0
A76: 13 | B76: 78 | C76: 130878014101 | D76: Chardon | E76: 6 | F76: 6 | G76: 6 | H76: 0 | I76: 0 | J76: 18 | K76: 0 | L76: 88 | M76: 0 | O76: 0
A77: 13 | B77: 79 | C77: 130527013301 | D77: Pelican | E77: 15 | F77: 15 | G77: 14 | H77: 0 | I77: 0 | J77: 44 | K77: 0 | L77: 80 | M77: 0 | O77: 0
A78: 13 | B78: 80 | C78: 131499010401 | D78: La vie à deux | E78: 14 | F78: 12 | G78: 15 | H78: 0 | I78: 0 | J78: 41 | K78: 0 | L78: 136 | M78: 0 | O78: 0
A79: 13 | B79: 81 | C79: 131227008301 | D79: Enlacer | E79: 13 | F79: 13 | G79: 11 | H79: 0 | I79: 0 | J79: 37 | K79: 0 | L79: 17 | M79: 0 | O79: 0
A80: 13 | B80: 82 | C80: 130987019601 | D80: Martin-chasseur du Sénégal | E80: 15 | F80: 15 | G80: 14 | H80: 0 | I80: 0 | J80: 44 | K80: 0 | L80: 120 | M80: 0 | O80: 0
A81: 13 | B81: 83 | C81: 131862002201 | D81: Scarabé rhino | E81: 12 | F81: 8 | G81: 7 | H81: 0 | I81: 0 | J81: 27 | K81: 0 | L81: 124 | M81: 0 | O81: 0
A82: 13 | B82: 84 | C82: 130987019701 | D82: Red bishop | E82: 12 | F82: 13 | G82: 14 | H82: 0 | I82: 0 | J82: 39 | K82: 0 | L82: 122 | M82: 0 | O82: 0
A83: 13 | B83: 87 | C83: 131879001901 | D83: Flamant | E83: 13 | F83: 9 | G83: 12 | H83: 0 | I83: 0 | J83: 34 | K83: 0 | L83: 64 | M83: 0 | O83: 0
A84: 13 | B84: 88 | C84: 131956004601 | D84: Neige fraiche au lever du soleil | E84: 14 | F84: 13 | G84: 11 | H84: 0 | I84: 0 | J84: 38 | K84: 0 | L84: 139 | M84: 0 | O84: 0
A85: 13 | B85: 89 | C85: 132084004001 | D85: Désert Blanc | E85: 14 | F85: 13 | G85: 13 | H85: 0 | I85: 0 | J85: 40 | K85: 0 | L85: 129 | M85: 0 | O85: 0
A86: 13 | B86: 90 | C86: 130925009901 | D86: Monstrueuse fracture | E86: 13 | F86: 8 | G86: 11 | H86: 0 | I86: 0 | J86: 32 | K86: 0 | L86: 56 | M86: 0 | O86: 0
A87: 13 | B87: 91 | C87: 130925009801 | D87: Iguane | E87: 12 | F87: 12 | G87: 10 | H87: 0 | I87: 0 | J87: 34 | K87: 0 | L87: 118 | M87: 0 | O87: 0
A88: 13 | B88: 92 | C88: 131956006501 | D88: Butinage | E88: 15 | F88: 12 | G88: 12 | H88: 0 | I88: 0 | J88: 39 | K88: 0 | L88: 114 | M88: 0 | O88: 0
A89: 13 | B89: 93 | C89: 131823004901 | D89: Sa trompe énormément | E89: 15 | F89: 12 | G89: 12 | H89: 0 | I89: 0 | J89: 39 | K89: 0 | L89: 61 | M89: 0 | O89: 0
A90: 13 | B90: 94 | C90: 131376014701 | D90: La mue | E90: 14 | F90: 16 | G90: 11 | H90: 0 | I90: 0 | J90: 41 | K90: 0 | L90: 24 | M90: 0 | O90: 0
A91: 13 | B91: 95 | C91: 131683007601 | D91: Hautain | E91: 14 | F91: 15 | G91: 13 | H91: 0 | I91: 0 | J91: 42 | K91: 0 | L91: 33 | M91: 0 | O91: 0
A92: 13 | B92: 96 | C92: 131956000201 | D92: Au pied du Viso | E92: 15 | F92: 12 | G92: 14 | H92: 0 | I92: 0 | J92: 41 | K92: 0 | L92: 59 | M92: 0 | O92: 0
A93: 13 | B93: 97 | C93: 130527009401 | D93: La rivière noire | E93: 16 | F93: 18 | G93: 16 | H93: 0 | I93: 0 | J93: 50 | K93: 0 | L93: 87 | M93: 0 | O93: 0
A94: 13 | B94: 98 | C94: 132060000701 | D94: Qu'est-ce qu'elle a ma gueule? | E94: 12 | F94: 7 | G94: 6 | H94: 0 | I94: 0 | J94: 25 | K94: 0 | L94: 63 | M94: 0 | O94: 0
A95: 13 | B95: 99 | C95: 131879001101 | D95: Envol | E95: 13 | F95: 7 | G95: 9 | H95: 0 | I95: 0 | J95: 29 | K95: 0 | L95: 70 | M95: 0 | O95: 0
A96: 13 | B96: 100 | C96: 132060001701 | D96: Lueurs nocturnes | E96: 12 | F96: 12 | G96: 13 | H96: 0 | I96: 0 | J96: 37 | K96: 0 | L96: 93 | M96: 0 | O96: 0
A97: 13 | B97: 101 | C97: 132060001501 | D97: Quiétude | E97: 11 | F97: 8 | G97: 8 | H97: 0 | I97: 0 | J97: 27 | K97: 0 | L97: 4 | M97: 0 | O97: 0
A98: 13 | B98: 102 | C98: 130993016601 | D98: Libellule sur Nenuphar | E98: 15 | F98: 14 | G98: 13 | H98: 0 | I98: 0 | J98: 42 | K98: 0 | L98: 29 | M98: 0 | O98: 0
A99: 13 | B99: 103 | C99: 131499003901 | D99: Les marques du temps | E99: 13 | F99: 19 | G99: 13 | H99: 0 | I99: 0 | J99: 45 | K99: 0 | L99: 119 | M99: 0 | O99: 0
A100: 13 | B100: 104 | C100: 132086002601 | D100: Renard | E100: 14 | F100: 13 | G100: 12 | H100: 0 | I100: 0 | J100: 39 | K100: 0 | L100: 45 | M100: 0 | O100: 0
A101: 13 | B101: 105 | C101: 131499010001 | D101: C'est mon petit | E101: 14 | F101: 15 | G101: 13 | H101: 0 | I101: 0 | J101: 42 | K101: 0 | L101: 75 | M101: 0 | O101: 0
A102: 13 | B102: 106 | C102: 132060000801 | D102: L'abeille et le nénuphar | E102: 13 | F102: 10 | G102: 10 | H102: 0 | I102: 0 | J102: 33 | K102: 0 | L102: 78 | M102: 0 | O102: 0
A103: 13 | B103: 107 | C103: 131499005201 | D103: Mesange | E103: 13 | F103: 12 | G103: 12 | H103: 0 | I103: 0 | J103: 37 | K103: 0 | L103: 12 | M103: 0 | O103: 0
A104: 13 | B104: 108 | C104: 131499010801 | D104: Poissons papillon | E104: 15 | F104: 10 | G104: 16 | H104: 0 | I104: 0 | J104: 41 | K104: 0 | L104: 66 | M104: 0 | O104: 0
A105: 13 | B105: 109 | C105: 132217000101 | D105: Blanc Bleu | E105: 11 | F105: 14 | G105: 12 | H105: 0 | I105: 0 | J105: 37 | K105: 0 | L105: 97 | M105: 0 | O105: 0
A106: 13 | B106: 110 | C106: 131956005901 | D106: En vol | E106: 12 | F106: 11 | G106: 10 | H106: 0 | I106: 0 | J106: 33 | K106: 0 | L106: 19 | M106: 0 | O106: 0
A107: 13 | B107: 111 | C107: 131956002401 | D107: Danseur à cornes | E107: 12 | F107: 11 | G107: 12 | H107: 0 | I107: 0 | J107: 35 | K107: 0 | L107: 76 | M107: 0 | O107: 0
A108: 13 | B108: 112 | C108: 131227008601 | D108: Lac de monteux | E108: 13 | F108: 17 | G108: 14 | H108: 0 | I108: 0 | J108: 44 | K108: 0 | L108: 32 | M108: 0 | O108: 0
A109: 13 | B109: 113 | C109: 132147000101 | D109: Cincle plongeur | E109: 14 | F109: 13 | G109: 11 | H109: 0 | I109: 0 | J109: 38 | K109: 0 | L109: 38 | M109: 0 | O109: 0
A110: 13 | B110: 114 | C110: 132023002201 | D110: La sortie du bain | E110: 16 | F110: 16 | G110: 17 | H110: 0 | I110: 0 | J110: 49 | K110: 0 | L110: 109 | M110: 0 | O110: 0
A111: 13 | B111: 115 | C111: 131845004101 | D111: Cigognes en Camargue | E111: 6 | F111: 9 | G111: 11 | H111: 0 | I111: 0 | J111: 26 | K111: 0 | L111: 135 | M111: 0 | O111: 0
A112: 13 | B112: 116 | C112: 131499006901 | D112: Câlin aquatique | E112: 14 | F112: 10 | G112: 15 | H112: 0 | I112: 0 | J112: 39 | K112: 0 | L112: 36 | M112: 0 | O112: 0
A113: 13 | B113: 117 | C113: 131956001401 | D113: Etang du Vaccarès | E113: 6 | F113: 6 | G113: 6 | H113: 0 | I113: 0 | J113: 18 | K113: 0 | L113: 31 | M113: 0 | O113: 0
A114: 13 | B114: 118 | C114: 132060001201 | D114: Transparence | E114: 13 | F114: 12 | G114: 15 | H114: 0 | I114: 0 | J114: 40 | K114: 0 | L114: 30 | M114: 0 | O114: 0
A115: 13 | B115: 119 | C115: 132203001001 | D115: Coucher dans l'herbe | E115: 6 | F115: 6 | G115: 6 | H115: 0 | I115: 0 | J115: 18 | K115: 0 | L115: 100 | M115: 0 | O115: 0
A116: 13 | B116: 120 | C116: 130987026701 | D116: Miroir et Flamant rose | E116: 12 | F116: 12 | G116: 13 | H116: 0 | I116: 0 | J116: 37 | K116: 0 | L116: 110 | M116: 0 | O116: 0
A117: 13 | B117: 121 | C117: 131619004501 | D117: Lac Lavoir | E117: 16 | F117: 15 | G117: 15 | H117: 0 | I117: 0 | J117: 46 | K117: 0 | L117: 79 | M117: 0 | O117: 0
A118: 13 | B118: 122 | C118: 132060000401 | D118: En pêche | E118: 13 | F118: 12 | G118: 11 | H118: 0 | I118: 0 | J118: 36 | K118: 0 | L118: 115 | M118: 0 | O118: 0
A119: 13 | B119: 123 | C119: 132060000901 | D119: Martin pêcheur à l'affût | E119: 11 | F119: 15 | G119: 12 | H119: 0 | I119: 0 | J119: 38 | K119: 0 | L119: 91 | M119: 0 | O119: 0
A120: 13 | B120: 124 | C120: 130527002501 | D120: Sphins | E120: 10 | F120: 11 | G120: 9 | H120: 0 | I120: 0 | J120: 30 | K120: 0 | L120: 40 | M120: 0 | O120: 0
A121: 13 | B121: 125 | C121: 130987023901 | D121: Avant l'orage | E121: 13 | F121: 13 | G121: 9 | H121: 0 | I121: 0 | J121: 35 | K121: 0 | L121: 132 | M121: 0 | O121: 0
A122: 13 | B122: 126 | C122: 130987001601 | D122: Iceland | E122: 13 | F122: 12 | G122: 7 | H122: 0 | I122: 0 | J122: 32 | K122: 0 | L122: 48 | M122: 0 | O122: 0
A123: 13 | B123: 127 | C123: 131499006801 | D123: Le Butineur | E123: 17 | F123: 18 | G123: 17 | H123: 0 | I123: 0 | J123: 52 | K123: 0 | L123: 68 | M123: 0 | O123: 0
A124: 13 | B124: 128 | C124: 130993010201 | D124: Vulpes vulpes | E124: 15 | F124: 12 | G124: 14 | H124: 0 | I124: 0 | J124: 41 | K124: 0 | L124: 98 | M124: 0 | O124: 0
A125: 13 | B125: 129 | C125: 130921006401 | D125: En attendant le poisson | E125: 13 | F125: 11 | G125: 10 | H125: 0 | I125: 0 | J125: 34 | K125: 0 | L125: 117 | M125: 0 | O125: 0
A126: 13 | B126: 130 | C126: 131353006201 | D126: Bientôt du miel | E126: 14 | F126: 12 | G126: 9 | H126: 0 | I126: 0 | J126: 35 | K126: 0 | L126: 50 | M126: 0 | O126: 0
A127: 13 | B127: 131 | C127: 132060001801 | D127: Aurore... presque boréale ! | E127: 8 | F127: 8 | G127: 6 | H127: 0 | I127: 0 | J127: 22 | K127: 0 | L127: 108 | M127: 0 | O127: 0
A128: 13 | B128: 132 | C128: 131879000601 | D128: Solfatare en Islande | E128: 10 | F128: 13 | G128: 8 | H128: 0 | I128: 0 | J128: 31 | K128: 0 | L128: 95 | M128: 0 | O128: 0
A129: 13 | B129: 133 | C129: 130987002301 | D129: Sapajous Brun | E129: 11 | F129: 14 | G129: 14 | H129: 0 | I129: 0 | J129: 39 | K129: 0 | L129: 102 | M129: 0 | O129: 0
A130: 13 | B130: 134 | C130: 131683002601 | D130: Chouette de Tengmalm | E130: 20 | F130: 18 | G130: 18 | H130: 0 | I130: 0 | J130: 56 | K130: 0 | L130: 14 | M130: 0 | O130: 0
A131: 13 | B131: 135 | C131: 131499010501 | D131: Saut de bonite | E131: 15 | F131: 13 | G131: 13 | H131: 0 | I131: 0 | J131: =SUM(E131:I131) -> 41 | K131: 0 | L131: 2 | M131: 0 | O131: 0
A132: 13 | B132: 136 | C132: 131499010601 | D132: Goutte de bec | E132: 8 | F132: 13 | G132: 11 | H132: 0 | I132: 0 | J132: 32 | K132: 0 | L132: 23 | M132: 0 | O132: 0
A133: 13 | B133: 137 | C133: 130925010501 | D133: Le temps des amours | E133: 15 | F133: 13 | G133: 13 | H133: 0 | I133: 0 | J133: 41 | K133: 0 | L133: 67 | M133: 0 | O133: 0
A134: 13 | B134: 138 | C134: 131956005701 | D134: Rencontre par surprise | E134: 11 | F134: 10 | G134: 7 | H134: 0 | I134: 0 | J134: 28 | K134: 0 | L134: 69 | M134: 0 | O134: 0
A135: 13 | B135: 139 | C135: 131845001401 | D135: Affût | E135: 14 | F135: 11 | G135: 14 | H135: 0 | I135: 0 | J135: 39 | K135: 0 | L135: 35 | M135: 0 | O135: 0
A136: 13 | B136: 140 | C136: 131683006501 | D136: Jonquille | E136: 12 | F136: 10 | G136: 8 | H136: 0 | I136: 0 | J136: 30 | K136: 0 | L136: 138 | M136: 0 | O136: 0
A137: 13 | B137: 141 | C137: 131499010101 | D137: En retard | E137: 16 | F137: 7 | G137: 8 | H137: 0 | I137: 0 | J137: 31 | K137: 0 | L137: 104 | M137: 0 | O137: 0
A138: 13 | B138: 142 | C138: 130527017001 | D138: A chacun sa chevelure ... | E138: 12 | F138: 11 | G138: 6 | H138: 0 | I138: 0 | J138: 29 | K138: 0 | L138: 112 | M138: 0 | O138: 0
A139: 13 | B139: 143 | C139: 130987025001 | D139: Caillou sur la plage | E139: 13 | F139: 10 | G139: 7 | H139: 0 | I139: 0 | J139: 30 | K139: 0 | L139: 44 | M139: 0 | O139: 0
A140: 13 | B140: 144 | C140: 131823006401 | D140: Fusion | E140: 13 | F140: 12 | G140: 12 | H140: 0 | I140: 0 | J140: 37 | K140: 0 | L140: 83 | M140: 0 | O140: 0
A141: 13 | B141: 145 | C141: 131823004201 | D141: Ourlé de blanc | E141: 13 | F141: 9 | G141: 7 | H141: 0 | I141: 0 | J141: 29 | K141: 0 | L141: 21 | M141: 0 | O141: 0
A142: 13 | B142: 146 | C142: 131353000101 | D142: Criquet | E142: 13 | F142: 19 | G142: 15 | H142: 0 | I142: 0 | J142: 47 | K142: 0 | L142: 20 | M142: 0 | O142: 0
A143: 13 | B143: 147 | C143: 131353000701 | D143: Mante religieuse | E143: 20 | F143: 20 | G143: 17 | H143: 0 | I143: 0 | J143: 57 | K143: 0 | L143: 92 | M143: 0 | O143: 0

Sheet Défi-5
A1: colis | B1: photologic | C1: fichier | D1: titre | E1: note1 | F1: note2 | G1: note3 | H1: note4 | I1: note5 | J1: total | K1: place | L1: passage | M1: statut | N1: medaille | O1: retenue
A2: 13 | B2: 1 | C2: 131494003001 | D2: Reflet nocturne | E2: 10 | F2: 7 | G2: 7 | H2: 0 | I2: 0 | J2: =SUM(E2:I2) -> 24 | K2: 0 | L2: 120 | M2: 0 | O2: 0
A3: 13 | B3: 2 | C3: 131823008301 | D3: Promenade | E3: 14 | F3: 15 | G3: 13 | H3: 0 | I3: 0 | J3: =SUM(E3:I3) -> 42 | K3: 0 | L3: 143 | M3: 0 | O3: 0
A4: 13 | B4: 3 | C4: 132147000101 | D4: Reflet Vénitien | E4: 11 | F4: 15 | G4: 10 | H4: 0 | I4: 0 | J4: 36 | K4: 0 | L4: 33 | M4: 0 | O4: 0
A5: 13 | B5: 4 | C5: 130987024101 | D5: La caravane | E5: 11 | F5: 19 | G5: 14 | H5: 0 | I5: 0 | J5: 44 | K5: 0 | L5: 149 | M5: 0 | O5: 0
A6: 13 | B6: 6 | C6: 130527002501 | D6: Tacle | E6: 7 | F6: 11 | G6: 14 | H6: 0 | I6: 0 | J6: 32 | K6: 0 | L6: 164 | M6: 0 | O6: 0
A7: 13 | B7: 7 | C7: 132023000101 | D7: Cabanes de pêcheurs | E7: 11 | F7: 10 | G7: 15 | H7: 0 | I7: 0 | J7: 36 | K7: 0 | L7: 4 | M7: 0 | O7: 0
A8: 13 | B8: 8 | C8: 132084004001 | D8: La négociation | E8: 11 | F8: 18 | G8: 13 | H8: 0 | I8: 0 | J8: 42 | K8: 0 | L8: 96 | M8: 0 | O8: 0
A9: 13 | B9: 9 | C9: 131683008101 | D9: Lola | E9: 14 | F9: 14 | G9: 15 | H9: 0 | I9: 0 | J9: 43 | K9: 0 | L9: 69 | M9: 0 | O9: 0
A10: 13 | B10: 10 | C10: 130987019701 | D10: Face à face | E10: 14 | F10: 10 | G10: 13 | H10: 0 | I10: 0 | J10: 37 | K10: 0 | L10: 86 | M10: 0 | O10: 0
A11: 13 | B11: 11 | C11: 130987019601 | D11: Les pénitents | E11: 10 | F11: 7 | G11: 17 | H11: 0 | I11: 0 | J11: 34 | K11: 0 | L11: 88 | M11: 0 | O11: 0
A12: 13 | B12: 13 | C12: 130878013601 | D12: En attente | E12: 8 | F12: 12 | G12: 14 | H12: 0 | I12: 0 | J12: 34 | K12: 0 | L12: 18 | M12: 0 | O12: 0
A13: 13 | B13: 14 | C13: 130993012301 | D13: Flamenco | E13: 13 | F13: 13 | G13: 15 | H13: 0 | I13: 0 | J13: 41 | K13: 0 | L13: 106 | M13: 0 | O13: 0
A14: 13 | B14: 15 | C14: 132086002301 | D14: Tourbillon d'or | E14: 12 | F14: 8 | G14: 12 | H14: 0 | I14: 0 | J14: 32 | K14: 0 | L14: 25 | M14: 0 | O14: 0
A15: 13 | B15: 16 | C15: 130987028401 | D15: Au bout... de la Presqu'île | E15: 11 | F15: 14 | G15: 11 | H15: 0 | I15: 0 | J15: 36 | K15: 0 | L15: 65 | M15: 0 | O15: 0
A16: 13 | B16: 17 | C16: 130987013801 | D16: Gymnaste en compétition | E16: 11 | F16: 18 | G16: 13 | H16: 0 | I16: 0 | J16: 42 | K16: 0 | L16: 153 | M16: 0 | O16: 0
A17: 13 | B17: 18 | C17: 131376012601 | D17: Jour de neige | E17: 14 | F17: 14 | G17: 6 | H17: 0 | I17: 0 | J17: 34 | K17: 0 | L17: 22 | M17: 0 | O17: 0
A18: 13 | B18: 19 | C18: 131956002901 | D18: Regard | E18: 7 | F18: 10 | G18: 11 | H18: 0 | I18: 0 | J18: 28 | K18: 0 | L18: 61 | M18: 0 | O18: 0
A19: 13 | B19: 20 | C19: 132084001701 | D19: Eglise | E19: 14 | F19: 15 | G19: 12 | H19: 0 | I19: 0 | J19: 41 | K19: 0 | L19: 78 | M19: 0 | O19: 0
A20: 13 | B20: 21 | C20: 131376011801 | D20: Moines du Djokang | E20: 13 | F20: 18 | G20: 15 | H20: 0 | I20: 0 | J20: 46 | K20: 0 | L20: 111 | M20: 0 | O20: 0
A21: 13 | B21: 22 | C21: 130993013801 | D21: Promeneur du soir | E21: 13 | F21: 14 | G21: 11 | H21: 0 | I21: 0 | J21: 38 | K21: 0 | L21: 110 | M21: 0 | O21: 0
A22: 13 | B22: 23 | C22: 132060000101 | D22: FETE AU CHATEAU | E22: 9 | F22: 16 | G22: 9 | H22: 0 | I22: 0 | J22: 34 | K22: 0 | L22: 115 | M22: 0 | O22: 0
A23: 13 | B23: 24 | C23: 131823004901 | D23: Dans les bras de Morphée | E23: 11 | F23: 15 | G23: 15 | H23: 0 | I23: 0 | J23: 41 | K23: 0 | L23: 35 | M23: 0 | O23: 0
A24: 13 | B24: 25 | C24: 131824001901 | D24: Un matin sur ma planète | E24: 16 | F24: 15 | G24: 13 | H24: 0 | I24: 0 | J24: 44 | K24: 0 | L24: 107 | M24: 0 | O24: 0
A25: 13 | B25: 26 | C25: 130878015801 | D25: Laveur d'Affiche | E25: 18 | F25: 13 | G25: 18 | H25: 0 | I25: 0 | J25: 49 | K25: 0 | L25: 32 | M25: 0 | O25: 0
A26: 13 | B26: 28 | C26: 131499006801 | D26: Fauteuil Rouge | E26: 8 | F26: 15 | G26: 19 | H26: 0 | I26: 0 | J26: 42 | K26: 0 | L26: 67 | M26: 0 | O26: 0
A27: 13 | B27: 29 | C27: 131879000101 | D27: Cerisiers en fleurs | E27: 8 | F27: 12 | G27: 8 | H27: 0 | I27: 0 | J27: 28 | K27: 0 | L27: 77 | M27: 0 | O27: 0
A28: 13 | B28: 30 | C28: 132084000201 | D28: Tristesse | E28: 13 | F28: 15 | G28: 10 | H28: 0 | I28: 0 | J28: 38 | K28: 0 | L28: 104 | M28: 0 | O28: 0
A29: 13 | B29: 31 | C29: 131879001101 | D29: Couleurs d'automne | E29: 13 | F29: 13 | G29: 12 | H29: 0 | I29: 0 | J29: 38 | K29: 0 | L29: 128 | M29: 0 | O29: 0
A30: 13 | B30: 32 | C30: 130878013401 | D30: Lady | E30: 8 | F30: 11 | G30: 11 | H30: 0 | I30: 0 | J30: 30 | K30: 0 | L30: 47 | M30: 0 | O30: 0
A31: 13 | B31: 33 | C31: 131683006901 | D31: Un p'tit coin de parapluie | E31: 17 | F31: 13 | G31: 11 | H31: 0 | I31: 0 | J31: 41 | K31: 0 | L31: 75 | M31: 0 | O31: 0
A32: 13 | B32: 34 | C32: 131683007001 | D32: Ordre décroissant | E32: 9 | F32: 14 | G32: 10 | H32: 0 | I32: 0 | J32: 33 | K32: 0 | L32: 157 | M32: 0 | O32: 0
A33: 13 | B33: 35 | C33: 130993015401 | D33: La cabanne du peuchère | E33: 9 | F33: 11 | G33: 11 | H33: 0 | I33: 0 | J33: 31 | K33: 0 | L33: 63 | M33: 0 | O33: 0
A34: 13 | B34: 36 | C34: 130987007401 | D34: Orage imminent | E34: 10 | F34: 15 | G34: 12 | H34: 0 | I34: 0 | J34: 37 | K34: 0 | L34: 41 | M34: 0 | O34: 0
A35: 13 | B35: 37 | C35: 132217000601 | D35: Ancienne taverne crétoise | E35: 8 | F35: 10 | G35: 11 | H35: 0 | I35: 0 | J35: 29 | K35: 0 | L35: 7 | M35: 0 | O35: 0
A36: 13 | B36: 38 | C36: 132193000301 | D36: Solfar | E36: 13 | F36: 13 | G36: 12 | H36: 0 | I36: 0 | J36: 38 | K36: 0 | L36: 159 | M36: 0 | O36: 0
A37: 13 | B37: 39 | C37: 131879002001 | D37: Procession | E37: 12 | F37: 13 | G37: 13 | H37: 0 | I37: 0 | J37: 38 | K37: 0 | L37: 20 | M37: 0 | O37: 0
A38: 13 | B38: 40 | C38: 131879001301 | D38: Regard | E38: 18 | F38: 14 | G38: 10 | H38: 0 | I38: 0 | J38: 42 | K38: 0 | L38: 38 | M38: 0 | O38: 0
A39: 13 | B39: 41 | C39: 132203000601 | D39: Soir | E39: 11 | F39: 7 | G39: 10 | H39: 0 | I39: 0 | J39: 28 | K39: 0 | L39: 72 | M39: 0 | O39: 0
A40: 13 | B40: 42 | C40: 130878014301 | D40: Bulle colorée | E40: 10 | F40: 9 | G40: 10 | H40: 0 | I40: 0 | J40: 29 | K40: 0 | L40: 100 | M40: 0 | O40: 0
A41: 13 | B41: 43 | C41: 131879000501 | D41: Contemplation | E41: 13 | F41: 10 | G41: 16 | H41: 0 | I41: 0 | J41: 39 | K41: 0 | L41: 68 | M41: 0 | O41: 0
A42: 13 | B42: 44 | C42: 131683007901 | D42: M à Venise | E42: 19 | F42: 20 | G42: 19 | H42: 0 | I42: 0 | J42: 58 | K42: 0 | L42: 5 | M42: 0 | O42: 0
A43: 13 | B43: 46 | C43: 131499008701 | D43: Harmonie | E43: 9 | F43: 14 | G43: 11 | H43: 0 | I43: 0 | J43: 34 | K43: 0 | L43: 112 | M43: 0 | O43: 0
A44: 13 | B44: 47 | C44: 130987015701 | D44: Beauté voilée | E44: 12 | F44: 16 | G44: 18 | H44: 0 | I44: 0 | J44: 46 | K44: 0 | L44: 21 | M44: 0 | O44: 0
A45: 13 | B45: 48 | C45: 130000020401 | D45: LUMA - Architecture de Demain | E45: 12 | F45: 19 | G45: 12 | H45: 0 | I45: 0 | J45: 43 | K45: 0 | L45: 155 | M45: 6 | O45: 0
A46: 13 | B46: 49 | C46: 130878007201 | D46: Photosphore | E46: 12 | F46: 13 | G46: 10 | H46: 0 | I46: 0 | J46: 35 | K46: 0 | L46: 73 | M46: 0 | O46: 0
A47: 13 | B47: 51 | C47: 131376018301 | D47: Marché de nuit | E47: 9 | F47: 18 | G47: 17 | H47: 0 | I47: 0 | J47: 44 | K47: 0 | L47: 14 | M47: 0 | O47: 0
A48: 13 | B48: 52 | C48: 132193001901 | D48: Flamboyant ciel | E48: 14 | F48: 12 | G48: 13 | H48: 0 | I48: 0 | J48: 39 | K48: 0 | L48: 133 | M48: 0 | O48: 0
A49: 13 | B49: 53 | C49: 131956003401 | D49: Bise | E49: 9 | F49: 12 | G49: 12 | H49: 0 | I49: 0 | J49: 33 | K49: 0 | L49: 139 | M49: 0 | O49: 0
A50: 13 | B50: 54 | C50: 131353000201 | D50: Petit garçon au chapeau | E50: 10 | F50: 15 | G50: 12 | H50: 0 | I50: 0 | J50: 37 | K50: 0 | L50: 151 | M50: 0 | O50: 0
A51: 13 | B51: 55 | C51: 131227008301 | D51: Bord du Rhône | E51: 14 | F51: 9 | G51: 11 | H51: 0 | I51: 0 | J51: 34 | K51: 0 | L51: 98 | M51: 0 | O51: 0
A52: 13 | B52: 56 | C52: 131992000401 | D52: J'aime l'école | E52: 12 | F52: 18 | G52: 15 | H52: 0 | I52: 0 | J52: 45 | K52: 0 | L52: 44 | M52: 0 | O52: 0
A53: 13 | B53: 57 | C53: 131899000801 | D53: Furtive | E53: 19 | F53: 9 | G53: 13 | H53: 0 | I53: 0 | J53: 41 | K53: 0 | L53: 11 | M53: 0 | O53: 0
A54: 13 | B54: 58 | C54: 131992000301 | D54: Contournement. | E54: 12 | F54: 9 | G54: 10 | H54: 0 | I54: 0 | J54: 31 | K54: 0 | L54: 40 | M54: 0 | O54: 0
A55: 13 | B55: 59 | C55: 132023002201 | D55: La porte de l'ecole | E55: 12 | F55: 18 | G55: 13 | H55: 0 | I55: 0 | J55: 43 | K55: 0 | L55: 31 | M55: 0 | O55: 0
A56: 13 | B56: 60 | C56: 131683007601 | D56: Sous terre | E56: 9 | F56: 11 | G56: 12 | H56: 0 | I56: 0 | J56: 32 | K56: 0 | L56: 156 | M56: 0 | O56: 0
A57: 13 | B57: 61 | C57: 131823007601 | D57: Gardian | E57: 11 | F57: 8 | G57: 11 | H57: 0 | I57: 0 | J57: 30 | K57: 0 | L57: 137 | M57: 0 | O57: 0
A58: 13 | B58: 62 | C58: 132060001801 | D58: Sérénité | E58: 14 | F58: 16 | G58: 17 | H58: 0 | I58: 0 | J58: 47 | K58: 0 | L58: 144 | M58: 0 | O58: 0
A59: 13 | B59: 64 | C59: 131499011001 | D59: Le C | E59: 18 | F59: 16 | G59: 17 | H59: 0 | I59: 0 | J59: 51 | K59: 0 | L59: 54 | M59: 0 | O59: 0
A60: 13 | B60: 65 | C60: 130987024201 | D60: Danse des esprits | E60: 9 | F60: 14 | G60: 16 | H60: 0 | I60: 0 | J60: 39 | K60: 0 | L60: 101 | M60: 0 | O60: 0
A61: 13 | B61: 66 | C61: 131110001101 | D61: Chanteur de blues | E61: 17 | F61: 17 | G61: 11 | H61: 0 | I61: 0 | J61: 45 | K61: 0 | L61: 79 | M61: 0 | O61: 0
A62: 13 | B62: 67 | C62: 132193000401 | D62: Promenade dans les ocres | E62: 9 | F62: 15 | G62: 9 | H62: 0 | I62: 0 | J62: 33 | K62: 0 | L62: 82 | M62: 0 | O62: 0
A63: 13 | B63: 68 | C63: 132060001701 | D63: Pause café | E63: 11 | F63: 12 | G63: 14 | H63: 0 | I63: 0 | J63: 37 | K63: 0 | L63: 87 | M63: 0 | O63: 0
A64: 13 | B64: 69 | C64: 130878014101 | D64: Echoué | E64: 17 | F64: 20 | G64: 19 | H64: 0 | I64: 0 | J64: 56 | K64: 0 | L64: 26 | M64: 0 | O64: 0
A65: 13 | B65: 71 | C65: 131499009801 | D65: Mon beau miroir | E65: 13 | F65: 16 | G65: 13 | H65: 0 | I65: 0 | J65: 42 | K65: 0 | L65: 39 | M65: 0 | O65: 0
A66: 13 | B66: 72 | C66: 131499010401 | D66: Filets du petit matin | E66: 12 | F66: 15 | G66: 14 | H66: 0 | I66: 0 | J66: 41 | K66: 0 | L66: 76 | M66: 0 | O66: 0
A67: 13 | B67: 73 | C67: 132084003501 | D67: Le chemin des couleurs | E67: 11 | F67: 14 | G67: 13 | H67: 0 | I67: 0 | J67: =SUM(E67:I67) -> 38 | K67: 0 | L67: 113 | M67: 0 | O67: 0
A68: 13 | B68: 74 | C68: 131956001401 | D68: Virage Gondole | E68: 9 | F68: 14 | G68: 12 | H68: 0 | I68: 0 | J68: 35 | K68: 0 | L68: 9 | M68: 0 | O68: 0
A69: 13 | B69: 75 | C69: 131879000801 | D69: La fille au masque | E69: 11 | F69: 12 | G69: 13 | H69: 0 | I69: 0 | J69: 36 | K69: 0 | L69: 74 | M69: 0 | O69: 0
A70: 13 | B70: 76 | C70: 132023001701 | D70: Mongolfière | E70: 11 | F70: 14 | G70: 13 | H70: 0 | I70: 0 | J70: 38 | K70: 0 | L70: 141 | M70: 0 | O70: 0
A71: 13 | B71: 77 | C71: 131619004601 | D71: Pêche en Brenne | E71: 13 | F71: 17 | G71: 13 | H71: 0 | I71: 0 | J71: 43 | K71: 0 | L71: 146 | M71: 0 | O71: 0
A72: 13 | B72: 78 | C72: 132193000501 | D72: La Nuit du carrefour | E72: 13 | F72: 15 | G72: 13 | H72: 0 | I72: 0 | J72: 41 | K72: 0 | L72: 90 | M72: 0 | O72: 0
A73: 13 | B73: 79 | C73: 130000019901 | D73: Paris | E73: 9 | F73: 13 | G73: 15 | H73: 0 | I73: 0 | J73: 37 | K73: 0 | L73: 81 | M73: 6 | O73: 0
A74: 13 | B74: 80 | C74: 131499010101 | D74: Aurore | E74: 10 | F74: 12 | G74: 12 | H74: 0 | I74: 0 | J74: 34 | K74: 0 | L74: 136 | M74: 0 | O74: 0
A75: 13 | B75: 81 | C75: 132084003601 | D75: Voie en couleur | E75: 9 | F75: 14 | G75: 12 | H75: 0 | I75: 0 | J75: 35 | K75: 0 | L75: 119 | M75: 0 | O75: 0
A76: 13 | B76: 82 | C76: 131499010301 | D76: Face au large | E76: 19 | F76: 16 | G76: 15 | H76: 0 | I76: 0 | J76: 50 | K76: 0 | L76: 114 | M76: 0 | O76: 0
A77: 13 | B77: 83 | C77: 132193001201 | D77: Meton au lever de soleil | E77: 10 | F77: 13 | G77: 14 | H77: 0 | I77: 0 | J77: 37 | K77: 0 | L77: 129 | M77: 0 | O77: 0
A78: 13 | B78: 84 | C78: 131499010001 | D78: Olivia Ruiz aux Nuits du Sud | E78: 11 | F78: 15 | G78: 16 | H78: 0 | I78: 0 | J78: 42 | K78: 0 | L78: 48 | M78: 0 | O78: 0
A79: 13 | B79: 86 | C79: 130527015501 | D79: Couleurs | E79: 9 | F79: 12 | G79: 11 | H79: 0 | I79: 0 | J79: 32 | K79: 0 | L79: 162 | M79: 0 | O79: 0
A80: 13 | B80: 87 | C80: 130993014001 | D80: Le passage | E80: 11 | F80: 8 | G80: 12 | H80: 0 | I80: 0 | J80: 31 | K80: 0 | L80: 66 | M80: 0 | O80: 0
A81: 13 | B81: 88 | C81: 131353006101 | D81: Regard bleu | E81: 10 | F81: 14 | G81: 12 | H81: 0 | I81: 0 | J81: 36 | K81: 0 | L81: 15 | M81: 0 | O81: 0
A82: 13 | B82: 89 | C82: 131499008201 | D82: L'arrêt de bus | E82: 13 | F82: 17 | G82: 19 | H82: 0 | I82: 0 | J82: 49 | K82: 0 | L82: 140 | M82: 0 | O82: 0
A83: 13 | B83: 90 | C83: 131683006301 | D83: Blanc | E83: 16 | F83: 17 | G83: 12 | H83: 0 | I83: 0 | J83: 45 | K83: 0 | L83: 138 | M83: 0 | O83: 0
A84: 13 | B84: 91 | C84: 131353003001 | D84: Femme Nature | E84: 9 | F84: 16 | G84: 10 | H84: 0 | I84: 0 | J84: 35 | K84: 0 | L84: 28 | M84: 0 | O84: 0
A85: 13 | B85: 92 | C85: 131353007101 | D85: Bravo! | E85: 9 | F85: 15 | G85: 13 | H85: 0 | I85: 0 | J85: 37 | K85: 0 | L85: 2 | M85: 0 | O85: 0
A86: 13 | B86: 93 | C86: 131110000901 | D86: Le cycliste | E86: 16 | F86: 14 | G86: 11 | H86: 0 | I86: 0 | J86: 41 | K86: 0 | L86: 58 | M86: 0 | O86: 0
A87: 13 | B87: 94 | C87: 131499005201 | D87: Femme au chapeau | E87: 9 | F87: 17 | G87: 13 | H87: 0 | I87: 0 | J87: 39 | K87: 0 | L87: 94 | M87: 0 | O87: 0
A88: 13 | B88: 95 | C88: 131499003901 | D88: Campagne beaujolaise | E88: 19 | F88: 12 | G88: 8 | H88: 0 | I88: 0 | J88: 39 | K88: 0 | L88: 109 | M88: 0 | O88: 0
A89: 13 | B89: 96 | C89: 131879000901 | D89: Corvette | E89: 9 | F89: 8 | G89: 12 | H89: 0 | I89: 0 | J89: 29 | K89: 0 | L89: 126 | M89: 0 | O89: 0
A90: 13 | B90: 97 | C90: 131494000201 | D90: Voile 7 | E90: 16 | F90: 9 | G90: 12 | H90: 0 | I90: 0 | J90: 37 | K90: 0 | L90: 80 | M90: 0 | O90: 0
A91: 13 | B91: 98 | C91: 131683006601 | D91: Balade nocturne | E91: 14 | F91: 18 | G91: 17 | H91: 0 | I91: 0 | J91: 49 | K91: 0 | L91: 49 | M91: 0 | O91: 0
A92: 13 | B92: 99 | C92: 131353004301 | D92: Eventail | E92: 10 | F92: 7 | G92: 7 | H92: 0 | I92: 0 | J92: 24 | K92: 0 | L92: 59 | M92: 0 | O92: 0
A93: 13 | B93: 100 | C93: 131494002301 | D93: Dans le sable. | E93: 10 | F93: 16 | G93: 16 | H93: 0 | I93: 0 | J93: 42 | K93: 0 | L93: 13 | M93: 0 | O93: 0
A94: 13 | B94: 101 | C94: 132203000701 | D94: Le p'tit café! place Garibaldi..... | E94: 11 | F94: 15 | G94: 14 | H94: 0 | I94: 0 | J94: 40 | K94: 0 | L94: 45 | M94: 0 | O94: 0
A95: 13 | B95: 103 | C95: 130925009901 | D95: Exposition Universelle Milan | E95: 9 | F95: 15 | G95: 13 | H95: 0 | I95: 0 | J95: 37 | K95: 0 | L95: 56 | M95: 0 | O95: 0
A96: 13 | B96: 105 | C96: 131845003401 | D96: Et danse la peinture | E96: 11 | F96: 16 | G96: 13 | H96: 0 | I96: 0 | J96: 40 | K96: 0 | L96: 37 | M96: 0 | O96: 0
A97: 13 | B97: 106 | C97: 131376014701 | D97: Le père et l'enfant | E97: 14 | F97: 17 | G97: 13 | H97: 0 | I97: 0 | J97: 44 | K97: 0 | L97: 158 | M97: 0 | O97: 0
A98: 13 | B98: 107 | C98: 131956004601 | D98: Graphismes camarguais | E98: 10 | F98: 9 | G98: 8 | H98: 0 | I98: 0 | J98: 27 | K98: 0 | L98: 10 | M98: 0 | O98: 0
A99: 13 | B99: 108 | C99: 131956006101 | D99: Dans les nuages | E99: 14 | F99: 14 | G99: 14 | H99: 0 | I99: 0 | J99: 42 | K99: 0 | L99: 62 | M99: 0 | O99: 0
A100: 13 | B100: 109 | C100: 130462009601 | D100: Sticky Boys | E100: 13 | F100: 10 | G100: 12 | H100: 0 | I100: 0 | J100: 35 | K100: 0 | L100: 116 | M100: 0 | O100: 0
A101: 13 | B101: 110 | C101: 131899003801 | D101: Bord de mer | E101: 11 | F101: 13 | G101: 13 | H101: 0 | I101: 0 | J101: 37 | K101: 0 | L101: 53 | M101: 0 | O101: 0
A102: 13 | B102: 111 | C102: 131956006501 | D102: éclosion | E102: 11 | F102: 14 | G102: 11 | H102: 0 | I102: 0 | J102: 36 | K102: 0 | L102: 42 | M102: 0 | O102: 0
A103: 13 | B103: 112 | C103: 131683008001 | D103: Dans la chaleur des moteurs | E103: 16 | F103: 17 | G103: 19 | H103: 0 | I103: 0 | J103: 52 | K103: 0 | L103: 57 | M103: 0 | O103: 0
A104: 13 | B104: 113 | C104: 131845001101 | D104: L'insolite | E104: 11 | F104: 13 | G104: 8 | H104: 0 | I104: 0 | J104: 32 | K104: 0 | L104: 130 | M104: 0 | O104: 0
A105: 13 | B105: 114 | C105: 131619005001 | D105: Antilope Canyon | E105: 16 | F105: 17 | G105: 12 | H105: 0 | I105: 0 | J105: 45 | K105: 0 | L105: 89 | M105: 0 | O105: 0
A106: 13 | B106: 115 | C106: 132060000701 | D106: Beaubourg | E106: 11 | F106: 11 | G106: 14 | H106: 0 | I106: 0 | J106: 36 | K106: 0 | L106: 148 | M106: 0 | O106: 0
A107: 13 | B107: 116 | C107: 131683005101 | D107: Sérénité | E107: 19 | F107: 17 | G107: 13 | H107: 0 | I107: 0 | J107: 49 | K107: 0 | L107: 105 | M107: 0 | O107: 0
A108: 13 | B108: 117 | C108: 132060001201 | D108: Au delà du mur | E108: 9 | F108: 16 | G108: 14 | H108: 0 | I108: 0 | J108: 39 | K108: 0 | L108: 160 | M108: 0 | O108: 0
A109: 13 | B109: 118 | C109: 132086002601 | D109: Urban city | E109: 9 | F109: 15 | G109: 16 | H109: 0 | I109: 0 | J109: 40 | K109: 0 | L109: 142 | M109: 0 | O109: 0
A110: 13 | B110: 119 | C110: 131862002201 | D110: Randonnée | E110: 10 | F110: 15 | G110: 18 | H110: 0 | I110: 0 | J110: 43 | K110: 0 | L110: 83 | M110: 0 | O110: 0
A111: 13 | B111: 120 | C111: 130925009801 | D111: Prédicateur | E111: 10 | F111: 17 | G111: 13 | H111: 0 | I111: 0 | J111: 40 | K111: 0 | L111: 27 | M111: 0 | O111: 0
A112: 13 | B112: 121 | C112: 131956002401 | D112: Reflet du lac | E112: 17 | F112: 12 | G112: 14 | H112: 0 | I112: 0 | J112: 43 | K112: 0 | L112: 8 | M112: 0 | O112: 0
A113: 13 | B113: 122 | C113: 131845001401 | D113: St Cast en feu | E113: 12 | F113: 16 | G113: 15 | H113: 0 | I113: 0 | J113: 43 | K113: 0 | L113: 131 | M113: 0 | O113: 0
A114: 13 | B114: 123 | C114: 131956005901 | D114: Vers la tour | E114: 10 | F114: 15 | G114: 12 | H114: 0 | I114: 0 | J114: 37 | K114: 0 | L114: 55 | M114: 0 | O114: 0
A115: 13 | B115: 124 | C115: 131227008601 | D115: Le phare de Cassis | E115: 17 | F115: 14 | G115: 11 | H115: 0 | I115: 0 | J115: 42 | K115: 0 | L115: 23 | M115: 0 | O115: 0
A116: 13 | B116: 125 | C116: 131353006201 | D116: Plein champ | E116: 9 | F116: 16 | G116: 12 | H116: 0 | I116: 0 | J116: 37 | K116: 0 | L116: 132 | M116: 0 | O116: 0
A117: 13 | B117: 126 | C117: 131956004501 | D117: Le pont routier | E117: 13 | F117: 16 | G117: 10 | H117: 0 | I117: 0 | J117: 39 | K117: 0 | L117: 64 | M117: 0 | O117: 0
A118: 13 | B118: 127 | C118: 131353007401 | D118: 74_MG_Malecon Cuba.jpg | E118: 9 | F118: 16 | G118: 16 | H118: 0 | I118: 0 | J118: 41 | K118: 0 | L118: 36 | M118: 0 | O118: 0
A119: 13 | B119: 128 | C119: 130878013001 | D119: Voyage | E119: 9 | F119: 8 | G119: 9 | H119: 0 | I119: 0 | J119: 26 | K119: 0 | L119: 12 | M119: 0 | O119: 0
A120: 13 | B120: 129 | C120: 132086001401 | D120: Géometrie | E120: 10 | F120: 14 | G120: 10 | H120: 0 | I120: 0 | J120: 34 | K120: 0 | L120: 147 | M120: 0 | O120: 0
A121: 13 | B121: 130 | C121: 131353007301 | D121: 73_PG_Musicien Des Rues La Havane.jpg | E121: 10 | F121: 16 | G121: 12 | H121: 0 | I121: 0 | J121: 38 | K121: 0 | L121: 127 | M121: 0 | O121: 0
A122: 13 | B122: 131 | C122: 130987025001 | D122: Buren en couleur | E122: 12 | F122: 16 | G122: 12 | H122: 0 | I122: 0 | J122: 40 | K122: 0 | L122: 95 | M122: 0 | O122: 0
A123: 13 | B123: 132 | C123: 131956002601 | D123: Erosion | E123: 9 | F123: 13 | G123: 8 | H123: 0 | I123: 0 | J123: 30 | K123: 0 | L123: 34 | M123: 0 | O123: 0
A124: 13 | B124: 133 | C124: 130987023901 | D124: "Dream" | E124: 10 | F124: 9 | G124: 11 | H124: 0 | I124: 0 | J124: 30 | K124: 0 | L124: 6 | M124: 0 | O124: 0
A125: 13 | B125: 134 | C125: 130462001101 | D125: Etang du Lavalduc | E125: 14 | F125: 16 | G125: 13 | H125: 0 | I125: 0 | J125: 43 | K125: 0 | L125: 135 | M125: 0 | O125: 0
A126: 13 | B126: 135 | C126: 132089000101 | D126: Il va neiger dans le Var | E126: 10 | F126: 14 | G126: 12 | H126: 0 | I126: 0 | J126: 36 | K126: 0 | L126: 16 | M126: 0 | O126: 0
A127: 13 | B127: 136 | C127: 131845004001 | D127: Chantiers de la Seyne | E127: 16 | F127: 13 | G127: 12 | H127: 0 | I127: 0 | J127: 41 | K127: 0 | L127: 46 | M127: 0 | O127: 0
A128: 13 | B128: 137 | C128: 131619005301 | D128: Princess Street | E128: 16 | F128: 13 | G128: 14 | H128: 0 | I128: 0 | J128: 43 | K128: 0 | L128: 145 | M128: 0 | O128: 0
A129: 13 | B129: 138 | C129: 131956000201 | D129: Camaieu Camarguais | E129: 18 | F129: 10 | G129: 11 | H129: 0 | I129: 0 | J129: 39 | K129: 0 | L129: 108 | M129: 0 | O129: 0
A130: 13 | B130: 139 | C130: 130925008401 | D130: Spleen | E130: 14 | F130: 19 | G130: 18 | H130: 0 | I130: 0 | J130: 51 | K130: 0 | L130: 161 | M130: 0 | O130: 0
A131: 13 | B131: 140 | C131: 130925007701 | D131: Dans la brume | E131: 10 | F131: 13 | G131: 14 | H131: 0 | I131: 0 | J131: =SUM(E131:I131) -> 37 | K131: 0 | L131: 123 | M131: 0 | O131: 0
A132: 13 | B132: 141 | C132: 130987016601 | D132: Carla | E132: 10 | F132: 11 | G132: 9 | H132: 0 | I132: 0 | J132: 30 | K132: 0 | L132: 99 | M132: 0 | O132: 0
A133: 13 | B133: 142 | C133: 131845004101 | D133: Londres | E133: 9 | F133: 12 | G133: 15 | H133: 0 | I133: 0 | J133: 36 | K133: 0 | L133: 3 | M133: 0 | O133: 0
A134: 13 | B134: 143 | C134: 131499010601 | D134: Ocres | E134: 13 | F134: 12 | G134: 14 | H134: 0 | I134: 0 | J134: 39 | K134: 0 | L134: 125 | M134: 0 | O134: 0
A135: 13 | B135: 144 | C135: 131499010501 | D135: Selfie dans les lavandes | E135: 10 | F135: 13 | G135: 13 | H135: 0 | I135: 0 | J135: 36 | K135: 0 | L135: 50 | M135: 0 | O135: 0
A136: 13 | B136: 146 | C136: 131823004201 | D136: La fanfare | E136: 10 | F136: 13 | G136: 11 | H136: 0 | I136: 0 | J136: 34 | K136: 0 | L136: 93 | M136: 0 | O136: 0
A137: 13 | B137: 147 | C137: 131956005301 | D137: Bo-Kaap Maison au palmier | E137: 9 | F137: 14 | G137: 9 | H137: 0 | I137: 0 | J137: 32 | K137: 0 | L137: 84 | M137: 0 | O137: 0
A138: 13 | B138: 148 | C138: 131823006401 | D138: Le petit port | E138: 10 | F138: 13 | G138: 14 | H138: 0 | I138: 0 | J138: 37 | K138: 0 | L138: 121 | M138: 0 | O138: 0
A139: 13 | B139: 149 | C139: 131845000801 | D139: Sama Danse des Derviches Tourneurs | E139: 7 | F139: 15 | G139: 12 | H139: 0 | I139: 0 | J139: 34 | K139: 0 | L139: 24 | M139: 0 | O139: 0
A140: 13 | B140: 150 | C140: 131956000601 | D140: En cuisine! | E140: 12 | F140: 7 | G140: 8 | H140: 0 | I140: 0 | J140: 27 | K140: 0 | L140: 118 | M140: 0 | O140: 0
A141: 13 | B141: 151 | C141: 131845000101 | D141: Façade provençale | E141: 14 | F141: 15 | G141: 12 | H141: 0 | I141: 0 | J141: 41 | K141: 0 | L141: 51 | M141: 0 | O141: 0
A142: 13 | B142: 152 | C142: 131845000201 | D142: Dans le Panier | E142: 13 | F142: 13 | G142: 14 | H142: 0 | I142: 0 | J142: 40 | K142: 0 | L142: 60 | M142: 0 | O142: 0
A143: 13 | B143: 153 | C143: 131376000101 | D143: Précautions! | E143: 8 | F143: 15 | G143: 14 | H143: 0 | I143: 0 | J143: 37 | K143: 0 | L143: 43 | M143: 0 | O143: 0
A144: 13 | B144: 154 | C144: 131956005701 | D144: Matin calme à Pokhara | E144: 10 | F144: 15 | G144: 13 | H144: 0 | I144: 0 | J144: 38 | K144: 0 | L144: 19 | M144: 0 | O144: 0
A145: 13 | B145: 155 | C145: 131619004501 | D145: Sant' Angelo | E145: 12 | F145: 14 | G145: 11 | H145: 0 | I145: 0 | J145: 37 | K145: 0 | L145: 124 | M145: 0 | O145: 0
A146: 13 | B146: 156 | C146: 130987001601 | D146: Gerbera | E146: 14 | F146: 13 | G146: 10 | H146: 0 | I146: 0 | J146: 37 | K146: 0 | L146: 92 | M146: 0 | O146: 0
A147: 13 | B147: 157 | C147: 130925007601 | D147: Birmane | E147: 9 | F147: 20 | G147: 12 | H147: 0 | I147: 0 | J147: 41 | K147: 0 | L147: 85 | M147: 0 | O147: 0
A148: 13 | B148: 158 | C148: 131845002101 | D148: Mariage de l'eau et du feu | E148: 14 | F148: 18 | G148: 12 | H148: 0 | I148: 0 | J148: 44 | K148: 0 | L148: 52 | M148: 0 | O148: 0
A149: 13 | B149: 159 | C149: 132060000901 | D149: Un air de Noël | E149: 9 | F149: 10 | G149: 11 | H149: 0 | I149: 0 | J149: 30 | K149: 0 | L149: 163 | M149: 0 | O149: 0
A150: 13 | B150: 160 | C150: 130527009401 | D150: Terre de Sienne | E150: 18 | F150: 19 | G150: 14 | H150: 0 | I150: 0 | J150: 51 | K150: 0 | L150: 30 | M150: 0 | O150: 0
A151: 13 | B151: 161 | C151: 130527017001 | D151: L'art solitaire... | E151: 14 | F151: 17 | G151: 20 | H151: 0 | I151: 0 | J151: 51 | K151: 0 | L151: 29 | M151: 0 | O151: 0
A152: 13 | B152: 162 | C152: 130987002301 | D152: Moulin Sicilien | E152: 10 | F152: 11 | G152: 13 | H152: 0 | I152: 0 | J152: 34 | K152: 0 | L152: 122 | M152: 0 | O152: 0
A153: 13 | B153: 163 | C153: 132060000401 | D153: Solitaire | E153: 11 | F153: 16 | G153: 13 | H153: 0 | I153: 0 | J153: 40 | K153: 0 | L153: 102 | M153: 0 | O153: 0
A154: 13 | B154: 164 | C154: 131499003601 | D154: Les fruits du marché | E154: 16 | F154: 19 | G154: 15 | H154: 0 | I154: 0 | J154: 50 | K154: 0 | L154: 91 | M154: 0 | O154: 0
A155: 13 | B155: 165 | C155: 131499006901 | D155: Design | E155: 18 | F155: 14 | G155: 14 | H155: 0 | I155: 0 | J155: 46 | K155: 0 | L155: 1 | M155: 0 | O155: 0
A156: 13 | B156: 166 | C156: 131499010701 | D156: Vapeur d'arc en ciel | E156: 14 | F156: 7 | G156: 12 | H156: 0 | I156: 0 | J156: 33 | K156: 0 | L156: 103 | M156: 0 | O156: 0
A157: 13 | B157: 167 | C157: 131619004201 | D157: Les Goudes | E157: 12 | F157: 7 | G157: 15 | H157: 0 | I157: 0 | J157: 34 | K157: 0 | L157: 70 | M157: 0 | O157: 0
A158: 13 | B158: 168 | C158: 131619004801 | D158: La Lune | E158: 12 | F158: 8 | G158: 14 | H158: 0 | I158: 0 | J158: 34 | K158: 0 | L158: 117 | M158: 0 | O158: 0
A159: 13 | B159: 169 | C159: 130878015201 | D159: Du blanc à la couleur | E159: 14 | F159: 15 | G159: 13 | H159: 0 | I159: 0 | J159: 42 | K159: 0 | L159: 71 | M159: 0 | O159: 0
A160: 13 | B160: 170 | C160: 131499008601 | D160: Peint ta rue | E160: 12 | F160: 17 | G160: 12 | H160: 0 | I160: 0 | J160: 41 | K160: 0 | L160: 154 | M160: 0 | O160: 0
A161: 13 | B161: 171 | C161: 130987026701 | D161: Cabanons de Cabasson | E161: 10 | F161: 12 | G161: 18 | H161: 0 | I161: 0 | J161: 40 | K161: 0 | L161: 17 | M161: 0 | O161: 0
A162: 13 | B162: 172 | C162: 131110001001 | D162: Selfie | E162: 9 | F162: 14 | G162: 12 | H162: 0 | I162: 0 | J162: 35 | K162: 0 | L162: 152 | M162: 0 | O162: 0
A163: 13 | B163: 173 | C163: 132203001001 | D163: L'ocre en provence | E163: 13 | F163: 13 | G163: 9 | H163: 0 | I163: 0 | J163: 35 | K163: 0 | L163: 134 | M163: 0 | O163: 0
A164: 13 | B164: 174 | C164: 131353000701 | D164: Pierrot à la rose | E164: 11 | F164: 17 | G164: 13 | H164: 0 | I164: 0 | J164: 41 | K164: 0 | L164: 150 | M164: 0 | O164: 0
A165: 13 | B165: 175 | C165: 131353000101 | D165: Riomaggiore | E165: 18 | F165: 19 | G165: 20 | H165: 0 | I165: 0 | J165: 57 | K165: 0 | L165: 97 | M165: 0 | O165: 0

Sheet Défi-6

Sheet Défi-7

Sheet Liste des clubs
B2: Numéro | C2: Nom | D2: Département | E2: Ville
A3: 1 | B3: 435 | C3: Beausoleil Ciné Photo Club | D3: 6 | E3: Beausoleil
A4: 2 | B4: 462 | C4: Image 2000 | D4: 13 | E4: Marignane
A5: 3 | B5: 527 | C5: Photo Club de Martigues | D5: 13 | E5: Lavéra
A6: 4 | B6: 878 | C6: PC Antoine Santoru-Port de Bouc | D6: 13 | E6: Port-de-Bouc
A7: 5 | B7: 921 | C7: Photo Club M.P.T. Vitrolles | D7: 13 | E7: Vitrolles
A8: 6 | B8: 925 | C8: A.S.L.P.S. Photo Fos-sur-Mer | D8: 13 | E8: Fos-Sur-Mer
A9: 7 | B9: 987 | C9: Cl. Phot’Azur Six-Fours-les-Plages | D9: 83 | E9: Six-Fours-Les-Plages
A10: 8 | B10: 993 | C10: P.C. La Garde – Marseille | D10: 13 | E10: Marseille
A11: 9 | B11: 1110 | C11: Ciné Photo Club de Peymeinade | D11: 6 | E11: Peymeinade
A12: 10 | B12: 1227 | C12: Photo Ciné Club Courthezonnais | D12: 84 | E12: Bedarrides
A13: 11 | B13: 1353 | C13: Photo Club de La Crau | D13: 13 | E13: Saint-Martin-De-Crau
A14: 12 | B14: 1376 | C14: PHOCAL | D14: 13 | E14: Allauch-Cedex
A15: 13 | B15: 1426 | C15: Diaphragme et Lumière Var – Ollioules | D15: 83 | E15: Ollioules
A16: 14 | B16: 1441 | C16: Club mage Monaco | D16: 98 | E16: Monaco
A17: 15 | B17: 1450 | C17: Arc Images- Rousset | D17: 13 | E17: Rousset
A18: 16 | B18: 1494 | C18: Photo-Club du Brianconnais | D18: 5 | E18: Briancon
A19: 17 | B19: 1499 | C19: Images Expressions – Cagnes sur Mer | D19: 6 | E19: Cagnes-Sur-Mer
A20: 18 | B20: 1601 | C20: Club Pugetois de L’image | D20: 83 | E20: Puget-Sur-Argens
A21: 19 | B21: 1619 | C21: Optique Diaporama Marseille | D21: 13 | E21: La Bouilladisse
A22: 20 | B22: 1683 | C22: Marius Saint-Mitre-les-Remparts | D22: 13 | E22: Saint-Mitre-Les-Remparts
A23: 21 | B23: 1777 | C23: Club Photo et Vidéo Plan de La Tour | D23: 83 | E23: Plan-de-la-Tour
A24: 22 | B24: 1796 | C24: Ciné Caméra Club de Cannes | D24: 6 | E24: Cannes
A25: 23 | B25: 1823 | C25: Photo Club Mouansois | D25: 6 | E25: Mouans-Sartoux
A26: 24 | B26: 1824 | C26: Photo Club IBM Cote d’Azur | D26: 6 | E26: Nice
A27: 25 | B27: 1845 | C27: Photo Club Carqueirannais | D27: 83 | E27: Carqueiranne
A28: 26 | B28: 1862 | C28: Déclic et des Claps – Roquefort les Pins | D28: 6 | E28: Roquefort-les-Pins
A29: 27 | B29: 1867 | C29: PhotoMenton | D29: 6 | E29: Menton
A30: 28 | B30: 1879 | C30: Association Sportive de Berre | D30: 13 | E30: Berre-L'Etang
A31: 29 | B31: 1899 | C31: Club de l’Image | D31: 83 | E31: Sollies-Pont
A32: 30 | B32: 1956 | C32: Photo Contact Puyricard | D32: 13 | E32: Puyricard
A33: 31 | B33: 1969 | C33: Mission Photo – Cannes la Bocca | D33: 6 | E33: Cannes-la-Bocca
A34: 32 | B34: 1985 | C34: Rognonas Image Regard Espace | D34: 13 | E34: Rognonas
A35: 33 | B35: 1992 | C35: Photo Club Velauxien – Clin d’Œil | D35: 13 | E35: Velaux
A36: 34 | B36: 2003 | C36: Photo Club Moriérois | D36: 84 | E36: Morieres-les-Avignon
A37: 35 | B37: 2023 | C37: Club Art Déclic de l’ Argens | D37: 83 | E37: Puget-sur-Argens
A38: 36 | B38: 2028 | C38: Association Regards du Sud | D38: 6 | E38: Aspremont
A39: 37 | B39: 2060 | C39: Image Club Gardéen | D39: 83 | E39: La Garde
A40: 38 | B40: 2084 | C40: Azur Photo Passion | D40: 6 | E40: Cagnes-Sur-Mer
A41: 39 | B41: 2086 | C41: Objectif Image Nice | D41: 6 | E41: Nice
A42: 40 | B42: 2089 | C42: La Farledo Objectif Club | D42: 83 | E42: La Farlède
A43: 41 | B43: 2103 | C43: Club Photo St Laurent du Var | D43: 6 | E43: Saint-Laurent-du-Var
A44: 42 | B44: 2147 | C44: Club Photo Saint Savournin | D44: 13 | E44: Saint-Savournin
A45: 43 | B45: 2158 | C45: Café Photo Marseille | D45: 13 | E45: Marseille
A46: 44 | B46: 2180 | C46: Photo Club Carry Côte Bleue | D46: 13 | E46: Carry-le-Rouet
A47: 45 | B47: 2193 | C47: Antibes Photo Club | D47: 6 | E47: Antibes
A48: 46 | B48: 2203 | C48: Club Photo de Saignon | D48: 84 | E48: Saignon
A49: 47 | B49: 2211 | C49: Club Photo UAICF de Gap | D49: 5 | E49: Gap
A50: 48 | B50: 2217 | C50: ADSB – Club Photo Bouc Bel Air | D50: 13 | E50: Bouc-Bel-Air
A51: 49 | B51: 2222 | C51: Association Culturelle Photo Club de Neffes | D51: 5 | E51: Neffes
